Department,Entity,Transaction Date,SupplierName,amount,Expense Type,Expense Area,Voucher Description published admin over 25000,Transaction Number
DFID,DFID,21/09/2011,Foreign & Commonwealth Office,"73,351.16",Aid Programme - Accountable Grant Payments,Global Development Partnerships Programme,,151559104
DFID,DFID,21/09/2011,Foreign & Commonwealth Office,"100,676.66",Aid Programme - Accountable Grant Payments,DFID Kyrgyzstan,,151559105
DFID,DFID,07/09/2011,Centre for Social Markets,"4,400.00",Aid Programme - Accountable Grant Payments,Asia Division London,,400175973
DFID,DFID,08/09/2011,Shoklo Malaria Research Unit,"19,430.23",Aid Programme - Accountable Grant Payments,DFID Burma,,400176155
DFID,DFID,09/09/2011,ActionAid India,"166,099.15",Aid Programme - Accountable Grant Payments,DFID India,,400176404
DFID,DFID,09/09/2011,THE SAVE THE CHILDREN FUND,"160,392.00",Aid Programme - Accountable Grant Payments,DFID India,,400176422
DFID,DFID,09/09/2011,WaterAid  (INDIA),"82,382.00",Aid Programme - Accountable Grant Payments,DFID India,,400176424
DFID,DFID,09/09/2011,Oxfam (India) Trust,"30,806.00",Aid Programme - Accountable Grant Payments,DFID India,,400176427
DFID,DFID,09/09/2011,VOLUNTARY SERVICE OVERSEAS,"52,985.00",Aid Programme - Accountable Grant Payments,DFID India,,400176441
DFID,DFID,09/09/2011,CHRISTIAN AID,"111,724.64",Aid Programme - Accountable Grant Payments,DFID India,,400176442
DFID,DFID,09/09/2011,SKILLSHARE INTERNATIONAL,"38,825.00",Aid Programme - Accountable Grant Payments,DFID India,,400176467
DFID,DFID,13/09/2011,INTERNATIONAL INSTITUTE FOR SUSTAINABLE DEVELOPMENT ,"43,281.00",Aid Programme - Accountable Grant Payments,Global Development Partnerships Programme,,400176471
DFID,DFID,20/09/2011, MERLIN,"72,391.00",Aid Programme - Accountable Grant Payments,DFID Burma,,400177412
DFID,DFID,21/09/2011,LONDON SCHOOL OF HYGIENE AND TR,"29,982.73",Aid Programme - Accountable Grant Payments,DFID India,,400177750
DFID,DFID,20/09/2011,THE SAVE THE CHILDREN FUND,"107,542.88",Aid Programme - Accountable Grant Payments,DFID Burma,,400177911
DFID,DFID,29/09/2011,Manusher Jonno Foundation,"2,075,000.00",Aid Programme - Accountable Grant Payments,DFID Bangladesh,,400179190
DFID,DFID,29/09/2011,Manusher Jonno Foundation,"500,000.00",Aid Programme - Accountable Grant Payments,DFID Bangladesh,,400179190
DFID,DFID,29/09/2011,SAFERWORLD,"48,353.00",Aid Programme - Accountable Grant Payments,DFID Kyrgyzstan,,400179418
DFID,DFID,09/09/2011,ECGD ACCOUNT,"10,479.92",Aid Programme - Aid and Trade Provision,DFID Indonesia,,400176138
DFID,DFID,13/09/2011,ECGD ACCOUNT,"69,275.03",Aid Programme - Aid and Trade Provision,DFID Indonesia,,400176324
DFID,DFID,22/09/2011,ECGD ACCOUNT,"296,697.70",Aid Programme - Aid and Trade Provision,DFID Indonesia,,400177724
DFID,DFID,11/09/2011,Haroon Engineering Limited,585.86,Building Plant - Air Conditioners,DFID Bangladesh,,400176494
DFID,DFID,12/09/2011,Harewelle International Limited.,"438,847.71",Aid Programme - Challenge Fund payments,DFID Bangladesh,,400176454
DFID,DFID,14/09/2011,TURNER & TOWNSEND,"15,091.28",Consultancy Services,DFID India,,400177038
DFID,DFID,14/09/2011,TURNER & TOWNSEND,"43,515.70",Consultancy Services,DFID India,,400177039
DFID,DFID,08/09/2011,Supplier name withheld,"3,057.49",Contract & Agency Staff,DFID Nepal,,400176210
DFID,DFID,07/09/2011,THE GOURMET FACTORY,"2,209.73",Contract Catering Services,DFID India,,400176009
DFID,DFID,28/09/2011,NARINDER PAL SINGH,592.24,Contract Catering Services,DFID India,,400178982
DFID,DFID,23/09/2011,Saimon Overseas Ltd,"1,982.34",Aid Programme - Development Awareness Fund payments,DFID Bangladesh,,400178424
DFID,DFID,29/09/2011,Supplier name withheld,575.26,Aid Programme - Development Awareness Fund payments,DFID Bangladesh,,400179217
DFID,DFID,21/09/2011,Foreign & Commonwealth Office,609.61,DFID Learning Events,DFID Tajikistan,,151559105
DFID,DFID,09/09/2011,Nepal Electricity Authority,573.35,Electricity,DFID Nepal,,400176196
DFID,DFID,08/09/2011,BSES RAJDHANI POWER LIMITED,"7,011.72",Electricity,DFID India,,400176225
DFID,DFID,21/09/2011,Dhaka Electric Supply Company Ltd,"1,497.57",Electricity,DFID Bangladesh,,400177895
DFID,DFID,22/09/2011,Tay Ho Electricity Company,698.37,Electricity,DFID Vietnam,,400178074
DFID,DFID,22/09/2011,Neptune Properties,"1,030.07",Electricity,DFID Bangladesh,,400178308
DFID,DFID,23/09/2011,Hongkong Land Company,747.63,Electricity,DFID Vietnam,,400178546
DFID,DFID,19/09/2011,Foreign & Commonwealth Office,"1,223.99",Entertainment & Hospitality,DFID Kyrgyzstan,,151559096
DFID,DFID,07/09/2011,FABINDIA OVERSEAS PRIVATE LIMITED,500.56,Furniture & Fittings,DFID India,,400176007
DFID,DFID,20/09/2011,Cty Tbi Gia dinh Hanoi,743.77,Furniture & Fittings,DFID Vietnam,,400177893
DFID,DFID,19/09/2011,RAJSHREE ELECTRICALS,"4,676.79",Generators & spares,DFID India,,400177617
DFID,DFID,27/09/2011,ZEUS POWER SOLUTIONS (P) LTD,517.86,Generators & spares,DFID India,,400178779
DFID,DFID,27/09/2011,Corporate Travel provider,"1,731.58",Hotels - Accommodation only,Asia Division London,,6000058
DFID,DFID,28/09/2011,Foreign & Commonwealth Office,929.41,Hotels - Accommodation only,DFID Indonesia,,151559118
DFID,DFID,12/09/2011,Saket Courtyard Hospitality,616.44,Hotels - Accommodation only,DFID India,,400175491
DFID,DFID,12/09/2011,Saket Courtyard Hospitality,616.31,Hotels - Accommodation only,DFID India,,400175491
DFID,DFID,30/09/2011,Recipient name withheld,925.14,Hotels - Accommodation only,DFID India,,400179563
DFID,DFID,19/09/2011,Supplier name withheld,"9,179.93",Secure staff accommodation,DFID Kyrgyzstan,,151559096
DFID,DFID,28/09/2011,Supplier name withheld,"1,097.29",Secure staff accommodation,DFID Burma,,151559118
DFID,DFID,28/09/2011,Supplier name withheld,"8,025.15",Secure staff accommodation,Global Development Partnerships Programme,,151559118
DFID,DFID,28/09/2011,Supplier name withheld,"21,214.34",Secure staff accommodation,DFID Burma,,151559121
DFID,DFID,05/09/2011,Supplier name withheld,"3,445.42",Secure staff accommodation,DFID Bangladesh,,400175431
DFID,DFID,07/09/2011,Supplier name withheld,"8,694.48",Secure staff accommodation,DFID India,,400176074
DFID,DFID,13/09/2011,Supplier name withheld,"2,244.99",Secure staff accommodation,DFID Bangladesh,,400176593
DFID,DFID,12/09/2011,Supplier name withheld,"2,359.58",Secure staff accommodation,DFID Bangladesh,,400176596
DFID,DFID,12/09/2011,Supplier name withheld,"3,866.37",Secure staff accommodation,DFID Bangladesh,,400176599
DFID,DFID,12/09/2011,Supplier name withheld,"3,866.37",Secure staff accommodation,DFID Bangladesh,,400176600
DFID,DFID,12/09/2011,Supplier name withheld,"1,746.10",Secure staff accommodation,DFID Bangladesh,,400176601
DFID,DFID,12/09/2011,Supplier name withheld,"2,244.99",Secure staff accommodation,DFID Bangladesh,,400176603
DFID,DFID,12/09/2011,Supplier name withheld,"5,238.30",Secure staff accommodation,DFID Bangladesh,,400176606
DFID,DFID,12/09/2011,Supplier name withheld,"2,818.70",Secure staff accommodation,DFID Bangladesh,,400176607
DFID,DFID,12/09/2011,Supplier name withheld,"1,371.94",Secure staff accommodation,DFID Bangladesh,,400176608
DFID,DFID,12/09/2011,Supplier name withheld,"1,297.10",Secure staff accommodation,DFID Bangladesh,,400176609
DFID,DFID,12/09/2011,Supplier name withheld,"1,746.10",Secure staff accommodation,DFID Bangladesh,,400176611
DFID,DFID,12/09/2011,Supplier name withheld,"3,492.20",Secure staff accommodation,DFID Bangladesh,,400176614
DFID,DFID,13/09/2011,Supplier name withheld,"1,869.36",Secure staff accommodation,DFID Bangladesh,,400176727
DFID,DFID,13/09/2011,Supplier name withheld,"1,869.36",Secure staff accommodation,DFID Bangladesh,,400176736
DFID,DFID,13/09/2011,Supplier name withheld,"2,492.48",Secure staff accommodation,DFID Bangladesh,,400176739
DFID,DFID,13/09/2011,Supplier name withheld,"2,492.48",Secure staff accommodation,DFID Bangladesh,,400176741
DFID,DFID,15/09/2011,Supplier name withheld,"2,183.50",Secure staff accommodation,DFID Bangladesh,,400177253
DFID,DFID,20/09/2011,Supplier name withheld,"3,340.04",Secure staff accommodation,DFID Nepal,,400177850
DFID,DFID,20/09/2011,Supplier name withheld,"3,092.63",Secure staff accommodation,DFID Nepal,,400177852
DFID,DFID,20/09/2011,Supplier name withheld,"3,092.63",Secure staff accommodation,DFID Nepal,,400177854
DFID,DFID,20/09/2011,Supplier name withheld,"1,308.80",Secure staff accommodation,DFID Nepal,,400177855
DFID,DFID,20/09/2011,Supplier name withheld,"2,474.10",Secure staff accommodation,DFID Nepal,,400177859
DFID,DFID,20/09/2011,Supplier name withheld,"2,474.10",Secure staff accommodation,DFID Nepal,,400177861
DFID,DFID,20/09/2011,Supplier name withheld,"2,845.22",Secure staff accommodation,DFID Nepal,,400177863
DFID,DFID,20/09/2011,Supplier name withheld,"2,226.69",Secure staff accommodation,DFID Nepal,,400177865
DFID,DFID,20/09/2011,Supplier name withheld,"1,855.58",Secure staff accommodation,DFID Nepal,,400177866
DFID,DFID,20/09/2011,Supplier name withheld,"2,053.51",Secure staff accommodation,DFID Nepal,,400177867
DFID,DFID,20/09/2011,Supplier name withheld,"1,707.13",Secure staff accommodation,DFID Nepal,,400177868
DFID,DFID,21/09/2011,Supplier name withheld,"1,943.97",Secure staff accommodation,DFID Nepal,,400178025
DFID,DFID,27/09/2011,Supplier name withheld,"1,936.39",Secure staff accommodation,DFID Nepal,,400178725
DFID,DFID,15/09/2011,Grameen Phone (USD),544.39,Mobile telephones & accessories,DFID Bangladesh,,400176619
DFID,DFID,21/09/2011,Foreign & Commonwealth Office,759.88,Office Equipment - Maintenance,Global Development Partnerships Programme,,151559104
DFID,DFID,14/09/2011,Crown Agents Govts and Admin,"1,048.85",Office Equipment - Purchases,DFID Bangladesh,,400177128
DFID,DFID,21/09/2011,Crown Agents Govts and Admin,"1,322.06",Office Equipment - Purchases,DFID Bangladesh,,400178272
DFID,DFID,23/09/2011,Crown Agents Govts and Admin,"2,128.39",Office Equipment - Purchases,DFID Bangladesh,,400178613
DFID,DFID,19/09/2011,Foreign & Commonwealth Office,"1,675.03",Office Supplies,DFID Kyrgyzstan,,151559096
DFID,DFID,28/09/2011,Foreign & Commonwealth Office,"1,320.95",Oil - Other Utilities,DFID Bangladesh,,151559118
DFID,DFID,21/09/2011,Supplier name withheld,"11,700.00",Operating Lease rental of buildings,DFID Nepal,,400178019
DFID,DFID,21/09/2011,Supplier name withheld,"6,300.00",Operating Lease rental of buildings,DFID Nepal,,400178019
DFID,DFID,21/09/2011,Supplier name withheld,787.50,Operating Lease rental of buildings,DFID Nepal,,400178021
DFID,DFID,21/09/2011,Supplier name withheld,"1,462.50",Operating Lease rental of buildings,DFID Nepal,,400178021
DFID,DFID,15/09/2011,Supplier name withheld,"1,995.54",Other Admin Costs,DFID Bangladesh,,400176577
DFID,DFID,15/09/2011,Supplier name withheld,"1,870.82",Other Admin Costs,DFID Bangladesh,,400176590
DFID,DFID,15/09/2011,Supplier name withheld,"2,943.43",Other Admin Costs,DFID Bangladesh,,400176613
DFID,DFID,15/09/2011,Crown Agents Govts and Admin,"1,600,000.00",Aid Programme - Other Financial Aid to Government,DFID Bangladesh,,400177401
DFID,DFID,22/09/2011,Crown Agents Govts and Admin,"14,734.90",Aid Programme - Other Financial Aid to Government,DFID India,,400178440
DFID,DFID,22/09/2011,Crown Agents Govts and Admin,"1,879,089.37",Aid Programme - Other Financial Aid to Government,DFID India,,400178483
DFID,DFID,23/09/2011,Crown Agents Govts and Admin,"187,467.75",other information and communication technologies,DFID Bangladesh,,400178606
DFID,DFID,19/09/2011,G4S FACILITY SERVICES (INDIA) PVT. L,"3,246.98",Other non-passenger transportation,DFID India,,400177627
DFID,DFID,21/09/2011,Recipient name withheld,668.35,Other passenger transport,DFID Indonesia,,151559104
DFID,DFID,19/09/2011,Foreign & Commonwealth Office,"1,054.47",Postage Costs,DFID Kyrgyzstan,,151559096
DFID,DFID,29/09/2011,Careerist Management Consultants Pvt. Ltd,592.30,Recruitment costs,DFID India,,400179236
DFID,DFID,29/09/2011,Careerist Management Consultants Pvt. Ltd,592.30,Recruitment costs,DFID India,,400179239
DFID,DFID,07/09/2011,Property Care Services Bangladesh Pvt Ltd,517.43,Cleaning Costs,DFID Bangladesh,,400176012
DFID,DFID,01/09/2011,CB RICHARD ELLIS SOUTH ASIA PVT LTD,"1,929.92",Facilities Management payments,DFID India,,400175264
DFID,DFID,12/09/2011,PEST CONTROL CONSULTANTS & SERVICES,"1,648.31",Facilities Management payments,DFID India,,400176523
DFID,DFID,19/09/2011,CB RICHARD ELLIS SOUTH ASIA PVT LTD,"1,998.81",Facilities Management payments,DFID India,,400177621
DFID,DFID,20/09/2011,CB RICHARD ELLIS SOUTH ASIA PVT LTD,"14,528.70",Facilities Management payments,DFID India,,400177890
DFID,DFID,21/09/2011,John Sanday Associates Pvt. Ltd,"2,465.10",Facilities Management payments,DFID Nepal,,400178085
DFID,DFID,23/09/2011,R M B Engineers and Builders Pvt Ltd,"7,574.85",Facilities Management payments,DFID Nepal,,400178545
DFID,DFID,20/09/2011,Crown Agents Govts and Admin,"38,953.08",Other Building Costs,DFID Bangladesh,,400177950
DFID,DFID,20/09/2011,The Modern Builders International Limited,"2,953.52","Repairs, Maint, Alter - Property & Constrct. Services",DFID Bangladesh,,400177834
DFID,DFID,15/09/2011,Corporate Travel provider,572.95,Air fares,DFID India,,6000057
DFID,DFID,15/09/2011,Corporate Travel provider,"1,087.69",Air fares,DFID Burma,,6000057
DFID,DFID,15/09/2011,Corporate Travel provider,699.45,Air fares,DFID Vietnam,,6000057
DFID,DFID,27/09/2011,Corporate Travel provider,"2,123.13",Air fares,Asia Division London,,6000058
DFID,DFID,27/09/2011,Corporate Travel provider,659.19,Air fares,DFID Kyrgyzstan,,6000058
DFID,DFID,27/09/2011,Corporate Travel provider,569.56,Air fares,DFID India,,6000058
DFID,DFID,27/09/2011,Corporate Travel provider,659.19,Air fares,DFID Kyrgyzstan,,6000058
DFID,DFID,21/09/2011,Foreign & Commonwealth Office,836.69,Air fares,DFID Indonesia,,151559104
DFID,DFID,21/09/2011,Foreign & Commonwealth Office,"1,805.88",Air fares,DFID Tajikistan,,151559105
DFID,DFID,06/09/2011,KUONI BUSINESS TRAVEL INDIA PVT LTD,"1,531.51",Air fares,Asia Division London,,400175664
DFID,DFID,07/09/2011,KUONI BUSINESS TRAVEL INDIA PVT LTD,725.00,Air fares,DFID India,,400175669
DFID,DFID,13/09/2011,Saimon Overseas Ltd,961.57,Air fares,DFID Bangladesh,,400176497
DFID,DFID,13/09/2011,Saimon Overseas Ltd,843.59,Air fares,DFID Bangladesh,,400176497
DFID,DFID,12/09/2011,KUONI BUSINESS TRAVEL INDIA PVT LTD,619.32,Air fares,DFID India,,400176582
DFID,DFID,16/09/2011,Jaya Travels & Tours Pvt Ltd. (US$),838.51,Air fares,DFID Nepal,,400177495
DFID,DFID,23/09/2011,Recipient name withheld,546.55,Air fares,DFID India,,400178557
DFID,DFID,27/09/2011,BRITISH HIGH COMMISSION,"1,026.22",Subscriptions,DFID India,,400178770
DFID,DFID,30/09/2011,Government Procurement Card,742.85,Technical and Advisory Services,DFID India,,100047
DFID,DFID,30/09/2011,Government Procurement Card,731.07,Technical and Advisory Services,DFID India,,100047
DFID,DFID,30/09/2011,Government Procurement Card,783.14,Technical and Advisory Services,DFID India,,100047
DFID,DFID,30/09/2011,Government Procurement Card,731.07,Technical and Advisory Services,DFID India,,100047
DFID,DFID,21/09/2011,Foreign & Commonwealth Office,"1,838.74",Technical and Advisory Services,DFID Indonesia,,151559104
DFID,DFID,21/09/2011,Foreign & Commonwealth Office,"2,902.32",Technical and Advisory Services,DFID Indonesia,,151559104
DFID,DFID,21/09/2011,Foreign & Commonwealth Office,"11,867.57",Technical and Advisory Services,DFID Indonesia,,151559104
DFID,DFID,21/09/2011,Foreign & Commonwealth Office,"5,979.69",Technical and Advisory Services,DFID Tajikistan,,151559105
DFID,DFID,28/09/2011,Foreign & Commonwealth Office,856.55,Technical and Advisory Services,DFID Indonesia,,151559121
DFID,DFID,28/09/2011,Foreign & Commonwealth Office,"1,652.13",Technical and Advisory Services,DFID Indonesia,,151559121
DFID,DFID,28/09/2011,Foreign & Commonwealth Office,"3,343.55",Technical and Advisory Services,DFID Indonesia,,151559121
DFID,DFID,01/09/2011,COFFEY INTERNATIONAL DEVELOPMENT LTD,"45,515.58",Technical and Advisory Services,DFID India,,400175242
DFID,DFID,05/09/2011,MOTT MACDONALD LTD,"13,511.39",Technical and Advisory Services,DFID Burma,,400175366
DFID,DFID,05/09/2011,AVA & ASSOCIATES,"1,084.50",Technical and Advisory Services,DFID India,,400175428
DFID,DFID,07/09/2011,ADAM SMITH INTERNATIONAL  LTD,"21,894.00",Technical and Advisory Services,DFID Nepal,,400175538
DFID,DFID,07/09/2011,TRIBAL HELM CORPORATION LTD.,"134,856.12",Technical and Advisory Services,DFID Bangladesh,,400175808
DFID,DFID,07/09/2011,OPTIONS CONSULTANCY SERVICES LIMITED,"55,188.93",Technical and Advisory Services,DFID India,,400175829
DFID,DFID,07/09/2011,OPTIONS CONSULTANCY SERVICES LIMITED,"19,556.00",Technical and Advisory Services,DFID India,,400175838
DFID,DFID,07/09/2011,OPTIONS CONSULTANCY SERVICES LIMITED,"29,220.22",Technical and Advisory Services,DFID India,,400175859
DFID,DFID,07/09/2011,OPTIONS CONSULTANCY SERVICES LIMITED,"65,051.00",Technical and Advisory Services,DFID India,,400175909
DFID,DFID,07/09/2011,OPTIONS CONSULTANCY SERVICES LIMITED,"67,905.09",Technical and Advisory Services,DFID India,,400175915
DFID,DFID,07/09/2011,WSP INTERNATIONAL LIMITED,"160,418.86",Technical and Advisory Services,DFID Nepal,,400175938
DFID,DFID,07/09/2011,WSP INTERNATIONAL LIMITED,"68,096.38",Technical and Advisory Services,DFID Nepal,,400175938
DFID,DFID,07/09/2011,WSP INTERNATIONAL LIMITED,"19,727.34",Technical and Advisory Services,DFID Nepal,,400175964
DFID,DFID,08/09/2011,PRICEWATERHOUSECOOPERS DEVELOPMENT,"7,911.00",Technical and Advisory Services,DFID India,,400175976
DFID,DFID,08/09/2011,PRICEWATERHOUSECOOPERS DEVELOPMENT,"37,486.00",Technical and Advisory Services,DFID India,,400175982
DFID,DFID,08/09/2011,PRICEWATERHOUSECOOPERS DEVELOPMENT,"37,473.00",Technical and Advisory Services,DFID India,,400175983
DFID,DFID,07/09/2011,CARE INTERNATIONAL,"42,360.73",Technical and Advisory Services,DFID India,,400175986
DFID,DFID,07/09/2011,CARE INTERNATIONAL,"28,768.23",Technical and Advisory Services,DFID India,,400175988
DFID,DFID,07/09/2011,CARE INTERNATIONAL,"37,065.64",Technical and Advisory Services,DFID India,,400175989
DFID,DFID,07/09/2011,CARE INTERNATIONAL,"49,948.60",Technical and Advisory Services,DFID India,,400175990
DFID,DFID,09/09/2011,Cynthia Keough,"1,673.83",Technical and Advisory Services,Global Development Partnerships Programme,,400176062
DFID,DFID,08/09/2011,INFRASTRUCTURE PROFESSIONALS ENTERPRISE,"68,756.61",Technical and Advisory Services,DFID India,,400176070
DFID,DFID,08/09/2011,INFRASTRUCTURE PROFESSIONALS ENTERPRISE,"36,689.74",Technical and Advisory Services,DFID India,,400176075
DFID,DFID,08/09/2011,INFRASTRUCTURE PROFESSIONALS ENTERPRISE,"51,567.46",Technical and Advisory Services,DFID India,,400176077
DFID,DFID,08/09/2011,INFRASTRUCTURE PROFESSIONALS ENTERPRISE,"51,567.46",Technical and Advisory Services,DFID India,,400176080
DFID,DFID,08/09/2011,CHRISTIAN AID,"26,489.83",Technical and Advisory Services,DFID India,,400176129
DFID,DFID,09/09/2011,CARE INTERNATIONAL,"79,426.37",Technical and Advisory Services,DFID India,,400176141
DFID,DFID,09/09/2011,CARE INTERNATIONAL,"42,360.73",Technical and Advisory Services,DFID India,,400176147
DFID,DFID,13/09/2011,Maliha H Hussein,"16,598.97",Technical and Advisory Services,DFID Bangladesh,,400176223
DFID,DFID,09/09/2011,Scott Baum,"3,660.04",Technical and Advisory Services,Global Development Partnerships Programme,,400176235
DFID,DFID,08/09/2011,COFFEY INTERNATIONAL DEVELOPMENT LTD,"65,997.37",Technical and Advisory Services,DFID India,,400176241
DFID,DFID,09/09/2011,UNIVERSITY OF OXFORD,"2,042.52",Technical and Advisory Services,Global Development Partnerships Programme,,400176342
DFID,DFID,09/09/2011,SPC MANAGEMENT SERVICES PRIVATE LIMI,"2,179.48",Technical and Advisory Services,DFID India,,400176361
DFID,DFID,09/09/2011,SPC MANAGEMENT SERVICES PRIVATE LIMI,"1,596.87",Technical and Advisory Services,DFID India,,400176363
DFID,DFID,09/09/2011,SIDBI MUMBAI,"2,959.31",Technical and Advisory Services,DFID India,,400176385
DFID,DFID,09/09/2011,SIDBI MUMBAI,"4,144.31",Technical and Advisory Services,DFID India,,400176390
DFID,DFID,09/09/2011,SIDBI MUMBAI,"7,242.73",Technical and Advisory Services,DFID India,,400176393
DFID,DFID,12/09/2011,Harewelle International Limited.,"132,512.65",Technical and Advisory Services,DFID Bangladesh,,400176454
DFID,DFID,13/09/2011,Mamidi Bharath Bhushan,"1,138.27",Technical and Advisory Services,DFID India,,400176872
DFID,DFID,13/09/2011,OPTIONS CONSULTANCY SERVICES LIMITED,"151,609.00",Technical and Advisory Services,DFID Nepal,,400176940
DFID,DFID,14/09/2011,TURNER & TOWNSEND,"30,619.90",Technical and Advisory Services,DFID Bangladesh,,400177044
DFID,DFID,20/09/2011,SIDBI FOUNDATION,"578,973.38",Technical and Advisory Services,DFID India,,400177064
DFID,DFID,16/09/2011,ERNST &  YOUNG PRIVATE LTD,"21,425.00",Technical and Advisory Services,DFID Nepal,,400177079
DFID,DFID,15/09/2011,Pricewaterhousecoopers Pvt. Ltd.,"5,902.80",Technical and Advisory Services,DFID India,,400177184
DFID,DFID,15/09/2011,Deloitte Touche Tohmatsu India Pvt. Ltd.,"15,740.80",Technical and Advisory Services,DFID India,,400177186
DFID,DFID,15/09/2011,Mohammad Mahboob Morshed,"2,494.71",Technical and Advisory Services,DFID Bangladesh,,400177257
DFID,DFID,15/09/2011,DELOITTE TOUCHE TOHMATSU INDIA PRIVA,"17,076.79",Technical and Advisory Services,DFID India,,400177311
DFID,DFID,15/09/2011,CB RICHARD ELLIS SOUTH ASIA PVT LTD,559.61,Technical and Advisory Services,DFID India,,400177314
DFID,DFID,16/09/2011,ADAM SMITH INTERNATIONAL  LTD,"201,170.00",Technical and Advisory Services,DFID Nepal,,400177315
DFID,DFID,16/09/2011,HTSPE LTD,"24,917.84",Technical and Advisory Services,DFID Nepal,,400177408
DFID,DFID,19/09/2011,BMB MOTT  MACDONALD,"83,289.13",Technical and Advisory Services,DFID Bangladesh,,400177453
DFID,DFID,19/09/2011,BMB MOTT  MACDONALD,"345,481.04",Technical and Advisory Services,DFID Bangladesh,,400177456
DFID,DFID,16/09/2011,GHK CONSULTING LTD,"75,945.00",Technical and Advisory Services,DFID India,,400177523
DFID,DFID,19/09/2011,URSULA BLACKSHAW,"13,893.97",Technical and Advisory Services,DFID Bangladesh,,400177632
DFID,DFID,19/09/2011,Futures Group International India Pvt Ltd,"111,171.47",Technical and Advisory Services,DFID India,,400177634
DFID,DFID,20/09/2011,GRM INTERNATIONAL LTD,"355,378.19",Technical and Advisory Services,DFID Nepal,,400177860
DFID,DFID,21/09/2011,GRM INTERNATIONAL LTD,"47,477.75",Technical and Advisory Services,DFID Kyrgyzstan,,400177902
DFID,DFID,20/09/2011,DELOITTE TOUCHE TOHMATSU INDIA PRIVA,"9,810.59",Technical and Advisory Services,DFID India,,400177913
DFID,DFID,20/09/2011,DELOITTE TOUCHE TOHMATSU INDIA PRIVA,"11,381.61",Technical and Advisory Services,DFID India,,400177915
DFID,DFID,20/09/2011,DELOITTE TOUCHE TOHMATSU INDIA PRIVA,"37,201.46",Technical and Advisory Services,DFID India,,400177929
DFID,DFID,20/09/2011,CROWN AGENTS (INDIA) PVT. LTD,"27,303.40",Technical and Advisory Services,DFID India,,400177932
DFID,DFID,20/09/2011,MAXWELL STAMP PLC,"200,000.00",Technical and Advisory Services,DFID Bangladesh,,400177943
DFID,DFID,20/09/2011,MAXWELL STAMP PLC,"144,480.84",Technical and Advisory Services,DFID Bangladesh,,400177943
DFID,DFID,20/09/2011,MAXWELL STAMP PLC,"140,536.50",Technical and Advisory Services,DFID Bangladesh,,400177944
DFID,DFID,20/09/2011,MAXWELL STAMP PLC,"21,770.11",Technical and Advisory Services,DFID Bangladesh,,400177957
DFID,DFID,20/09/2011,CAMBRIDGE EDUCATION LTD,"96,354.26",Technical and Advisory Services,DFID India,,400177960
DFID,DFID,20/09/2011,CAMBRIDGE EDUCATION LTD,"13,991.33",Technical and Advisory Services,DFID Bangladesh,,400177991
DFID,DFID,21/09/2011,DESHKAL SOCIETY,"2,927.66",Technical and Advisory Services,DFID India,,400178033
DFID,DFID,21/09/2011,Crown Agents Govts and Admin,890.00,Technical and Advisory Services,DFID Nepal,,400178099
DFID,DFID,27/09/2011,Crown Agents Govts and Admin,"24,192.00",Technical and Advisory Services,DFID Nepal,,400178103
DFID,DFID,21/09/2011,HTSPE LTD,"6,971.00",Technical and Advisory Services,DFID Bangladesh,,400178121
DFID,DFID,22/09/2011,COFFEY INTERNATIONAL DEVELOPMENT LTD,"39,812.56",Technical and Advisory Services,DFID India,,400178247
DFID,DFID,22/09/2011, Yin Yongyuan,"1,460.84",Technical and Advisory Services,Global Development Partnerships Programme,,400178273
DFID,DFID,22/09/2011,Crown Agents Govts and Admin,"40,576.80",Technical and Advisory Services,DFID Nepal,,400178278
DFID,DFID,22/09/2011,Crown Agents Govts and Admin,"27,973.87",Technical and Advisory Services,DFID Nepal,,400178280
DFID,DFID,22/09/2011,CATALYST MANAGEMENT SERVICES PVT LTD,"56,792.37",Technical and Advisory Services,DFID India,,400178312
DFID,DFID,22/09/2011,Infrastructure Professionals Enterprise (P) Ltd.,533.15,Technical and Advisory Services,DFID India,,400178314
DFID,DFID,22/09/2011,Infrastructure Professionals Enterprise (P) Ltd.,"1,290.25",Technical and Advisory Services,DFID India,,400178315
DFID,DFID,22/09/2011,Pradeep Kumar Shrestha,"1,110.41",Technical and Advisory Services,DFID Nepal,,400178353
DFID,DFID,22/09/2011, Yin Yongyuan,"7,487.45",Technical and Advisory Services,Global Development Partnerships Programme,,400178371
DFID,DFID,23/09/2011,Dr. Indira Shakya,"1,754.34",Technical and Advisory Services,DFID Nepal,,400178540
DFID,DFID,23/09/2011,Shuva Kantha Sharma,"4,418.27",Technical and Advisory Services,DFID Nepal,,400178542
DFID,DFID,27/09/2011,HTSPE LTD,"5,263.42",Technical and Advisory Services,Asia Division London,,400178826
DFID,DFID,27/09/2011,TURNER & TOWNSEND,"35,562.95",Technical and Advisory Services,DFID Bangladesh,,400178864
DFID,DFID,28/09/2011,GHK CONSULTING LTD,"16,563.00",Technical and Advisory Services,DFID India,,400178929
DFID,DFID,30/09/2011,OPTIONS CONSULTANCY SERVICES LIMITED,"50,110.00",Technical and Advisory Services,DFID India,,400178931
DFID,DFID,29/09/2011,OPTIONS CONSULTANCY SERVICES LIMITED,"72,328.83",Technical and Advisory Services,DFID India,,400179086
DFID,DFID,29/09/2011,OPTIONS CONSULTANCY SERVICES LIMITED,"50,110.00",Technical and Advisory Services,DFID India,,400179099
DFID,DFID,28/09/2011,ADAM SMITH INTERNATIONAL  LTD,"12,710.78",Technical and Advisory Services,DFID Nepal,,400179148
DFID,DFID,29/09/2011,OPTIONS CONSULTANCY SERVICES LIMITED,"40,934.00",Technical and Advisory Services,DFID India,,400179317
DFID,DFID,30/09/2011,HTSPE LTD,"31,591.10",Technical and Advisory Services,Asia Division London,,400179345
DFID,DFID,30/09/2011,INFRASTRUCTURE PROFESSIONALS ENTERPRISE,"68,756.61",Technical and Advisory Services,DFID India,,400179378
DFID,DFID,30/09/2011,HTSPE LTD,"13,725.00",Technical and Advisory Services,DFID Nepal,,400179524
DFID,DFID,30/09/2011,HTSPE LTD,"44,748.60",Technical and Advisory Services,DFID Nepal,,400179524
DFID,DFID,30/09/2011,HTSPE LTD,"41,400.00",Technical and Advisory Services,DFID Nepal,,400179524
DFID,DFID,28/09/2011,Foreign & Commonwealth Office,583.47,Telephone Usage & services,DFID Burma,,151559121
DFID,DFID,28/09/2011,VODAFONE CORPORATE,573.10,Telephone Usage & services,Asia Division London,,400177948
DFID,DFID,28/09/2011,Recipient name withheld,999.15,Training - Travel & Subsistence,DFID Burma,,151559118
DFID,DFID,07/09/2011,KUONI BUSINESS TRAVEL INDIA PVT LTD,"1,720.73",Training - travel & Subsistence,DFID India,,400175666
DFID,DFID,09/09/2011,THRESHOLDS,"1,620.00",Training - Course Fees,DFID Nepal,,400176479
DFID,DFID,12/09/2011,QUEEN MARGARET UNIVERSITY,"1,350.00",Training - Course Fees,DFID Bangladesh,,400176531
DFID,DFID,27/09/2011,New Horizons (Bangladesh),567.19,Training - Course Fees,DFID Bangladesh,,400178731
DFID,DFID,30/09/2011,INSIGHTS LEARNING & DEVELOPMENT LTD,"1,658.88",Training - Course Fees,DFID India,,400179000
DFID,DFID,21/09/2011,Recipient name withheld,914.41,Training - Travel & Subsistence,DFID Tajikistan,,151559105
DFID,DFID,28/09/2011,Recipient name withheld,"2,438.43",Training - Travel & Subsistence,DFID Tajikistan,,151559117
DFID,DFID,28/09/2011,Recipient name withheld,"1,771.57",Training - Travel & Subsistence,DFID Tajikistan,,151559117
DFID,DFID,07/09/2011,UNDP CONTRIBUTIONS GBP,"15,941.00",Aid Programme - Trust Funds contributions,DFID Nepal,,400175992
DFID,DFID,07/09/2011,IBRD (HSBC)  C/O THE WORLD BANK,"434,500.00",Aid Programme - Trust Funds contributions,Asia Division London,,400176167
DFID,DFID,12/09/2011,IBRD (HSBC)  C/O THE WORLD BANK,"940,000.00",Aid Programme - Trust Funds contributions,DFID Kyrgyzstan,,400176317
DFID,DFID,21/09/2011,IBRD (HSBC)  C/O THE WORLD BANK,"2,000,000.00",Aid Programme - Trust Funds contributions,DFID Vietnam,,400177937
DFID,DFID,21/09/2011,Supplier name withheld,"1,571.86",Other travel costs,DFID Burma,,151559104
DFID,DFID,28/09/2011,Supplier name withheld,515.12,Other travel costs,DFID Burma,,151559118
DFID,DFID,21/09/2011,Foreign & Commonwealth Office,936.37,Vehicle Repairs & Maintenance,DFID Tajikistan,,151559105
DFID,DFID,06/09/2011,QUTAB SERVICE STATION,"1,090.95",Vehicle Repairs & Maintenance,DFID India,,400175502
DFID,DFID,09/09/2011,ASIAN DEVELOPMENT.BANK,"600,000.00",Aid Programme - Voluntary contributions,DFID Vietnam,,400176279
DFID,DFID,28/09/2011,UNDP CONTRIBUTIONS GBP,"2,500,000.00",Aid Programme - Voluntary contributions,DFID Bangladesh,,400179088
DFID,DFID,28/09/2011,UNDP CONTRIBUTIONS GBP,"3,518,295.00",Aid Programme - Voluntary contributions,DFID Bangladesh,,400179088
DFID,DFID,15/09/2011,Bal Krishna Dahal,540.47,Water charges,DFID Nepal,,400177276
DFID,DFID,02/09/2011,Government Procurement Card,596.89,Computer Consumables,Information Systems Department,,100043
DFID,DFID,02/09/2011,Government Procurement Card,"1,436.16",Computer Consumables,Information Systems Department,,100043
DFID,DFID,07/09/2011,CARILLION COMMUNICATIONS LTD,"28,112.57",Computer hardware maintenance,Information Systems Department,Video conference maintenance and support contract,400176102
DFID,DFID,14/09/2011,Rufus Leonard Ltd,"1,020.00",Computer hardware maintenance,Information Systems Department,,400177107
DFID,DFID,23/09/2011,CARILLION COMMUNICATIONS LTD,720.00,Computer hardware maintenance,Information Systems Department,,400178658
DFID,DFID,30/09/2011,ATTENDA LIMITED,"19,403.86",Computer hardware maintenance,Information Systems Department,,400179440
DFID,DFID,30/09/2011,ATTENDA LIMITED,867.60,Computer hardware maintenance,Information Systems Department,,400179446
DFID,DFID,12/09/2011,ALLEGIS GROUP LIMITED,"2,500.00",Computer software maintenance,Information Systems Department,,400176474
DFID,DFID,14/09/2011,Rufus Leonard Ltd,"2,025.00",Computer software maintenance,Information Systems Department,,400177132
DFID,DFID,14/09/2011,Caretower ltd,"8,806.00",Computer software maintenance,Information Systems Department,,400177151
DFID,DFID,30/09/2011,LOGICACMG UK LTD.,"113,089.50",Computer software maintenance,Information Systems Department,Technical support for DFIDs electronic document records management system,400179508
DFID,DFID,30/09/2011,NORTHGATE HR LIMITED,"2,760.91",Computer software maintenance,Information Systems Department,,400179580
DFID,DFID,30/09/2011,NORTHGATE HR LIMITED,"2,760.91",Computer software maintenance,Information Systems Department,,400179581
DFID,DFID,30/09/2011,NORTHGATE HR LIMITED,"2,058.81",Computer software maintenance,Information Systems Department,,400179583
DFID,DFID,30/09/2011,NORTHGATE HR LIMITED,"44,250.00",Computer software maintenance,Information Systems Department,Licence support costs,400179583
DFID,DFID,30/09/2011,NORTHGATE HR LIMITED,"2,760.91",Computer software maintenance,Information Systems Department,,400179585
DFID,DFID,28/09/2011,Foreign & Commonwealth Office,632.99,Data Network - land lines,Information Systems Department,,151559117
DFID,DFID,07/09/2011,Subisu Cable Net Pvt Ltd,771.54,Data Network - land lines,Information Systems Department,,400175762
DFID,DFID,07/09/2011,KUBE NETWORKS LTD,894.89,Data Network - land lines,Information Systems Department,,400175878
DFID,DFID,07/09/2011,KUBE NETWORKS LTD,"1,446.91",Data Network - land lines,Information Systems Department,,400175888
DFID,DFID,08/09/2011,MTN Business Solutions,"19,079.48",Data Network - land lines,Information Systems Department,,400176097
DFID,DFID,09/09/2011,Telkom SA Ltd,"1,845.25",Data Network - land lines,Information Systems Department,,400176191
DFID,DFID,09/09/2011,VERIZON UK LIMITED,"4,372.93",Data Network - land lines,Information Systems Department,,400176469
DFID,DFID,12/09/2011,GLOBAL CROSSING (UK) TELECOMMS LTD,516.00,Data Network - land lines,Information Systems Department,,400176678
DFID,DFID,19/09/2011,Foreign & Commonwealth Office,579.05,Data network- remote working,Information Systems Department,,151559096
DFID,DFID,07/09/2011,Ghana Telecommunications Company Ltd,"3,053.78",Data network- remote working,Information Systems Department,,400175905
DFID,DFID,09/09/2011,Ghana Telecommunications Company Ltd,"3,088.33",Data network- remote working,Information Systems Department,,400176456
DFID,DFID,12/09/2011,COLT TELECOMMUNICATIONS,"1,125.00",Data Network -Satellite,Information Systems Department,,400176530
DFID,DFID,05/09/2011,CABLE & WIRELESS COMMUN,"26,974.92",Hardware - networking equipment,Information Systems Department,,400175444
DFID,DFID,30/09/2011,Government Procurement Card,"2,349.93",Hardware -Laptop PCs,Information Systems Department,,100047
DFID,DFID,30/09/2011,Government Procurement Card,"4,538.65",Hardware -Laptop PCs,Information Systems Department,,100047
DFID,DFID,15/09/2011,Corporate Travel provider,562.98,Hotels - Accommodation only,Information Systems Department,,6000057
DFID,DFID,12/09/2011,NAYATEL (PVT) LTD,"1,117.43",other information and communication technologies,Information Systems Department,,400176506
DFID,DFID,28/09/2011,NAYATEL (PVT) LTD,580.26,other information and communication technologies,Information Systems Department,,400178967
DFID,DFID,13/09/2011,Recipient name withheld,"5,700.00",Other passenger transport,Information Systems Department,,400176956
DFID,DFID,13/09/2011,Recipient name withheld,"3,770.00",Other passenger transport,Information Systems Department,,400176956
DFID,DFID,13/09/2011,Recipient name withheld,974.20,Other passenger transport,Information Systems Department,,400176956
DFID,DFID,13/09/2011,Recipient name withheld,"1,911.02",Other passenger transport,Information Systems Department,,400176956
DFID,DFID,13/09/2011,Recipient name withheld,999.00,Other passenger transport,Information Systems Department,,400176956
DFID,DFID,02/09/2011,Government Procurement Card,"1,126.20",Printer Consumables,Information Systems Department,,100043
DFID,DFID,02/09/2011,Government Procurement Card,521.76,Printer Consumables,Information Systems Department,,100043
DFID,DFID,30/09/2011,Government Procurement Card,"1,065.12",Printer Consumables,Information Systems Department,,100047
DFID,DFID,30/09/2011,Government Procurement Card,"1,011.86",Printer Consumables,Information Systems Department,,100047
DFID,DFID,30/09/2011,Government Procurement Card,"1,224.26",Printer Consumables,Information Systems Department,,100047
DFID,DFID,02/09/2011,Government Procurement Card,577.89,Air fares,Information Systems Department,,100043
DFID,DFID,01/09/2011,TNT Express (UK) Ltd,"4,429.32",Storage & Distribution costs,Information Systems Department,,400175315
DFID,DFID,08/09/2011,Nuttall Packaging Ltd,610.04,Storage & Distribution costs,Information Systems Department,,400176264
DFID,DFID,07/09/2011,Fluent Interaction Ltd,"13,265.00",Technical and Advisory Services,Information Systems Department,,400175960
DFID,DFID,08/09/2011,OPIN SYSTEMS LIMITED,"8,140.00",Technical and Advisory Services,Information Systems Department,,400176265
DFID,DFID,09/09/2011,ALLEGIS GROUP LIMITED,"1,480.00",Technical and Advisory Services,Information Systems Department,,400176464
DFID,DFID,12/09/2011,AMCS UK,"10,004.00",Technical and Advisory Services,Information Systems Department,,400176481
DFID,DFID,14/09/2011,OPIN SYSTEMS LIMITED,"19,494.00",Technical and Advisory Services,Information Systems Department,,400176701
DFID,DFID,14/09/2011,OPIN SYSTEMS LIMITED,"32,472.90",Technical and Advisory Services,Information Systems Department,On site ORACLE Database Administrator Support,400176701
DFID,DFID,14/09/2011,ASK EUROPE PLC,"1,047.60",Technical and Advisory Services,Information Systems Department,,400177101
DFID,DFID,19/09/2011,CABLE & WIRELESS COMMUN,"125,747.93",Technical and Advisory Services,Information Systems Department,,400177558
DFID,DFID,16/09/2011,CABLE & WIRELESS COMMUN,"51,447.60",Technical and Advisory Services,Information Systems Department,Service Management Quarterly Charge Apr - Jun 2011,400177565
DFID,DFID,29/09/2011,OPIN SYSTEMS LIMITED,"1,045.00",Technical and Advisory Services,Information Systems Department,,400179124
DFID,DFID,30/09/2011,FIELD FISHER WATERHOUSE,"2,266.93",Technical and Advisory Services,Information Systems Department,,400179601
DFID,DFID,05/09/2011,CABLE & WIRELESS COMMUN,"47,433.93",Telephone Sys -hardware,Information Systems Department,,400175444
DFID,DFID,02/09/2011,BT BACS PAYMENTS,"4,370.64",Telephone Usage & services,Information Systems Department,,400175303
DFID,DFID,02/09/2011,Government Procurement Card,956.97,Training - Course Fees,Information Systems Department,,100043
DFID,DFID,02/09/2011,Government Procurement Card,956.97,Training - Course Fees,Information Systems Department,,100043
DFID,DFID,01/09/2011,QA Limited,"2,520.00",Training - Course Fees,Information Systems Department,,400175189
DFID,DFID,01/09/2011,QA Limited,"3,360.00",Training - Course Fees,Information Systems Department,,400175190
DFID,DFID,07/09/2011,OPIN SYSTEMS LIMITED,"5,300.00",Consultancy Services,Information Systems Department,,400175931
DFID,DFID,14/09/2011,THRESHOLDS,"1,500.00",Training - Course Fees,Information Systems Department,,400177130
DFID,DFID,29/09/2011,QA Limited,"1,641.50",Training - Course Fees,Information Systems Department,,400179147
DFID,DFID,22/09/2011,LEARNING TREE INTERNATIONAL,"1,175.00",Training Providers/Facilitation Services,Information Systems Department,,400178291
DFID,DFID,09/09/2011,KUONI BUSINESS TRAVEL INDIA PVT LTD,800.51,Other travel costs,Information Systems Department,,400175661
DFID,DFID,23/09/2011,KUONI BUSINESS TRAVEL INDIA PVT LTD,792.41,Other travel costs,Information Systems Department,,400176738
DFID,DFID,28/09/2011,Crown Agents Govts and Admin,"15,106.06",Aid Programme - Development Awareness Fund payments,Outreach and Stakeholder Relationships,,400179094
DFID,DFID,28/09/2011,Crown Agents Govts and Admin,"5,507.00",Aid Programme - Development Awareness Fund payments,Outreach and Stakeholder Relationships,,400179156
DFID,DFID,27/09/2011,Recipient name withheld,779.91,Hotels - Accommodation only,News Team,,400178832
DFID,DFID,16/09/2011,THE STATIONERY OFFICE LIMITED,500.00,Print Services,Strategic Communications Team,,400177154
DFID,DFID,16/09/2011,COPYPRINT UK LTD,"1,023.60",Print Services,Strategic Communications Team,,400177229
DFID,DFID,15/09/2011,Corporate Travel provider,"3,042.83",Air fares,DFID Communications Network Team,,6000057
DFID,DFID,27/09/2011,Corporate Travel provider,"1,573.09",Air fares,Senior Management Support Team,,6000058
DFID,DFID,21/09/2011,EC GROUP,501.15,Storage & Distribution costs,Strategic Communications Team,,400177897
DFID,DFID,07/09/2011,ITAD LTD,"24,000.00",Technical and Advisory Services,Outreach and Stakeholder Relationships,,400175916
DFID,DFID,08/09/2011,CENTRAL OFFICE OF INFORMATION,504.52,Technical and Advisory Services,News Team,,400176259
DFID,DFID,08/09/2011,Interconnect IT,504.00,Technical and Advisory Services,Online Content Team,,400176261
DFID,DFID,13/09/2011,CENTRAL OFFICE OF INFORMATION,500.00,Technical and Advisory Services,News Team,,400176630
DFID,DFID,16/09/2011,THE PRESS ASSOCIATION,530.48,Technical and Advisory Services,News Team,,400177237
DFID,DFID,16/09/2011,TRIPLE LINE CONSULTING LTD,962.29,Technical and Advisory Services,Outreach and Stakeholder Relationships,,400177496
DFID,DFID,16/09/2011,TRIPLE LINE CONSULTING LTD,"10,473.17",Technical and Advisory Services,Outreach and Stakeholder Relationships,,400177496
DFID,DFID,27/09/2011,BRITISH COUNCIL,"4,277.55",Technical and Advisory Services,Outreach and Stakeholder Relationships,,400178943
DFID,DFID,16/09/2011,SCOTLAND OFFICE,"5,019.75",Oil - Other Utilities,Business Change & Strategy Department,,400177560
DFID,DFID,07/09/2011,NATIONAL AUDIT OFFICE,"8,935.57",Technical and Advisory Services,Business Change & Strategy Department,,400175930
DFID,DFID,06/09/2011,ISS (UK),"179,192.00",Aid Programme - Accountable Grant Payments,Africa Regional Department,,400173544
DFID,DFID,02/09/2011,DANISH REFUGEE COUNCIL (DKK),"50,250.97",Aid Programme - Accountable Grant Payments,DFID Somalia,,400174426
DFID,DFID,02/09/2011, Overseas Development Institute,"114,367.00",Aid Programme - Accountable Grant Payments,Africa Regional Department,,400175403
DFID,DFID,05/09/2011,CARE INTERNATIONAL,"23,599.50",Aid Programme - Accountable Grant Payments,Africa Regional Department,,400175482
DFID,DFID,07/09/2011,OXFAM,"250,000.00",Aid Programme - Accountable Grant Payments,DFID Kenya,,400175871
DFID,DFID,07/09/2011,MERCY CORPS,"285,575.60",Aid Programme - Accountable Grant Payments,DFID Somalia,,400175893
DFID,DFID,08/09/2011,REFUGEE EDUCATION TRUST,"500,000.00",Aid Programme - Accountable Grant Payments,DFID Burundi,,400176060
DFID,DFID,09/09/2011,SA INSTITUTE OF INTERNATIONAL AFFAIRS,"118,476.78",Aid Programme - Accountable Grant Payments,Africa Regional Department,,400176211
DFID,DFID,14/09/2011,Olympus Mons Foundation,"75,000.00",Aid Programme - Accountable Grant Payments,DFID Kenya,,400176948
DFID,DFID,14/09/2011,BioClimate Research and Development Limited,"49,286.68",Aid Programme - Accountable Grant Payments,Africa Regional Department,,400177040
DFID,DFID,28/09/2011,MEDAIR,"169,156.00",Aid Programme - Accountable Grant Payments,DFID Somalia,,400177362
DFID,DFID,21/09/2011,Justice for All-Prison Fellowship Eth,"15,206.23",Aid Programme - Accountable Grant Payments,DFID Ethiopia,,400178157
DFID,DFID,22/09/2011,Aga Khan Foundation (Tanzania),"354,223.00",Aid Programme - Accountable Grant Payments,DFID Tanzania,,400178242
DFID,DFID,28/09/2011,CLINTON FOUNDATION,"782,582.47",Aid Programme - Accountable Grant Payments,Africa Regional Department,,400178574
DFID,DFID,29/09/2011,UNIVERSITY OF OXFORD,"54,798.99",Aid Programme - Accountable Grant Payments,DFID Ethiopia,,400178946
DFID,DFID,29/09/2011,SOLIDARITES INTERNATIONAL,"129,302.00",Aid Programme - Accountable Grant Payments,DFID Kenya,,400179113
DFID,DFID,29/09/2011,OXFAM,"198,298.00",Aid Programme - Accountable Grant Payments,DFID Somalia,,400179284
DFID,DFID,29/09/2011,SAVE THE CHILDREN,"455,547.00",Aid Programme - Accountable Grant Payments,DFID Kenya,,400179428
DFID,DFID,08/09/2011,RSM Tenon Limited,"21,358.54",Auditors Remuneration & Expenses - Cash,DFID Kenya,,400175987
DFID,DFID,27/09/2011,Jupiter Trading,862.75,Computer Consumables,DFID Ethiopia,,400178847
DFID,DFID,21/09/2011,Services & Computer Industries (U) Limited,588.28,Computer hardware maintenance,DFID Uganda,,400178047
DFID,DFID,22/09/2011,Sheraton Addis,"4,655.95","Conferences, Seminars & Meeting/Event Resource",DFID Sudan,,400175877
DFID,DFID,02/09/2011,TREASURY SOLICITORS CASH ACC,620.00,Consultancy Services,DFID Tanzania,,400175057
DFID,DFID,22/09/2011,  PRICEWATERHOUSECOOPERS,"25,081.25",Technical and Advisory Services,DFID Tanzania,,400178156
DFID,DFID,01/09/2011,OVERSEAS DEVELOPMENT INSTITUTE,"7,823.62",Aid Programme - Core contributions,DFID Tanzania,,400175274
DFID,DFID,21/09/2011,FCO SERVICES,"1,709.96",Courier & Bag Services,DFID Tanzania,,400177765
DFID,DFID,16/09/2011,BCD Travel (USD),896.46,DFID Learning Events,DFID Somalia,,400177193
DFID,DFID,21/09/2011,Foreign & Commonwealth Office,"1,139.15",Electricity,DFID Uganda,,151559104
DFID,DFID,21/09/2011,Foreign & Commonwealth Office,"1,143.14",Electricity,DFID Sudan,,151559104
DFID,DFID,28/09/2011,Foreign & Commonwealth Office,"4,099.20",Electricity,DFID Sudan,,151559118
DFID,DFID,28/09/2011,Foreign & Commonwealth Office,"1,138.67",Electricity,DFID Sudan,,151559118
DFID,DFID,15/09/2011,BHC Kampala,"1,594.99",Electricity,DFID Uganda,,400177024
DFID,DFID,15/09/2011,BHC Kampala,"3,096.16",Electricity,DFID Uganda,,400177024
DFID,DFID,28/09/2011,Foreign & Commonwealth Office,"2,620.53",FCO shared service charges,DFID Sudan,,151559118
DFID,DFID,28/09/2011,Foreign & Commonwealth Office,658.83,FCO shared service charges,DFID Sudan,,151559118
DFID,DFID,28/09/2011,Foreign & Commonwealth Office,"4,264.12",Furniture & Fittings,DFID Kenya,,151559118
DFID,DFID,28/09/2011,Foreign & Commonwealth Office,842.40,Furniture & Fittings,DFID Kenya,,151559118
DFID,DFID,01/09/2011,Nowe Investment Company Ltd (USD),"5,889.57",Facilities Management payments,DFID Tanzania,,400175212
DFID,DFID,01/09/2011,CMC Automobiles Ltd,"14,598.16",Vehicle Purchase Costs,DFID Tanzania,,400175216
DFID,DFID,07/09/2011,Future Century Ltd(USD),551.03,Furniture & Fittings,DFID Tanzania,,400175830
DFID,DFID,07/09/2011,Future Century Ltd(USD),"1,082.26",Furniture & Fittings,DFID Tanzania,,400175832
DFID,DFID,07/09/2011,Future Century Ltd(USD),508.17,Furniture & Fittings,DFID Tanzania,,400175835
DFID,DFID,07/09/2011,Future Century Ltd(USD),"3,904.22",Furniture & Fittings,DFID Tanzania,,400175852
DFID,DFID,07/09/2011,Future Century Ltd(USD),509.18,Furniture & Fittings,DFID Tanzania,,400175861
DFID,DFID,07/09/2011,Future Century Ltd(USD),"1,226.89",Furniture & Fittings,DFID Tanzania,,400175864
DFID,DFID,07/09/2011,Future Century Ltd(USD),712.35,Furniture & Fittings,DFID Tanzania,,400175873
DFID,DFID,07/09/2011,Future Century Ltd(USD),631.52,Furniture & Fittings,DFID Tanzania,,400175875
DFID,DFID,08/09/2011,United States International University - Kenya (USIU),591.62,Further Education costs,DFID Kenya,,400175889
DFID,DFID,15/09/2011,Strathmore University,741.09,Further Education costs,DFID Kenya,,400177121
DFID,DFID,16/09/2011,BCD Travel (USD),872.47,Further Education costs,DFID Kenya,,400177193
DFID,DFID,27/09/2011,University of Nairobi Enterprises & Services Ltd,567.51,Further Education costs,DFID Kenya,,400178706
DFID,DFID,28/09/2011,Foreign & Commonwealth Office,"2,754.45",Hardware - networking equipment,DFID Kenya,,151559121
DFID,DFID,28/09/2011,Foreign & Commonwealth Office,688.61,Hardware - networking equipment,DFID Kenya,,151559121
DFID,DFID,15/09/2011,Corporate Travel provider,"1,332.59",Hotels - Accommodation only,DFID Tanzania,,6000057
DFID,DFID,15/09/2011,Corporate Travel provider,518.98,Hotels - Accommodation only,DFID Uganda,,6000057
DFID,DFID,15/09/2011,Corporate Travel provider,542.23,Hotels - Accommodation only,DFID Kenya,,6000057
DFID,DFID,28/09/2011,Foreign & Commonwealth Office,"2,014.55",Hotels - Accommodation only,DFID Sudan,,151559121
DFID,DFID,22/09/2011,Sheraton Addis,"18,603.73",Hotels - Accommodation only,DFID Sudan,,400175877
DFID,DFID,09/09/2011,Southern Sun Hotels(T) Ltd (USD),656.14,Hotels - Accommodation only,DFID Tanzania,,400176364
DFID,DFID,20/09/2011,Recipient name withheld,"1,615.00",Hotels - Accommodation only,DFID Tanzania,,400177823
DFID,DFID,22/09/2011,Recipient name withheld,650.00,Hotels - Accommodation only,DFID Ethiopia,,400178309
DFID,DFID,29/09/2011,Laico Umubano Hotel,512.67,Hotels - Accommodation only,DFID Rwanda,,400179457
DFID,DFID,21/09/2011,Supplier name withheld,"5,658.70",Secure staff accommodation,DFID Kenya,,151559104
DFID,DFID,28/09/2011,Supplier name withheld,901.23,Secure staff accommodation,DFID Kenya,,151559118
DFID,DFID,28/09/2011,Supplier name withheld,"1,689.79",Secure staff accommodation,Africa Regional Department,,151559118
DFID,DFID,28/09/2011,Supplier name withheld,"1,624.80",Secure staff accommodation,Africa Regional Department,,151559118
DFID,DFID,02/09/2011,Supplier name withheld,"2,487.51",Secure staff accommodation,DFID Ethiopia,,400175193
DFID,DFID,09/09/2011,Supplier name withheld,"1,217.63",Secure staff accommodation,DFID Tanzania,,400176347
DFID,DFID,13/09/2011,Supplier name withheld,"1,217.63",Secure staff accommodation,DFID Tanzania,,400176751
DFID,DFID,14/09/2011,Supplier name withheld,"9,358.87",Secure staff accommodation,DFID Sudan,,400177092
DFID,DFID,20/09/2011,Supplier name withheld,"60,453.40",Secure staff accommodation,DFID Sudan,Secure staff accommodation,400177853
DFID,DFID,21/09/2011,Supplier name withheld,"11,467.32",Secure staff accommodation,DFID Uganda,,400178053
DFID,DFID,21/09/2011,Supplier name withheld,"10,093.07",Secure staff accommodation,DFID Ethiopia,,400178169
DFID,DFID,29/09/2011,Supplier name withheld,"52,338.24",Secure staff accommodation,DFID South Sudan,Secure staff accommodation,400178660
DFID,DFID,29/09/2011,Supplier name withheld,"209,352.96",Secure staff accommodation,DFID South Sudan,Secure staff accommodation,400178660
DFID,DFID,27/09/2011,Supplier name withheld,"12,738.85",Secure staff accommodation,DFID Uganda,,400178789
DFID,DFID,29/09/2011,Supplier name withheld,"1,257.16",Secure staff accommodation,DFID Tanzania,,400179103
DFID,DFID,30/09/2011,Supplier name withheld,"26,734.56",Secure staff accommodation,DFID Tanzania,Secure staff accommodation,400179233
DFID,DFID,30/09/2011,Supplier name withheld,"1,257.16",Secure staff accommodation,DFID Tanzania,,400179234
DFID,DFID,29/09/2011,Supplier name withheld,"9,411.00",Secure staff accommodation,DFID Ethiopia,,400179396
DFID,DFID,29/09/2011,Supplier name withheld,"13,139.68",Secure staff accommodation,DFID Ethiopia,,400179412
DFID,DFID,29/09/2011,Crown Agents Govts and Admin,"13,592.77",Aid Programme - Humanitarian Material Relief Assistance and Services,DFID Sudan,,400179438
DFID,DFID,30/09/2011,Crown Agents Govts and Admin,"41,514.00",Aid Programme - Humanitarian Material Relief Assistance and Services,DFID Sudan,,400179525
DFID,DFID,30/09/2011, UNHCR,"4,000,000.00",Aid Programme - Humanitarian Material Relief Assistance and Services,DFID Ethiopia,,400179536
DFID,DFID,30/09/2011,WHO (GENEVA),"2,465,316.00",Aid Programme - Joint programme contribution,DFID Kenya,,400179294
DFID,DFID,28/09/2011,Foreign & Commonwealth Office,594.68,Legal costs,DFID Kenya,,151559118
DFID,DFID,15/09/2011,Crown Agents Govts and Admin,"7,669.32",Legal costs,DFID Rwanda,,400171680
DFID,DFID,27/09/2011,INTERNATIONAL AIR AMBULANCE,832.54,Medical/Health Services,DFID Uganda,,400178784
DFID,DFID,27/09/2011,INTERNATIONAL AIR AMBULANCE,717.26,Medical/Health Services,DFID Uganda,,400178784
DFID,DFID,14/09/2011,Crown Agents Bank,"264,786.82",Medicines & Drugs,DFID Uganda,,400177070
DFID,DFID,28/09/2011,Foreign & Commonwealth Office,908.66,Mobile telephones & accessories,DFID Kenya,,151559118
DFID,DFID,28/09/2011,Foreign & Commonwealth Office,"1,148.75",Mobile telephones & accessories,DFID Kenya,,151559118
DFID,DFID,13/09/2011,AFSAT Communications (T) LTD,"1,583.66",Office Equipment - Maintenance,DFID Tanzania,,400176616
DFID,DFID,20/09/2011,CANOCITY,"2,493.70",Office Equipment - Maintenance,DFID Tanzania,,400177845
DFID,DFID,27/09/2011,CANOCITY,"1,345.16",Office Equipment - Maintenance,DFID Tanzania,,400178449
DFID,DFID,20/09/2011,Crown Agents Govts and Admin,"31,055.99",Office Equipment - Purchases,DFID Uganda,,400177894
DFID,DFID,20/09/2011,Crown Agents Govts and Admin,"2,391.76",Office Equipment - Purchases,DFID Uganda,,400177896
DFID,DFID,14/09/2011,Pran Pen Corner Ltd,"1,122.02",Office Supplies,DFID Tanzania,,400177009
DFID,DFID,12/09/2011,Crown Agents Govts and Admin,"600,000.00",Aid Programme - Other Financial Aid to Government,DFID Tanzania,,400176695
DFID,DFID,14/09/2011,Crown Agents Govts and Admin,"1,088,346.48",Aid Programme - Other Financial Aid to Government,DFID Uganda,,400177017
DFID,DFID,20/09/2011,Crown Agents Govts and Admin,"19,500.00",Aid Programme - Other Financial Aid to Government,DFID Uganda,,400177970
DFID,DFID,21/09/2011,Crown Agents Govts and Admin,"172,185.00",Aid Programme - Other Financial Aid to Government,DFID Uganda,,400178261
DFID,DFID,28/09/2011,Crown Agents Govts and Admin,"1,687,500.00",Aid Programme - Other Financial Aid to Government,DFID Uganda,,400179176
DFID,DFID,22/09/2011,TRADEMARK EAST AFRICA,"2,000,000.00",Aid Programme - Partnership Programme Arrangements,DFID Burundi,,400178236
DFID,DFID,15/09/2011,UNDP (UK),"10,000,000.00",Aid Programme - Pooled/Basket funding,DFID Sudan,,400176229
DFID,DFID,15/09/2011,UNDP (UK),"4,000,000.00",Aid Programme - Pooled/Basket funding,DFID South Sudan,,400176229
DFID,DFID,15/09/2011,UNDP (UK),"10,370,000.00",Aid Programme - Pooled/Basket funding,DFID South Sudan,,400176229
DFID,DFID,29/09/2011,DELOITTE (UGANDA) LTD,"3,000,000.00",Aid Programme - Pooled/Basket funding,DFID Uganda,,400178797
DFID,DFID,28/09/2011,IBRD HSBC T,"70,000,000.00",Aid Programme - Poverty Reduction Budget Support,DFID Ethiopia,,400179011
DFID,DFID,28/09/2011,Crown Agents Govts and Admin,"42,500,000.00",Aid Programme - Poverty Reduction Budget Support,DFID Tanzania,,400179182
DFID,DFID,28/09/2011,Foreign & Commonwealth Office,919.19,Printer Consumables,DFID Kenya,,151559118
DFID,DFID,07/09/2011,CROWN RELOCATIONS  UK,"2,191.00",Relocation costs,DFID Rwanda,,400173519
DFID,DFID,12/09/2011,CROWN RELOCATIONS  UK,"13,665.52",Relocation costs,DFID Rwanda,,400175617
DFID,DFID,08/09/2011,CROWN RELOCATIONS  UK,"12,084.38",Relocation costs,DFID Kenya,,400175619
DFID,DFID,02/09/2011,Commissioner for Domestic Revenue,754.36,Facilities Management payments,DFID Tanzania,,400174807
DFID,DFID,02/09/2011,Commissioner for Domestic Revenue,972.17,Facilities Management payments,DFID Tanzania,,400174809
DFID,DFID,08/09/2011,Crown Agents Bank,"3,151.53",Facilities Management payments,DFID Uganda,,400175344
DFID,DFID,08/09/2011,Crown Agents Bank,"1,623.55",Facilities Management payments,DFID Uganda,,400175344
DFID,DFID,05/09/2011,K.B.M Investments Ltd,822.78,Facilities Management payments,DFID Uganda,,400175540
DFID,DFID,05/09/2011,K.B.M Investments Ltd,"1,121.80",Facilities Management payments,DFID Uganda,,400175543
DFID,DFID,09/09/2011,Future Century Ltd(USD),"2,817.31",Facilities Management payments,DFID Tanzania,,400175735
DFID,DFID,07/09/2011,Future Century Ltd(USD),"1,621.86",Facilities Management payments,DFID Tanzania,,400175772
DFID,DFID,08/09/2011,Future Century Ltd(USD),"1,914.66",Facilities Management payments,DFID Tanzania,,400175885
DFID,DFID,08/09/2011,NPK Technologies LTD (TZ),786.87,Facilities Management payments,DFID Tanzania,,400176050
DFID,DFID,08/09/2011,Commissioner for Domestic Revenue,754.36,Facilities Management payments,DFID Tanzania,,400176187
DFID,DFID,08/09/2011,Commissioner for Domestic Revenue,972.17,Facilities Management payments,DFID Tanzania,,400176188
DFID,DFID,09/09/2011,Future Century Ltd(USD),652.33,Facilities Management payments,DFID Tanzania,,400176354
DFID,DFID,14/09/2011,British High Commission(Tsh),"5,050.52",Facilities Management payments,DFID Tanzania,,400176399
DFID,DFID,15/09/2011,British High Commission(Tsh),984.88,Facilities Management payments,DFID Tanzania,,400176541
DFID,DFID,13/09/2011,Oysterbay Renovations Ltd (USD),"1,802.08",Facilities Management payments,DFID Tanzania,,400176576
DFID,DFID,12/09/2011,Morco Textiles Ltd(Tsh),"1,360.46",Facilities Management payments,DFID Tanzania,,400176652
DFID,DFID,13/09/2011,Textile Manufactures of Tanzania Limited,"1,153.32",Facilities Management payments,DFID Tanzania,,400176753
DFID,DFID,13/09/2011,Future Century Ltd(USD),873.72,Facilities Management payments,DFID Tanzania,,400176772
DFID,DFID,14/09/2011,Future Century Ltd(USD),"1,189.79",Facilities Management payments,DFID Tanzania,,400176779
DFID,DFID,13/09/2011,Future Century Ltd(USD),"2,938.98",Facilities Management payments,DFID Tanzania,,400176799
DFID,DFID,16/09/2011,Tanzania Electric supply company Ltd,"1,523.58",Facilities Management payments,DFID Tanzania,,400177325
DFID,DFID,19/09/2011,Future Century Ltd(USD),"2,803.93",Facilities Management payments,DFID Tanzania,,400177336
DFID,DFID,16/09/2011,PROTEA HOTEL OSTERBAY(USD),"3,039.90",Facilities Management payments,DFID Tanzania,,400177432
DFID,DFID,27/09/2011,A & M Executive Cleaning services Co. Ltd,622.47,Facilities Management payments,DFID Uganda,,400178772
DFID,DFID,30/09/2011,British High Commission(Tsh),"1,307.78",Facilities Management payments,DFID Tanzania,,400179106
DFID,DFID,30/09/2011,Future Century Ltd(USD),"1,225.99",Facilities Management payments,DFID Tanzania,,400179247
DFID,DFID,30/09/2011,Future Century Ltd(USD),"1,052.92",Facilities Management payments,DFID Tanzania,,400179253
DFID,DFID,30/09/2011,Future Century Ltd(USD),630.16,Facilities Management payments,DFID Tanzania,,400179254
DFID,DFID,30/09/2011,Future Century Ltd(USD),"1,924.99",Facilities Management payments,DFID Tanzania,,400179255
DFID,DFID,29/09/2011,Joshi Electrical & General Services,696.52,Facilities Management payments,DFID Uganda,,400179304
DFID,DFID,30/09/2011,DOMUS WOODWORKS LIMITED(USD),"2,436.13",Facilities Management payments,DFID Tanzania,,400179324
DFID,DFID,30/09/2011,British High Commission(Tsh),"1,008.57",Facilities Management payments,DFID Tanzania,,400179373
DFID,DFID,30/09/2011,British High Commission(Tsh),"2,516.38",Facilities Management payments,DFID Tanzania,,400179379
DFID,DFID,30/09/2011,K.B.M Investments Ltd,801.04,Facilities Management payments,DFID Uganda,,400179477
DFID,DFID,14/09/2011,SAFECON Electro Mechanical Works PLC,805.40,Other Building Costs,DFID Ethiopia,,400177112
DFID,DFID,14/09/2011,SAFECON Electro Mechanical Works PLC,805.40,Other Building Costs,DFID Ethiopia,,400177112
DFID,DFID,21/09/2011,Foreign & Commonwealth Office,777.34,"Repairs, Maint, Alter - Property & Constrct. Services",DFID Sudan,,151559104
DFID,DFID,21/09/2011,Foreign & Commonwealth Office,548.71,"Repairs, Maint, Alter - Property & Constrct. Services",DFID Sudan,,151559104
DFID,DFID,21/09/2011,Foreign & Commonwealth Office,"1,829.03","Repairs, Maint, Alter - Property & Constrct. Services",DFID Sudan,,151559104
DFID,DFID,28/09/2011,Foreign & Commonwealth Office,"2,269.04","Repairs, Maint, Alter - Property & Constrct. Services",DFID Sudan,,151559118
DFID,DFID,28/09/2011,Foreign & Commonwealth Office,"1,818.45","Repairs, Maint, Alter - Property & Constrct. Services",DFID Sudan,,151559118
DFID,DFID,28/09/2011,Foreign & Commonwealth Office,869.94,"Repairs, Maint, Alter - Property & Constrct. Services",DFID Sudan,,151559118
DFID,DFID,28/09/2011,Foreign & Commonwealth Office,895.68,"Repairs, Maint, Alter - Property & Constrct. Services",DFID Sudan,,151559121
DFID,DFID,07/09/2011,SAFECON Electro Mechanical Works PLC,"15,370.38","Repairs, Maint, Alter - Property & Constrct. Services",DFID Ethiopia,,400175511
DFID,DFID,07/09/2011,SAFECON Electro Mechanical Works PLC,"3,332.91","Repairs, Maint, Alter - Property & Constrct. Services",DFID Ethiopia,,400176023
DFID,DFID,07/09/2011,SAFECON Electro Mechanical Works PLC,890.44,"Repairs, Maint, Alter - Property & Constrct. Services",DFID Ethiopia,,400176023
DFID,DFID,13/09/2011,V. Karibian,903.18,"Repairs, Maint, Alter - Property & Constrct. Services",DFID Ethiopia,,400176750
DFID,DFID,14/09/2011,SAFECON Electro Mechanical Works PLC,"16,460.33","Repairs, Maint, Alter - Property & Constrct. Services",DFID Ethiopia,,400177116
DFID,DFID,22/09/2011,TURNER & TOWNSEND,"20,466.82","Repairs, Maint, Alter - Property & Constrct. Services",DFID South Sudan,,400178459
DFID,DFID,15/09/2011,Corporate Travel provider,631.32,Air fares,DFID Sudan,,6000057
DFID,DFID,15/09/2011,Corporate Travel provider,771.75,Air fares,DFID Kenya,,6000057
DFID,DFID,15/09/2011,Corporate Travel provider,672.60,Air fares,DFID Sudan,,6000057
DFID,DFID,15/09/2011,Corporate Travel provider,579.16,Air fares,DFID Kenya,,6000057
DFID,DFID,15/09/2011,Corporate Travel provider,651.70,Air fares,DFID Kenya,,6000057
DFID,DFID,15/09/2011,Corporate Travel provider,771.75,Air fares,DFID Kenya,,6000057
DFID,DFID,15/09/2011,Corporate Travel provider,543.70,Air fares,DFID Kenya,,6000057
DFID,DFID,15/09/2011,Corporate Travel provider,519.03,Air fares,DFID Sudan,,6000057
DFID,DFID,15/09/2011,Corporate Travel provider,955.83,Air fares,DFID Uganda,,6000057
DFID,DFID,15/09/2011,Corporate Travel provider,631.32,Air fares,DFID Sudan,,6000057
DFID,DFID,15/09/2011,Corporate Travel provider,622.08,Air fares,DFID Ethiopia,,6000057
DFID,DFID,15/09/2011,Corporate Travel provider,777.11,Air fares,DFID Sudan,,6000057
DFID,DFID,15/09/2011,Corporate Travel provider,777.11,Air fares,DFID Sudan,,6000057
DFID,DFID,15/09/2011,Corporate Travel provider,519.03,Air fares,DFID Sudan,,6000057
DFID,DFID,15/09/2011,Corporate Travel provider,543.70,Air fares,DFID Kenya,,6000057
DFID,DFID,15/09/2011,Corporate Travel provider,651.70,Air fares,DFID Kenya,,6000057
DFID,DFID,27/09/2011,Corporate Travel provider,584.36,Air fares,Africa Regional Department,,6000058
DFID,DFID,27/09/2011,Corporate Travel provider,658.48,Air fares,DFID Ethiopia,,6000058
DFID,DFID,27/09/2011,Corporate Travel provider,591.23,Air fares,Africa Regional Department,,6000058
DFID,DFID,27/09/2011,Corporate Travel provider,606.99,Air fares,DFID Uganda,,6000058
DFID,DFID,27/09/2011,Corporate Travel provider,606.99,Air fares,DFID Uganda,,6000058
DFID,DFID,27/09/2011,Corporate Travel provider,706.99,Air fares,DFID Uganda,,6000058
DFID,DFID,27/09/2011,Corporate Travel provider,584.36,Air fares,Africa Regional Department,,6000058
DFID,DFID,01/09/2011,Bon Voyage Travel Centre Ltd(USD),650.31,Air fares,DFID Tanzania,,400175200
DFID,DFID,04/09/2011,Recipient name withheld,992.30,Air fares,DFID Sudan,,400175419
DFID,DFID,12/09/2011,Bon Voyage Travel Centre Ltd(USD),862.18,Air fares,DFID Tanzania,,400176647
DFID,DFID,16/09/2011,BCD Travel (USD),892.05,Air fares,DFID Kenya,,400177193
DFID,DFID,15/09/2011,SATGURU TRAVEL & TOURS SERVICE,"1,062.14",Air fares,DFID Rwanda,,400177390
DFID,DFID,15/09/2011,SATGURU TRAVEL & TOURS SERVICE,982.88,Air fares,DFID Rwanda,,400177391
DFID,DFID,15/09/2011,SATGURU TRAVEL & TOURS SERVICE,"1,268.23",Air fares,DFID Rwanda,,400177394
DFID,DFID,23/09/2011,Bon Voyage Travel Centre Ltd(Tsh),584.37,Air fares,DFID Tanzania,,400178523
DFID,DFID,28/09/2011,D T SMITH,"1,018.15",Air fares,DFID Uganda,,400178813
DFID,DFID,05/09/2011,Jasper-Semu & Associates (USD),"24,143.46",Technical and Advisory Services,DFID Burundi,,400174683
DFID,DFID,08/09/2011,Gibbings Consultant,"11,874.25",Technical and Advisory Services,DFID South Sudan,,400174854
DFID,DFID,19/09/2011,KPMG EAST AFRICA LTD,"534,707.00",Technical and Advisory Services,DFID Tanzania,,400175176
DFID,DFID,19/09/2011,KPMG EAST AFRICA LTD,"125,581.00",Technical and Advisory Services,DFID Tanzania,,400175176
DFID,DFID,01/09/2011,recipient withheld,"8,470.00",Technical and Advisory Services,DFID Ethiopia,,400175199
DFID,DFID,01/09/2011,PUBLIC ADMINISTRATION INTERN,"13,287.30",Technical and Advisory Services,Africa Regional Department,,400175245
DFID,DFID,05/09/2011,Crown Agents Govts and Admin,"1,692.00",Technical and Advisory Services,Africa Regional Department,,400175280
DFID,DFID,01/09/2011,MOTT MACDONALD LTD,"16,832.50",Technical and Advisory Services,DFID Burundi,,400175323
DFID,DFID,05/09/2011,Cambridge  Education Limited,"19,505.00",Technical and Advisory Services,DFID South Sudan,,400175396
DFID,DFID,05/09/2011,  KPMG,"33,358.00",Technical and Advisory Services,DFID Rwanda,,400175397
DFID,DFID,15/09/2011,TRIBAL HELM CORPORATION LTD.,"9,489.39",Technical and Advisory Services,DFID Rwanda,,400175437
DFID,DFID,05/09/2011,TRIBAL HELM CORPORATION LTD.,"13,068.60",Technical and Advisory Services,DFID Rwanda,,400175439
DFID,DFID,13/09/2011,Crown Agents Govts and Admin,"21,330.00",Technical and Advisory Services,DFID Sudan,,400175625
DFID,DFID,05/09/2011,ADAM SMITH INTERNATIONAL  LTD,"37,366.85",Technical and Advisory Services,DFID Kenya,,400175628
DFID,DFID,05/09/2011,ADAM SMITH INTERNATIONAL  LTD,"11,460.10",Technical and Advisory Services,DFID Kenya,,400175628
DFID,DFID,05/09/2011,ADAM SMITH INTERNATIONAL  LTD,"69,297.81",Technical and Advisory Services,DFID Kenya,,400175629
DFID,DFID,05/09/2011,ADAM SMITH INTERNATIONAL  LTD,"45,867.44",Technical and Advisory Services,DFID Kenya,,400175629
DFID,DFID,09/09/2011,Future Century Ltd(USD),668.12,Technical and Advisory Services,DFID Tanzania,,400175735
DFID,DFID,07/09/2011,D T SMITH,"5,304.00",Technical and Advisory Services,DFID Uganda,,400175776
DFID,DFID,07/09/2011,Crown Agents Govts and Admin,"7,963.20",Technical and Advisory Services,Africa Regional Department,,400175818
DFID,DFID,08/09/2011,Future Century Ltd(USD),581.53,Technical and Advisory Services,DFID Tanzania,,400175885
DFID,DFID,14/09/2011,BMB  MOTT  MACDONALD,"1,500,000.00",Technical and Advisory Services,DFID South Sudan,,400175919
DFID,DFID,09/09/2011,BMB  MOTT  MACDONALD,"144,788.70",Technical and Advisory Services,DFID South Sudan,,400176249
DFID,DFID,08/09/2011,HLSP LIMITED,"14,925.71",Technical and Advisory Services,DFID South Sudan,,400176275
DFID,DFID,14/09/2011,British High Commission(Tsh),684.18,Technical and Advisory Services,DFID Tanzania,,400176399
DFID,DFID,14/09/2011,British High Commission(Tsh),"1,041.31",Technical and Advisory Services,DFID Tanzania,,400176399
DFID,DFID,09/09/2011,SAVE THE CHILDREN FUND,"590,330.00",Technical and Advisory Services,DFID Ethiopia,,400176465
DFID,DFID,09/09/2011,WSP INTERNATIONAL LIMITED,"13,063.89",Technical and Advisory Services,DFID Uganda,,400176477
DFID,DFID,09/09/2011,Crown Agents Govts and Admin,"64,200.00",Technical and Advisory Services,DFID Ethiopia,,400176490
DFID,DFID,14/09/2011,Maizemoor International Inc,"10,021.89",Technical and Advisory Services,Africa Regional Department,,400176656
DFID,DFID,15/09/2011,LIVERPOOL ASSOCIATES IN TROP. HEALTH,"15,037.23",Technical and Advisory Services,DFID Kenya,,400176661
DFID,DFID,13/09/2011,Crown Agents Govts and Admin,"61,616.32",Technical and Advisory Services,DFID Uganda,,400176681
DFID,DFID,13/09/2011,Future Century Ltd(USD),734.74,Technical and Advisory Services,DFID Tanzania,,400176799
DFID,DFID,13/09/2011,DAI EUROPE LIMITED,"41,706.91",Technical and Advisory Services,DFID Kenya,,400176907
DFID,DFID,13/09/2011,COFFEY INTERNATIONAL DEVELOPMENT LTD,"10,928.58",Technical and Advisory Services,DFID Kenya,,400176988
DFID,DFID,16/09/2011,Health Research for Action (HERA),"160,568.07",Technical and Advisory Services,DFID Burundi,,400177150
DFID,DFID,15/09/2011,Fairview Hotel,920.76,Technical and Advisory Services,DFID Kenya,,400177181
DFID,DFID,16/09/2011,recipient withheld,"16,200.00",Technical and Advisory Services,DFID Rwanda,,400177225
DFID,DFID,16/09/2011,recipient withheld,"30,729.80",Technical and Advisory Services,DFID Rwanda,,400177225
DFID,DFID,16/09/2011,recipient withheld,"5,835.00",Technical and Advisory Services,DFID Ethiopia,,400177270
DFID,DFID,19/09/2011,Future Century Ltd(USD),"1,345.03",Technical and Advisory Services,DFID Tanzania,,400177336
DFID,DFID,19/09/2011,Future Century Ltd(USD),682.03,Technical and Advisory Services,DFID Tanzania,,400177336
DFID,DFID,15/09/2011,ADAM SMITH INTERNATIONAL  LTD,"169,472.87",Technical and Advisory Services,DFID South Sudan,,400177409
DFID,DFID,15/09/2011,HTSPE LTD,"26,039.96",Technical and Advisory Services,DFID Kenya,,400177417
DFID,DFID,16/09/2011,"Save the Children UK,Ethiopia","8,864.58",Technical and Advisory Services,DFID Ethiopia,,400177447
DFID,DFID,16/09/2011,MAXWELL STAMP PLC,"198,284.47",Technical and Advisory Services,DFID Uganda,,400177499
DFID,DFID,20/09/2011,Martin Cumpa Castro(Tz)USD,"6,705.92",Technical and Advisory Services,DFID Tanzania,,400177816
DFID,DFID,21/09/2011,Crown Agents Govts and Admin,"4,991.03",Technical and Advisory Services,DFID South Sudan,,400177824
DFID,DFID,20/09/2011,HLSP LTD,"3,720.00",Technical and Advisory Services,DFID Ethiopia,,400177879
DFID,DFID,28/09/2011,Coffey International Development,"42,258.71",Technical and Advisory Services,DFID Tanzania,,400177910
DFID,DFID,21/09/2011,KISAKA & COMPANY CPA,"3,221.26",Technical and Advisory Services,DFID Uganda,,400178045
DFID,DFID,27/09/2011,PricewaterhouseCoopers Rwanda Limited,"4,476.07",Technical and Advisory Services,DFID Rwanda,,400178491
DFID,DFID,22/09/2011,MAXWELL STAMP PLC,"216,669.06",Technical and Advisory Services,DFID Uganda,,400178500
DFID,DFID,23/09/2011,ADAM SMITH INTERNATIONAL  LTD,826.23,Technical and Advisory Services,DFID Uganda,,400178645
DFID,DFID,27/09/2011,DELTA PARTNERSHIP SOLUTIONS LTD,"2,530.24",Technical and Advisory Services,DFID Ethiopia,,400178647
DFID,DFID,27/09/2011,Ms. Feza Gertrude Kabasweka,669.52,Technical and Advisory Services,DFID Uganda,,400178781
DFID,DFID,27/09/2011,Development Statistics Ltd,"2,756.00",Technical and Advisory Services,DFID Rwanda,,400178802
DFID,DFID,27/09/2011,Development Statistics Ltd,"8,400.00",Technical and Advisory Services,DFID Rwanda,,400178802
DFID,DFID,27/09/2011,CARDIFF UNIVERSITY,"1,413.82",Technical and Advisory Services,Africa Regional Department,,400178939
DFID,DFID,27/09/2011,ADAM SMITH INTERNATIONAL  LTD,"12,437.50",Technical and Advisory Services,DFID Kenya,,400178945
DFID,DFID,27/09/2011,ADAM SMITH INTERNATIONAL  LTD,"12,299.29",Technical and Advisory Services,DFID Kenya,,400178945
DFID,DFID,27/09/2011,ADAM SMITH INTERNATIONAL  LTD,"104,745.35",Technical and Advisory Services,DFID South Sudan,,400178956
DFID,DFID,28/09/2011,Paul Bennell,"5,500.00",Technical and Advisory Services,DFID Kenya,,400178987
DFID,DFID,29/09/2011,WSP INTERNATIONAL LIMITED,"11,116.00",Technical and Advisory Services,Africa Regional Department,,400179028
DFID,DFID,28/09/2011,recipient withheld,"8,250.00",Technical and Advisory Services,DFID Kenya,,400179042
DFID,DFID,28/09/2011,WSP INTERNATIONAL LIMITED,"32,794.80",Technical and Advisory Services,DFID Ethiopia,,400179118
DFID,DFID,29/09/2011,HLSP LIMITED,"3,452.53",Technical and Advisory Services,DFID Uganda,,400179122
DFID,DFID,29/09/2011,THE MEDIAE COMPANY,"59,905.00",Technical and Advisory Services,DFID Kenya,,400179275
DFID,DFID,30/09/2011,Pastoralist Shade Initiative,"20,011.08",Technical and Advisory Services,DFID Kenya,,400179295
DFID,DFID,30/09/2011,Crown Agents Govts and Admin,"19,339.20",Technical and Advisory Services,DFID Kenya,,400179406
DFID,DFID,30/09/2011,ATOS CONSULTING LIMITED,"172,794.28",Technical and Advisory Services,DFID South Sudan,,400179571
DFID,DFID,30/09/2011,ATOS CONSULTING LIMITED,"259,191.42",Technical and Advisory Services,DFID Sudan,,400179571
DFID,DFID,30/09/2011,ATOS CONSULTING LIMITED,"259,202.92",Technical and Advisory Services,DFID Sudan,,400179573
DFID,DFID,30/09/2011,ATOS CONSULTING LIMITED,"172,803.00",Technical and Advisory Services,DFID South Sudan,,400179573
DFID,DFID,05/09/2011,MTN RWANDACELL,542.79,Telephone Usage & services,DFID Rwanda,,400175210
DFID,DFID,08/09/2011, FCO SERVICES,507.63,Telephone Usage & services,DFID Ethiopia,,400175477
DFID,DFID,09/09/2011,VODACOM TANZANIA,"1,745.07",Telephone Usage & services,DFID Tanzania,,400175693
DFID,DFID,07/09/2011,MTN RWANDACELL,587.00,Telephone Usage & services,DFID Rwanda,,400176054
DFID,DFID,15/09/2011,Uganda Telecom,519.94,Telephone Usage & services,DFID Uganda,,400177036
DFID,DFID,19/09/2011,VODACOM TANZANIA,937.67,Telephone Usage & services,DFID Tanzania,,400177436
DFID,DFID,26/09/2011,MTN RWANDACELL,600.23,Telephone Usage & services,DFID Rwanda,,400178066
DFID,DFID,30/09/2011,British High Commission (RW),"2,480.82",Telephone Usage & services,DFID Rwanda,,400179504
DFID,DFID,30/09/2011,British High Commission (RW),"1,063.21",Telephone Usage & services,DFID Rwanda,,400179504
DFID,DFID,07/09/2011,INSIGHTS LEARNING & DEVELOPMENT LTD,"2,204.55",Training - Course Fees,DFID Uganda,,400175311
DFID,DFID,07/09/2011,Wossenu Demissie,546.88,Training - Course Fees,DFID Ethiopia,,400175828
DFID,DFID,22/09/2011,Uganda Management Institute,"1,026.04",Training - Course Fees,DFID Uganda,,400178237
DFID,DFID,22/09/2011,British Airways PLC,"1,028.74",Training - Course Fees,Africa Regional Department,,400178245
DFID,DFID,02/09/2011,Government Procurement Card,"1,182.17",Training - Travel & Subsistence,DFID Uganda,,100043
DFID,DFID,07/09/2011,Bon Voyage Travel Centre Ltd(USD),915.32,Training - Travel & Subsistence,DFID Tanzania,,400176057
DFID,DFID,16/09/2011,BCD Travel (USD),965.91,Training - Travel & Subsistence,DFID Kenya,,400177193
DFID,DFID,16/09/2011,BCD Travel (USD),"1,057.45",Training - Travel & Subsistence,DFID South Sudan,,400177193
DFID,DFID,21/09/2011,The Express Travel Group,798.46,Training - Travel & Subsistence,DFID Sudan,,400178105
DFID,DFID,21/09/2011,The Express Travel Group,709.72,Training - Travel & Subsistence,DFID Ethiopia,,400178105
DFID,DFID,29/09/2011,EMIRATES,693.10,Training - Travel & Subsistence,DFID Uganda,,400179267
DFID,DFID,20/09/2011,RedR UK,967.00,Training Providers/Facilitation Services,DFID Burundi,,400177961
DFID,DFID,28/09/2011,Recipient name withheld,825.65,Travel - Subsistence,DFID Sudan,,151559121
DFID,DFID,13/09/2011,Recipient name withheld,508.39,Travel - Subsistence,DFID Tanzania,,400176824
DFID,DFID,21/09/2011,Recipient name withheld,508.39,Travel - Subsistence,DFID Tanzania,,400177830
DFID,DFID,21/09/2011,The Express Travel Group,"1,953.17",Travel - Subsistence,DFID Ethiopia,,400178105
DFID,DFID,29/09/2011,Recipient name withheld,502.54,Travel - Subsistence,DFID South Sudan,,400179372
DFID,DFID,13/09/2011,International Monetary Fund (GBP),"125,000.00",Aid Programme - Trust Funds contributions,DFID Burundi,,400176967
DFID,DFID,15/09/2011,Kingsway Tyres Limited,807.72,Vehicle Tyres,DFID Kenya,,400177135
DFID,DFID,15/09/2011,UNDP MULTI-DONOR TRUST FUND OFFICE (USD) ACCOUNT,"1,750,000.00",Aid Programme - Voluntary contributions,DFID Somalia,,400177081
DFID,DFID,15/09/2011,UNDP CONTRIBUTIONS ACCOUNT,"1,000,000.00",Aid Programme - Voluntary contributions,DFID Ethiopia,,400177271
DFID,DFID,19/09/2011,UNDP CONTRIBUTIONS ACCOUNT,"160,973.00",Aid Programme - Voluntary contributions,DFID Somalia,,400177562
DFID,DFID,19/09/2011,UNDP CONTRIBUTIONS ACCOUNT,"375,930.00",Aid Programme - Voluntary contributions,DFID Somalia,,400177562
DFID,DFID,21/09/2011,UNDP CONTRIBUTIONS GBP,"100,000.00",Aid Programme - Voluntary contributions,DFID Uganda,,400178154
DFID,DFID,27/09/2011, UNICEF,"26,136,347.00",Aid Programme - Voluntary contributions,DFID Somalia,,400178787
DFID,DFID,29/09/2011,The Food and Agriculture Organization Of The United Nations,"4,000,000.00",Aid Programme - Voluntary contributions,DFID Somalia,,400178803
DFID,DFID,30/09/2011,UNDP CONTRIBUTIONS ACCOUNT,"2,500,000.00",Aid Programme - Voluntary contributions,DFID Sudan,,400179531
DFID,DFID,08/09/2011,Development Initiatives Poverty Research Ltd,"83,238.00",Aid Programme - Accountable Grant Payments,Value for Money,,400176184
DFID,DFID,30/09/2011,Government Procurement Card,"2,376.00",Computer Software Licenses,Finance and Performance Department,,100047
DFID,DFID,02/09/2011,Government Procurement Card,559.20,Contract & Agency Staff,Finance and Performance Department,,100043
DFID,DFID,02/09/2011,Government Procurement Card,699.00,Contract & Agency Staff,Finance and Performance Department,,100043
DFID,DFID,30/09/2011,MICHAEL PAGE INTERNATIONAL RECRUITMENT LIMITED,"1,654.50",Contract & Agency Staff,Procurement Department,,400179596
DFID,DFID,12/09/2011,RR DONNELLEY,840.00,Office Supplies,Overseas Pensions Department,,400176472
DFID,DFID,07/09/2011,REDACTIVE PUBLISHING LIMITED,600.00,Recruitment costs,FCPD Director,,400176090
DFID,DFID,15/09/2011,Corporate Travel provider,576.29,Air fares,Procurement Department,,6000057
DFID,DFID,07/09/2011,Crown Agents Govts and Admin,"36,250.00",Technical and Advisory Services,Finance and Performance Department,,400176037
DFID,DFID,21/09/2011,MICHAEL PAGE INTERNATIONAL RECRUITMENT LIMITED,"1,323.60",Contract & Agency Staff,Procurement Department,,400178115
DFID,DFID,30/09/2011,KPMG LLP,"26,478.00",Technical and Advisory Services,Procurement Department,TAX ADVISORY SERVICES,400179369
DFID,DFID,30/09/2011,Government Procurement Card,"1,152.46",Books & Publications,HR Advisory Group,,100047
DFID,DFID,14/09/2011,CUSTOMER CONTACT ASSOCATION,"1,198.00","Conferences, Seminars & Meeting/Event Resource",HR Operations,,400177166
DFID,DFID,30/09/2011,Lamar Travel Agency,703.77,"Conferences, Seminars & Meeting/Event Resource",HR DFID Initiatives,,400179559
DFID,DFID,02/09/2011,Government Procurement Card,725.52,Contract & Agency Staff,HR Operations,,100043
DFID,DFID,09/09/2011,EDF ENERGY,"28,624.90",Electricity,Palace Street,ELECTRICITY CONSUMPTION PALACE STREET AUGUST 11,400175822
DFID,DFID,07/09/2011,EDF ENERGY,"13,397.50",Electricity,Abercrombie House,,400176039
DFID,DFID,14/09/2011,FCO SERVICES,"3,890.45",FCO shared service charges,Palace Street,,400176690
DFID,DFID,02/09/2011,CORONA ENERGY,"1,914.84",Gas,Palace Street,,400175322
DFID,DFID,01/09/2011,CORONA ENERGY,549.18,Gas,Abercrombie House,,400175328
DFID,DFID,19/09/2011,CORONA ENERGY,584.56,Gas,Abercrombie House,,400177122
DFID,DFID,21/09/2011,CORONA ENERGY,"1,696.72",Gas,Palace Street,,400177306
DFID,DFID,21/09/2011,CORONA ENERGY,"1,236.11",Gas,Palace Street,,400177307
DFID,DFID,27/09/2011,Corporate Travel provider,"1,769.17",Hotels - Accommodation only,HR DFID Initiatives,,6000058
DFID,DFID,15/09/2011,Crown Agents Govts and Admin,"3,526.30",Legal costs,HR Business Partners,,400171680
DFID,DFID,15/09/2011,Crown Agents Govts and Admin,"3,317.76",Legal costs,HR Business Partners,,400171680
DFID,DFID,02/09/2011,Government Procurement Card,525.00,Office Equipment - Purchases,Palace Street,,100043
DFID,DFID,20/09/2011,ENVIRONMENT AGENCY,"1,290.00",Office Equipment - Purchases,Palace Street,,400177899
DFID,DFID,09/09/2011,ROBSON ASSOCIATES,"1,311,421.00",Operating Lease rental of buildings,Palace Street,QUARTERLY RENT  29 SEPT - 24 DEC 2011,400176416
DFID,DFID,02/09/2011,Government Procurement Card,714.00,Other Admin Costs,Office Services Department,,100043
DFID,DFID,07/09/2011,PITNEY BOWES (RECREDIT FRANKING M/C),"1,000.00",Postage Costs,Palace Street,,400176159
DFID,DFID,07/09/2011,ECA INTERNATIONAL,"9,234.00",Professional member subscriptions,HR DFID Initiatives,,400175641
DFID,DFID,23/09/2011,TOWERS WATSON UK LTD,"3,407.50",Professional member subscriptions,HR DFID Initiatives,,400178651
DFID,DFID,12/09/2011,Penna Barkers,"4,545.94",Recruitment costs,HR DFID Initiatives,,400176457
DFID,DFID,21/09/2011,Devex (DevelopmentEx.com Inc.),"5,097.10",Recruitment costs,HR DFID Initiatives,,400177762
DFID,DFID,23/09/2011,Penna Barkers,"13,913.30",Recruitment costs,HR DFID Initiatives,,400178629
DFID,DFID,23/09/2011,Penna Barkers,"3,703.20",Recruitment costs,HR DFID Initiatives,Newspaper Advertisements 12-13 Sep 2011,400178630
DFID,DFID,29/09/2011,MITIE Technical Facilities Management Ltd,"11,241.99",Cleaning Costs,Abercrombie House,,400179313
DFID,DFID,29/09/2011,MITIE Technical Facilities Management Ltd,"20,186.22",Cleaning Costs,Palace Street,,400179313
DFID,DFID,29/09/2011,MITIE Technical Facilities Management Ltd,"9,184.06",Facilities Management payments,Abercrombie House,,400179313
DFID,DFID,29/09/2011,MITIE Technical Facilities Management Ltd,"15,741.77",Facilities Management payments,Palace Street,,400179313
DFID,DFID,05/09/2011,MITIE Technical Facilities Management Ltd,677.60,Other Building Costs,Palace Street,,400175447
DFID,DFID,05/09/2011,MITIE Technical Facilities Management Ltd,"7,549.08",Other Building Costs,Abercrombie House,,400175461
DFID,DFID,05/09/2011,MITIE Technical Facilities Management Ltd,"4,158.00",Other Building Costs,Abercrombie House,,400175480
DFID,DFID,05/09/2011,MITIE Technical Facilities Management Ltd,550.00,Other Building Costs,Palace Street,,400175483
DFID,DFID,05/09/2011,MITIE Technical Facilities Management Ltd,557.09,Other Building Costs,Abercrombie House,,400175553
DFID,DFID,05/09/2011,MITIE Technical Facilities Management Ltd,"2,519.00",Other Building Costs,Abercrombie House,,400175559
DFID,DFID,07/09/2011,MITIE Technical Facilities Management Ltd,897.13,Other Building Costs,Palace Street,,400175563
DFID,DFID,22/09/2011,GDC Mechanical Building Services Ltd,834.00,Other Building Costs,Palace Street,,400178408
DFID,DFID,22/09/2011,GDC Mechanical Building Services Ltd,921.00,Other Building Costs,Palace Street,,400178444
DFID,DFID,29/09/2011,MITIE Technical Facilities Management Ltd,"5,477.16","Repairs, Maint, Alter - Property & Constrct. Services",Abercrombie House,,400179313
DFID,DFID,29/09/2011,MITIE Technical Facilities Management Ltd,"7,154.52","Repairs, Maint, Alter - Property & Constrct. Services",Palace Street,,400179313
DFID,DFID,07/09/2011,AZCOM BUSINESS SOLUTIONS LIMITED,600.00,"Repairs, Maint, Alter - Removal & waste disposal services",Palace Street,,400175961
DFID,DFID,07/09/2011,SHANKS WASTE MANAGMENT LIMITED,"1,059.90","Repairs, Maint, Alter - Removal & waste disposal services",Abercrombie House,,400176160
DFID,DFID,13/09/2011,BYWATERS,"1,110.00","Repairs, Maint, Alter - Removal & waste disposal services",Palace Street,,400176447
DFID,DFID,12/09/2011,BYWATERS,"1,090.55","Repairs, Maint, Alter - Removal & waste disposal services",Palace Street,,400176450
DFID,DFID,12/09/2011,BYWATERS,"1,257.05","Repairs, Maint, Alter - Removal & waste disposal services",Palace Street,,400176458
DFID,DFID,02/09/2011,Government Procurement Card,653.28,Reproduction & Printing Materials,Palace Street,,100043
DFID,DFID,05/09/2011,Government Procurement Card,653.28,Reproduction & Printing Materials,Palace Street,,100044
DFID,DFID,05/09/2011,Government Procurement Card,653.28,Reproduction & Printing Materials,Palace Street,,100045
DFID,DFID,30/09/2011,Government Procurement Card,653.28,Reproduction & Printing Materials,Palace Street,,100047
DFID,DFID,09/09/2011,BANNER BUSINESS SUPPLIES LTD,"1,093.44",Reproduction & Printing Materials,Abercrombie House,,400176417
DFID,DFID,15/09/2011,Corporate Travel provider,646.51,Air fares,HR Business Partners,,6000057
DFID,DFID,05/09/2011,recipient name withheld,"1,031.18",Air fares,HR DFID Initiatives,,400174808
DFID,DFID,02/09/2011,recipient name withheld,"1,107.61",Air fares,HR DFID Initiatives,,400175051
DFID,DFID,06/09/2011,recipient name withheld,983.32,Air fares,HR DFID Initiatives,,400175744
DFID,DFID,09/09/2011,recipient name withheld,964.94,Air fares,HR DFID Initiatives,,400176326
DFID,DFID,09/09/2011,recipient name withheld,668.66,Air fares,HR DFID Initiatives,,400176329
DFID,DFID,21/09/2011,recipient name withheld,"1,496.00",Air fares,HR DFID Initiatives,,400177379
DFID,DFID,21/09/2011,recipient name withheld,728.86,Air fares,HR DFID Initiatives,,400177393
DFID,DFID,21/09/2011,recipient name withheld,786.11,Air fares,HR DFID Initiatives,,400177400
DFID,DFID,21/09/2011,recipient name withheld,"1,216.00",Air fares,HR DFID Initiatives,,400178150
DFID,DFID,23/09/2011,recipient name withheld,852.36,Air fares,HR DFID Initiatives,,400178424
DFID,DFID,29/09/2011,SATGURU TRAVEL & TOURS SERVICE,"1,043.51",Air fares,HR DFID Initiatives,,400179459
DFID,DFID,02/09/2011,XAFINITY PAYMASTER,"5,807.20",Technical and Advisory Services,HR DFID Initiatives,,400175409
DFID,DFID,12/09/2011,PRICEWATERHOUSECOOPERS,"30,719.58",Technical and Advisory Services,HR Operations,,400176492
DFID,DFID,15/09/2011,Healix International Limited (Fees),"13,952.44",Technical and Advisory Services,HR DFID Initiatives,,400177231
DFID,DFID,29/09/2011,MITIE Technical Facilities Management Ltd,748.27,Technical and Advisory Services,Palace Street,,400179313
DFID,DFID,30/09/2011,Government Procurement Card,540.00,Training - Course Fees,HR Advisory Group,,100047
DFID,DFID,13/09/2011,NATIONAL SCHOOL OF GOVERNMENT,"1,600.00",Training - Course Fees,HR DFID Initiatives,,400176774
DFID,DFID,20/09/2011,INSIGHTS LEARNING & DEVELOPMENT LTD,816.50,Training - Course Fees,Security Section,,400177828
DFID,DFID,22/09/2011,NATIONAL SCHOOL OF GOVERNMENT,"1,284.12",Training Providers/Facilitation Services,HR DFID Initiatives,,400177465
DFID,DFID,07/09/2011,BUSINESS STREAM,"10,975.20",Water charges,Abercrombie House,,400175791
DFID,DFID,08/09/2011,RSM Tenon Limited,"2,000.00",Auditors Remuneration & Expenses - Cash,Internal Audit Department,,400175817
DFID,DFID,27/09/2011,Corporate Travel provider,"1,040.98",Hotels - Accommodation only,Internal Audit Department,,6000058
DFID,DFID,27/09/2011,Corporate Travel provider,"1,054.56",Hotels - Accommodation only,Internal Audit Department,,6000058
DFID,DFID,27/09/2011,Corporate Travel provider,"1,040.98",Hotels - Accommodation only,Internal Audit Department,,6000058
DFID,DFID,27/09/2011,Corporate Travel provider,686.52,Air fares,Internal Audit Department,,6000058
DFID,DFID,27/09/2011,Corporate Travel provider,"1,048.22",Air fares,Internal Audit Department,,6000058
DFID,DFID,27/09/2011,Corporate Travel provider,863.50,Air fares,Internal Audit Department,,6000058
DFID,DFID,27/09/2011,Corporate Travel provider,686.52,Air fares,Internal Audit Department,,6000058
DFID,DFID,27/09/2011,Corporate Travel provider,686.52,Air fares,Internal Audit Department,,6000058
DFID,DFID,27/09/2011,Corporate Travel provider,"1,557.17",Air fares,Internal Audit Department,,6000058
DFID,DFID,13/09/2011,NATIONAL SCHOOL OF GOVERNMENT,"1,420.00",Training - Course Fees,Internal Audit Department,,400176963
DFID,DFID,27/09/2011,NATIONAL SCHOOL OF GOVERNMENT,"1,175.00",Training - Course Fees,Internal Audit Department,,400178428
DFID,DFID,22/09/2011,NATIONAL SCHOOL OF GOVERNMENT,"1,420.00",Training - Course Fees,Internal Audit Department,,400178486
DFID,DFID,29/09/2011,INSTITUTE OF INTERNAL AUDITORS-UK,594.00,Training - Course Fees,Internal Audit Department,,400179358
DFID,DFID,29/09/2011,INSTITUTE OF INTERNAL AUDITORS-UK,594.00,Training - Course Fees,Internal Audit Department,,400179437
DFID,DFID,13/09/2011,Crown Agents Govts and Admin,"902,324.00",Aid Programme - Accountable Grant Payments,Private Sector Department,,400176973
DFID,DFID,22/09/2011,Supplier name withheld,"14,296.84",Consultancy Services,Private Sector Department,,400178463
DFID,DFID,02/09/2011,CDB,"2,117,959.04",Aid Programme - Core contributions,Regional development Banks,,400174690
DFID,DFID,09/09/2011,SG HAMBROS BANK & TRUST LTD (USD),"375,000.00",Aid Programme - Core contributions,Private Sector Department,,400175994
DFID,DFID,07/09/2011,SG HAMBROS TRUST COMPANY LIMITED,"139,994.00",Aid Programme - Core contributions,Private Sector Department,,400176083
DFID,DFID,30/09/2011,Crown Agents Govts and Admin,"3,477,161.32",Aid Programme - Contributions to Debt Relief,"HIPC , Debt Relief",,400179006
DFID,DFID,30/09/2011,Crown Agents Govts and Admin,"377,069.00",Aid Programme - Contributions to Debt Relief,"HIPC , Debt Relief",,400179500
DFID,DFID,14/09/2011,IBRD (GEF GFATM ETF PNs),"52,000,000.00",Encashment of Promissory Notes,Global Funds Department,,400177096
DFID,DFID,27/09/2011,Department for International Development,"3,349,000.00",Encashment of Promissory Notes,Regional development Banks,,400178751
DFID,DFID,27/09/2011,Department for International Development,"4,224,933.50",Encashment of Promissory Notes,Regional development Banks,,400178753
DFID,DFID,27/09/2011,Department for International Development,"55,066.50",Encashment of Promissory Notes,Regional development Banks,,400178761
DFID,DFID,02/09/2011,Government Procurement Card,579.08,Hotels - Accommodation only,Global Funds Department,,100043
DFID,DFID,19/09/2011,Foreign & Commonwealth Office,"3,312.61",Hotels - Accommodation only,International Directors Office,,151559099
DFID,DFID,20/09/2011,Recipient name withheld,690.46,Hotels - Accommodation only,Private Sector Department,,400177992
DFID,DFID,20/09/2011,Recipient name withheld,627.39,Hotels - Accommodation only,Private Sector Department,,400177992
DFID,DFID,15/09/2011,Crown Agents Govts and Admin,"8,110.08",Legal costs,Private Sector Department,,400171680
DFID,DFID,15/09/2011,Crown Agents Govts and Admin,552.96,Legal costs,Global Funds Department,,400171680
DFID,DFID,02/09/2011,TREASURY SOLICITORS CASH ACC,617.50,Legal costs,IFI  Admin,,400175057
DFID,DFID,07/09/2011,TREASURY SOLICITORS CASH ACC,"1,335.00",Legal costs,IFI  Admin,,400175392
DFID,DFID,02/09/2011,Government Procurement Card,544.23,Air fares,Global Funds Department,,100043
DFID,DFID,02/09/2011,Government Procurement Card,540.00,Air fares,International Directors Office,,100043
DFID,DFID,15/09/2011,Corporate Travel provider,"5,729.23",Air fares,International Directors Office,,6000057
DFID,DFID,15/09/2011,Foreign & Commonwealth Office,598.53,Air fares,International Directors Office,,6000057
DFID,DFID,27/09/2011,Corporate Travel provider,"1,079.09",Air fares,Private Sector Department,,6000058
DFID,DFID,27/09/2011,Corporate Travel provider,719.93,Air fares,IFI  Admin,,6000058
DFID,DFID,15/09/2011,EMERGING MARKETS GROUP,"135,619.61",Technical and Advisory Services,Private Sector Department,,400177075
DFID,DFID,14/09/2011,EMERGING MARKETS GROUP,"7,200.00",Technical and Advisory Services,Private Sector Department,,400177077
DFID,DFID,15/09/2011,GBRW LIMITED,"2,662.80",Technical and Advisory Services,IFI  Admin,,400177244
DFID,DFID,15/09/2011,GBRW LIMITED,"12,501.60",Technical and Advisory Services,IFI  Admin,,400177244
DFID,DFID,16/09/2011,Nathan Associates London Ltd,"84,580.50",Technical and Advisory Services,Private Sector Department,,400177383
DFID,DFID,16/09/2011,Nathan Associates London Ltd,"2,537.42",Technical and Advisory Services,Private Sector Department,,400177384
DFID,DFID,15/09/2011,Nathan Associates London Ltd,"8,360.69",Technical and Advisory Services,Private Sector Department,,400177406
DFID,DFID,20/09/2011,MAXWELL STAMP PLC,"14,544.64",Technical and Advisory Services,Private Sector Department,,400178012
DFID,DFID,20/09/2011,MAXWELL STAMP PLC,"2,456.47",Technical and Advisory Services,Private Sector Department,,400178012
DFID,DFID,20/09/2011,MAXWELL STAMP PLC,"25,861.73",Technical and Advisory Services,Private Sector Department,,400178017
DFID,DFID,23/09/2011,Barry Morris,800.00,Technical and Advisory Services,Private Sector Department,,400178250
DFID,DFID,27/09/2011,PRICEWATERHOUSECOOPERS,"121,364.63",Technical and Advisory Services,Private Sector Department,,400178950
DFID,DFID,16/09/2011,CIPFA BUSINESS LIMITED,502.00,Training - Course Fees,International Directors Office,,400177450
DFID,DFID,30/09/2011,Government Procurement Card,"1,048.12",Travel - Subsistence,Global Funds Department,,100047
DFID,DFID,02/09/2011,Government Procurement Card,541.53,Other travel costs,International Directors Office,,100043
DFID,DFID,02/09/2011,Government Procurement Card,"1,374.80",Contract & Agency Staff,Global Partnerships Department,,100043
DFID,DFID,30/09/2011,COMMONWEALTH OF LEARNING,"1,100,000.00",Aid Programme - Core contributions,United Nations and Commonwealth Dept (UNCD),,400179514
DFID,DFID,19/09/2011,Foreign & Commonwealth Office,"2,471.51",FCO shared service charges,Global Partnerships Department,,151559097
DFID,DFID,19/09/2011,Foreign & Commonwealth Office,637.81,FCO shared service charges,Global Partnerships Department,,151559097
DFID,DFID,19/09/2011,Foreign & Commonwealth Office,"6,534.77",FCO shared service charges,Global Partnerships Department,,151559097
DFID,DFID,19/09/2011,Foreign & Commonwealth Office,"2,311.01",FCO shared service charges,Global Partnerships Department,,151559099
DFID,DFID,15/09/2011,Corporate Travel provider,"2,624.03",Hotels - Accommodation only,United Nations and Commonwealth Dept (UNCD),,6000057
DFID,DFID,19/09/2011,Recipient name withheld,"1,539.96",Hotels - Accommodation only,United Nations and Commonwealth Dept (UNCD),,400177780
DFID,DFID,23/09/2011,Recipient name withheld,"1,101.06",Hotels - Accommodation only,Europe Department,,400178593
DFID,DFID,21/09/2011,Foreign & Commonwealth Office,731.21,Office equipment - Rental,United Nations and Commonwealth Dept (UNCD),,151559105
DFID,DFID,20/09/2011,Supplier name withheld,"3,437.30",Operating Lease rental of buildings,Europe Department,,400177933
DFID,DFID,23/09/2011,Recipient name withheld,579.07,Other passenger transport,Europe Department,,400178593
DFID,DFID,09/09/2011,DIPLOMATIC MISSION SUPPLIES,"30,124.46","Repairs, Maint, Alter - Property & Constrct. Services",Europe Department,,400176420
DFID,DFID,15/09/2011,Corporate Travel provider,"1,145.14",Air fares,United Nations and Commonwealth Dept (UNCD),,6000057
DFID,DFID,27/09/2011,Corporate Travel provider,"3,934.35",Air fares,United Nations and Commonwealth Dept (UNCD),,6000058
DFID,DFID,27/09/2011,Corporate Travel provider,728.64,Air fares,United Nations and Commonwealth Dept (UNCD),,6000058
DFID,DFID,27/09/2011,Corporate Travel provider,744.71,Air fares,Europe Department,,6000058
DFID,DFID,19/09/2011,Foreign & Commonwealth Office,"11,286.42",Technical and Advisory Services,Global Partnerships Department,,151559097
DFID,DFID,19/09/2011,Foreign & Commonwealth Office,508.58,Technical and Advisory Services,Global Partnerships Department,,151559097
DFID,DFID,19/09/2011,Foreign & Commonwealth Office,"2,210.85",Technical and Advisory Services,Global Partnerships Department,,151559097
DFID,DFID,19/09/2011,Foreign & Commonwealth Office,"2,133.63",Technical and Advisory Services,Global Partnerships Department,,151559099
DFID,DFID,01/09/2011,PUBLIC ADMINISTRATION INTERN,"35,121.22",Technical and Advisory Services,DFID Kosovo,,400175297
DFID,DFID,08/09/2011,REPIM,"33,607.77",Technical and Advisory Services,DFID Kosovo,,400176272
DFID,DFID,15/09/2011,Shundi Consulting,"2,800.00",Technical and Advisory Services,DFID Kosovo,,400176977
DFID,DFID,16/09/2011,PUBLIC ADMINISTRATION INTERN,"12,213.35",Technical and Advisory Services,DFID Kosovo,,400177461
DFID,DFID,19/09/2011,PUBLIC ADMINISTRATION INTERN,"10,349.73",Technical and Advisory Services,DFID Kosovo,,400177755
DFID,DFID,23/09/2011,COFFEY INTERNATIONAL DEVELOPMENT LTD,"110,059.46",Technical and Advisory Services,DFID Kosovo,,400178625
DFID,DFID,28/09/2011,COFFEY INTERNATIONAL DEVELOPMENT LTD,"27,165.83",Technical and Advisory Services,DFID Kosovo,,400179158
DFID,DFID,02/09/2011,Government Procurement Card,598.80,Training - Course Fees,Europe Department,,100043
DFID,DFID,19/09/2011,WESTMINSTER EXPLAINED,576.00,Training - Course Fees,Global Partnerships Department,,400177557
DFID,DFID,21/09/2011,Jean-Robert LeBrun,701.04,Training - Course Fees,Europe Department,,400178078
DFID,DFID,23/09/2011,RADA ENTERPRISES LTD,"2,100.00",Training - Course Fees,Global Partnerships Department,,400178661
DFID,DFID,12/09/2011,Supplier name withheld,595.00,Other travel costs,United Nations and Commonwealth Dept (UNCD),,400175673
DFID,DFID,14/09/2011,UNDP CONTRIBUTIONS GBP,"1,350,000.00",Aid Programme - Voluntary contributions,United Nations and Commonwealth Dept (UNCD),,400177170
DFID,DFID,22/09/2011,UN WOMEN,"5,000,000.00",Aid Programme - Voluntary contributions,United Nations and Commonwealth Dept (UNCD),,400178472
DFID,DFID,20/09/2011,International Centre for Trade and Sustainable Development,"425,000.00",Aid Programme - Accountable Grant Payments,Trade Policy Unit,,400177836
DFID,DFID,21/09/2011,INTERNATIONAL INSTITUTE FOR SUSTAINABLE DEVELOPMENT ,"165,283.00",Aid Programme - Accountable Grant Payments,Trade Policy Unit,,400177876
DFID,DFID,28/09/2011,Supplier name withheld,"10,921.25",Secure staff accommodation,Trade Policy Unit,,151559117
DFID,DFID,01/09/2011,X Prize Foundation,"3,875.62",Aid Programme - Accountable Grant Payments,Climate and Environment Group,,400173128
DFID,DFID,01/09/2011,X Prize Foundation,"29,484.58",Aid Programme - Accountable Grant Payments,Climate and Environment Group,,400173177
DFID,DFID,02/09/2011,PROFOREST,"17,017.54",Aid Programme - Accountable Grant Payments,Climate and Environment Group,,400174671
DFID,DFID,02/09/2011,Heath Action International,"167,342.00",Aid Programme - Accountable Grant Payments,Human Development Group,,400175244
DFID,DFID,09/09/2011,The Carter Center,"1,840,000.00",Aid Programme - Accountable Grant Payments,Human Development Group,,400176036
DFID,DFID,09/09/2011,YAYASAN KEANEKARAGMAN HAYATI INDONESIA - KEHATI,"259,177.00",Aid Programme - Accountable Grant Payments,Climate and Environment Group,,400176117
DFID,DFID,08/09/2011,EUROPEAN FOREST INSTITUTE,"229,452.41",Aid Programme - Accountable Grant Payments,Climate and Environment Group,,400176172
DFID,DFID,20/09/2011,EMERGENCY NUTRITION NETWORK,"1,822.00",Aid Programme - Accountable Grant Payments,Growth and Resillience Dept,,400177954
DFID,DFID,27/09/2011,NIKE FOUNDATION,"1,292,425.82",Aid Programme - Accountable Grant Payments,Governance and Social Development Group,,400178329
DFID,DFID,23/09/2011,KPMG DEVELOPMENT SERVICE,"175,983.29",Aid Programme - Accountable Grant Payments,Civil Society Department,,400178626
DFID,DFID,27/09/2011, Triple Line Consulting Ltd,"38,594.00",Aid Programme - Accountable Grant Payments,Civil Society Department,,400178907
DFID,DFID,28/09/2011,KPMG DEVELOPMENT SERVICE,"634,095.61",Aid Programme - Accountable Grant Payments,Civil Society Department,,400178990
DFID,DFID,29/09/2011,CMI MICHELSEN INSTITUTE,"33,000.00",Aid Programme - Accountable Grant Payments,Governance and Social Development Group,,400179067
DFID,DFID,02/09/2011,Triple Line Consulting Limited,"398,433.57",Aid Programme - Challenge Fund payments,Civil Society Department,,400175371
DFID,DFID,02/09/2011,Triple Line Consulting Limited,"412,608.75",Aid Programme - Challenge Fund payments,Civil Society Department,,400175372
DFID,DFID,19/09/2011,Triple Line Consulting Limited,"260,212.06",Aid Programme - Challenge Fund payments,Civil Society Department,,400177732
DFID,DFID,21/09/2011,CHATHAM  HOUSE ENTERPRISES LIMITED,750.00,"Conferences, Seminars & Meeting/Event Resource",Growth and Resillience Dept,,400178281
DFID,DFID,02/09/2011,Government Procurement Card,580.15,Contract & Agency Staff,Climate and Environment Group,,100043
DFID,DFID,02/09/2011,Government Procurement Card,"1,122.38",Contract & Agency Staff,Governance and Social Development Group,,100043
DFID,DFID,02/09/2011,Government Procurement Card,"1,118.84",Contract & Agency Staff,Governance and Social Development Group,,100043
DFID,DFID,02/09/2011,Government Procurement Card,603.50,Contract & Agency Staff,Governance and Social Development Group,,100043
DFID,DFID,02/09/2011,Government Procurement Card,"1,219.61",Contract & Agency Staff,Climate and Environment Group,,100043
DFID,DFID,02/09/2011,Government Procurement Card,523.55,Contract & Agency Staff,Climate and Environment Group,,100043
DFID,DFID,02/09/2011,Government Procurement Card,782.92,Contract & Agency Staff,Governance and Social Development Group,,100043
DFID,DFID,02/09/2011,Government Procurement Card,"1,106.96",Contract & Agency Staff,Governance and Social Development Group,,100043
DFID,DFID,02/09/2011,Government Procurement Card,"1,085.73",Contract & Agency Staff,Governance and Social Development Group,,100043
DFID,DFID,02/09/2011,Government Procurement Card,"1,108.20",Contract & Agency Staff,Governance and Social Development Group,,100043
DFID,DFID,30/09/2011,Government Procurement Card,603.50,Contract & Agency Staff,Governance and Social Development Group,,100047
DFID,DFID,30/09/2011,Government Procurement Card,603.50,Contract & Agency Staff,Governance and Social Development Group,,100047
DFID,DFID,30/09/2011,Government Procurement Card,"4,568.55",Hotels - Accommodation only,PRD Cabinet,,100047
DFID,DFID,27/09/2011,Corporate Travel provider,782.00,Hotels - Accommodation only,Human Development Group,,6000058
DFID,DFID,01/09/2011,Recipient name withheld,531.06,Hotels - Accommodation only,Governance and Social Development Group,,400175221
DFID,DFID,05/09/2011,Recipient name withheld,697.00,Hotels - Accommodation only,Human Development Group,,400175450
DFID,DFID,06/09/2011,Recipient name withheld,561.68,Hotels - Accommodation only,Human Development Group,,400175995
DFID,DFID,15/09/2011,Recipient name withheld,697.98,Hotels - Accommodation only,Human Development Group,,400177265
DFID,DFID,19/09/2011,Recipient name withheld,601.80,Hotels - Accommodation only,Climate and Environment Group,,400177787
DFID,DFID,20/09/2011,Recipient name withheld,583.91,Hotels - Accommodation only,PRD Cabinet,,400178015
DFID,DFID,21/09/2011,Recipient name withheld,752.70,Hotels - Accommodation only,Governance and Social Development Group,,400178096
DFID,DFID,15/09/2011,Crown Agents Govts and Admin,"9,443.75",Legal costs,Climate and Environment Group,,400171680
DFID,DFID,05/09/2011,Recipient name withheld,774.44,Other passenger transport,Human Development Group,,400175450
DFID,DFID,07/09/2011,COLLABORATIVE LEARNING PROJECTS,"164,038.25",Aid Programme - Partnership Programme Arrangements,Civil Society Department,,400174695
DFID,DFID,02/09/2011,BRITISH RED CROSS,"818,997.50",Aid Programme - Partnership Programme Arrangements,Civil Society Department,,400175345
DFID,DFID,15/09/2011,  Norwegian Refugee Council,"635,786.25",Aid Programme - Partnership Programme Arrangements,Civil Society Department,,400177165
DFID,DFID,19/09/2011,Development Initiatives Poverty Research Ltd,"97,332.00",Aid Programme - Partnership Programme Arrangements,Civil Society Department,,400177745
DFID,DFID,19/09/2011,Development Initiatives Poverty Research Ltd,"97,332.00",Aid Programme - Partnership Programme Arrangements,Civil Society Department,,400177752
DFID,DFID,21/09/2011,The Asia Foundation (GBP),"611,257.50",Aid Programme - Partnership Programme Arrangements,Civil Society Department,,400177851
DFID,DFID,27/09/2011,The Asia Foundation (GBP),"611,257.50",Aid Programme - Partnership Programme Arrangements,Civil Society Department,,400178571
DFID,DFID,27/09/2011,PEOPLE IN AID LTD,"51,699.75",Aid Programme - Partnership Programme Arrangements,Civil Society Department,,400178896
DFID,DFID,29/09/2011,GENDER LINKS,"156,217.00",Aid Programme - Partnership Programme Arrangements,Civil Society Department,,400179177
DFID,DFID,15/09/2011,Corporate Travel provider,738.43,Air fares,PRD Cabinet,,6000057
DFID,DFID,15/09/2011,Corporate Travel provider,"1,951.89",Air fares,Human Development Group,,6000057
DFID,DFID,15/09/2011,Corporate Travel provider,623.70,Air fares,Human Development Group,,6000057
DFID,DFID,15/09/2011,Corporate Travel provider,738.43,Air fares,Human Development Group,,6000057
DFID,DFID,15/09/2011,Corporate Travel provider,938.68,Air fares,Governance and Social Development Group,,6000057
DFID,DFID,27/09/2011,Corporate Travel provider,"1,107.86",Air fares,Human Development Group,,6000058
DFID,DFID,27/09/2011,Corporate Travel provider,650.62,Air fares,Climate and Environment Group,,6000058
DFID,DFID,27/09/2011,Corporate Travel provider,"1,541.89",Air fares,Human Development Group,,6000058
DFID,DFID,27/09/2011,Corporate Travel provider,719.93,Air fares,PRD Cabinet,,6000058
DFID,DFID,27/09/2011,Corporate Travel provider,804.47,Air fares,Governance and Social Development Group,,6000058
DFID,DFID,27/09/2011,Corporate Travel provider,624.84,Air fares,Climate and Environment Group,,6000058
DFID,DFID,27/09/2011,Corporate Travel provider,"1,331.89",Air fares,Human Development Group,,6000058
DFID,DFID,27/09/2011,Corporate Travel provider,971.23,Air fares,Governance and Social Development Group,,6000058
DFID,DFID,27/09/2011,Corporate Travel provider,"1,061.89",Air fares,PRD Cabinet,,6000058
DFID,DFID,27/09/2011,LETS GO TRAVEL,"3,614.13",Air fares,Growth and Resillience Dept,,400178775
DFID,DFID,07/09/2011,PRICEWATERHOUSECOOPERS,"242,971.82",Technical and Advisory Services,Climate and Environment Group,,400174833
DFID,DFID,05/09/2011,HAREWELLE INTERNATIONAL LIMITED,"16,500.00",Technical and Advisory Services,PRD Cabinet,,400175163
DFID,DFID,09/09/2011,Crown Agents Bank,"1,281,522.25",Technical and Advisory Services,Human Development Group,,400175295
DFID,DFID,05/09/2011,HLSP LIMITED,"19,133.09",Technical and Advisory Services,Human Development Group,,400175440
DFID,DFID,06/09/2011,SAM LAWSON,"3,539.39",Technical and Advisory Services,Climate and Environment Group,,400175687
DFID,DFID,07/09/2011,WSP INTERNATIONAL LIMITED,"14,805.38",Technical and Advisory Services,PRD Cabinet,,400175917
DFID,DFID,12/09/2011,recipient withheld,"4,948.76",Technical and Advisory Services,Climate and Environment Group,,400175928
DFID,DFID,13/09/2011,Centre for Policy Research in India,"3,220.00",Technical and Advisory Services,Growth and Resillience Dept,,400176224
DFID,DFID,08/09/2011,PRICEWATERHOUSECOOPERS,"47,664.65",Technical and Advisory Services,Climate and Environment Group,,400176310
DFID,DFID,12/09/2011,THE IDL GROUP,"29,060.41",Technical and Advisory Services,Climate and Environment Group,,400176315
DFID,DFID,12/09/2011,THE IDL GROUP,"43,728.98",Technical and Advisory Services,Climate and Environment Group,,400176315
DFID,DFID,12/09/2011,GBRW LIMITED,"17,082.00",Technical and Advisory Services,Climate and Environment Group,,400176649
DFID,DFID,12/09/2011,Triple Line Consulting Limited,"75,339.50",Technical and Advisory Services,Civil Society Department,,400176704
DFID,DFID,14/09/2011,HAREWELLE INTERNATIONAL LIMITED,"5,302.67",Technical and Advisory Services,Climate and Environment Group,,400177134
DFID,DFID,15/09/2011,JULIETTE MYERS,"5,000.00",Technical and Advisory Services,PRD Cabinet,,400177230
DFID,DFID,15/09/2011,HAREWELLE INTERNATIONAL LIMITED,"2,750.00",Technical and Advisory Services,Climate and Environment Group,,400177320
DFID,DFID,15/09/2011,HAREWELLE INTERNATIONAL LIMITED,"10,538.60",Technical and Advisory Services,Climate and Environment Group,,400177324
DFID,DFID,15/09/2011,HTSPE LTD,"1,157.50",Technical and Advisory Services,PRD Cabinet,,400177405
DFID,DFID,20/09/2011, ETC CRYSTAL,"32,665.00",Technical and Advisory Services,Climate and Environment Group,,400177552
DFID,DFID,20/09/2011, ETC CRYSTAL,"24,746.00",Technical and Advisory Services,Climate and Environment Group,,400177556
DFID,DFID,20/09/2011,TROPICAL HEALTH EDUCATION TRUST,"50,265.00",Technical and Advisory Services,Human Development Group,,400177564
DFID,DFID,21/09/2011,HLSP LIMITED,"2,268.20",Technical and Advisory Services,Human Development Group,,400178081
DFID,DFID,22/09/2011,LONDON SCHOOL OF ECONOMICS AND POLITICAL SCIENCE,"977,981.38",Technical and Advisory Services,Growth and Resillience Dept,,400178423
DFID,DFID,22/09/2011,LONDON SCHOOL OF ECONOMICS AND POLITICAL SCIENCE,"10,224.52",Technical and Advisory Services,Growth and Resillience Dept,,400178423
DFID,DFID,22/09/2011,KPMG LLP,"191,995.36",Technical and Advisory Services,Civil Society Department,,400178471
DFID,DFID,23/09/2011,TRIPLE LINE CONSULTING LTD,"27,837.65",Technical and Advisory Services,Civil Society Department,,400178608
DFID,DFID,29/09/2011,KPMG Development Services,"58,263.68",Technical and Advisory Services,Civil Society Department,,400178628
DFID,DFID,29/09/2011,KPMG Development Services,"71,412.66",Technical and Advisory Services,Civil Society Department,,400178631
DFID,DFID,23/09/2011,Triple Line Consulting Limited,"198,321.64",Technical and Advisory Services,Civil Society Department,,400178653
DFID,DFID,23/09/2011,Triple Line Consulting Limited,"2,737.50",Technical and Advisory Services,Civil Society Department,,400178655
DFID,DFID,27/09/2011,TROPICAL HEALTH EDUCATION TRUST,"10,444.20",Technical and Advisory Services,Human Development Group,,400178940
DFID,DFID,28/09/2011,METROECONOMICA LIMITED,"33,528.00",Technical and Advisory Services,Climate and Environment Group,,400179134
DFID,DFID,28/09/2011,JULIETTE MYERS,"7,000.00",Technical and Advisory Services,PRD Cabinet,,400179142
DFID,DFID,29/09/2011,CAMBRIDGE EDUCATION LTD,"22,946.83",Technical and Advisory Services,Human Development Group,,400179444
DFID,DFID,30/09/2011,Triple Line Consulting Limited,"24,678.88",Technical and Advisory Services,Civil Society Department,,400179572
DFID,DFID,30/09/2011,Triple Line Consulting Limited,"54,018.72",Technical and Advisory Services,Civil Society Department,,400179572
DFID,DFID,30/09/2011,HAREWELLE INTERNATIONAL LIMITED,"17,640.00",Technical and Advisory Services,PRD Cabinet,,400179605
DFID,DFID,30/09/2011,Government Procurement Card,627.00,Training - Course Fees,Climate and Environment Group,,100047
DFID,DFID,30/09/2011,Government Procurement Card,800.00,Training - Course Fees,Climate and Environment Group,,100047
DFID,DFID,21/09/2011,ALLIANCE FRANCAIS DE LONDRES LIMITED,570.00,Training - Course Fees,PRD Cabinet,,400178204
DFID,DFID,05/09/2011,THRESHOLDS LTD,"1,800.00",Training Providers/Facilitation Services,Human Development Group,,400175499
DFID,DFID,16/09/2011,HTSPE LTD,"3,266.40",Training Providers/Facilitation Services,Growth and Resillience Dept,,400177545
DFID,DFID,16/09/2011,Management Focus Training Solutions,"2,995.00",Training Providers/Facilitation Services,PRD Cabinet,,400177566
DFID,DFID,20/09/2011,WHO (GENEVA),"457,656.00",Aid Programme - Voluntary contributions,Human Development Group,,400177631
DFID,DFID,21/09/2011,Foreign & Commonwealth Office,"36,128.18",Aid Programme - Accountable Grant Payments,Research and Evidence,,151559104
DFID,DFID,07/09/2011,WELLCOME TRUST,993.65,Aid Programme - Accountable Grant Payments,Research and Evidence,,400175441
DFID,DFID,07/09/2011,WELLCOME TRUST,"15,938.25",Aid Programme - Accountable Grant Payments,Research and Evidence,,400175441
DFID,DFID,07/09/2011,THE INSTITUTE OF DEVELOPMENT STUDIE,"125,560.00",Aid Programme - Accountable Grant Payments,Research and Evidence,,400175925
DFID,DFID,14/09/2011,WORLD RESOURCES INSTITUTE,"18,526.00",Aid Programme - Accountable Grant Payments,Research and Evidence,,400176332
DFID,DFID,14/09/2011,WORLD RESOURCES INSTITUTE,"14,771.00",Aid Programme - Accountable Grant Payments,Research and Evidence,,400176333
DFID,DFID,12/09/2011, University Of Oxford,"33,078.24",Aid Programme - Accountable Grant Payments,Research and Evidence,,400176665
DFID,DFID,14/09/2011,OVERSEAS DEVELOPMENT INSTITUTE,"319,826.07",Aid Programme - Accountable Grant Payments,Chief Economist Office,,400177168
DFID,DFID,30/09/2011,Forschungsinstitut zur Zukunft der Arbeit GmbH,"45,652.40",Aid Programme - Accountable Grant Payments,Research and Evidence,,400179452
DFID,DFID,02/09/2011,Government Procurement Card,"1,000.00","Conferences, Seminars & Meeting/Event Resource",Chief Economist Office,,100043
DFID,DFID,12/09/2011,Bankside House,"2,040.33","Conferences, Seminars & Meeting/Event Resource",Chief Economist Office,,400176708
DFID,DFID,27/09/2011,Recipient name withheld,964.23,"Conferences, Seminars & Meeting/Event Resource",Chief Economist Office,,400178413
DFID,DFID,02/09/2011,Government Procurement Card,799.01,Contract & Agency Staff,Research and Evidence,,100043
DFID,DFID,02/09/2011,Government Procurement Card,524.37,Contract & Agency Staff,Research and Evidence,,100043
DFID,DFID,02/09/2011,Government Procurement Card,576.01,Contract & Agency Staff,Research and Evidence,,100043
DFID,DFID,02/09/2011,Government Procurement Card,"1,186.72",Contract & Agency Staff,Research and Evidence,,100043
DFID,DFID,02/09/2011,Government Procurement Card,576.01,Contract & Agency Staff,Research and Evidence,,100043
DFID,DFID,02/09/2011,Government Procurement Card,524.40,Contract & Agency Staff,Research and Evidence,,100043
DFID,DFID,02/09/2011,Government Procurement Card,576.01,Contract & Agency Staff,Research and Evidence,,100043
DFID,DFID,02/09/2011,Government Procurement Card,614.09,Contract & Agency Staff,Research and Evidence,,100043
DFID,DFID,02/09/2011,Government Procurement Card,576.01,Contract & Agency Staff,Research and Evidence,,100043
DFID,DFID,02/09/2011,Government Procurement Card,679.52,Contract & Agency Staff,Research and Evidence,,100043
DFID,DFID,30/09/2011,Government Procurement Card,576.01,Contract & Agency Staff,Research and Evidence,,100047
DFID,DFID,06/09/2011,Global Development Network,"65,000.00",Aid Programme - Core contributions,Research and Evidence,,400173679
DFID,DFID,09/09/2011,INTERNATIONAL AIDS VACCINE INITIATIV,"4,500,000.00",Aid Programme - Core contributions,Research and Evidence,,400176406
DFID,DFID,23/09/2011,Medicines for Malaria Venture,"2,000,000.00",Aid Programme - Core contributions,Research and Evidence,,400178171
DFID,DFID,29/09/2011,FOOD AND AGRICULTURE ORGANISATION,"55,284.00",Aid Programme - Core contributions,Research and Evidence,,400179129
DFID,DFID,29/09/2011,FOOD AND AGRICULTURE ORGANISATION,"55,284.00",Aid Programme - Core contributions,Research and Evidence,,400179129
DFID,DFID,28/09/2011,International Partnership for Microbicides,"1,000,000.00",Aid Programme - Core contributions,Research and Evidence,,400179179
DFID,DFID,30/09/2011,Government Procurement Card,"1,675.95",Hotels - Accommodation only,Evaluation Department,,100047
DFID,DFID,30/09/2011,Government Procurement Card,"1,303.95",Hotels - Accommodation only,Evaluation Department,,100047
DFID,DFID,08/09/2011,Recipient name withheld,673.46,Hotels - Accommodation only,Research and Evidence,,400176270
DFID,DFID,29/09/2011,Recipient name withheld,517.47,Hotels - Accommodation only,Evaluation Department,,400179312
DFID,DFID,30/09/2011, Swiss Agency for Development and Cooperation,"330,000.00",Aid Programme - Joint programme contribution,Research and Evidence,,400179282
DFID,DFID,21/09/2011,VODAFONE CORPORATE,554.77,Mobile telephones & accessories,Chief Economist Office,,400177986
DFID,DFID,01/09/2011,Ipact at the University of Aberdeen,"36,317.00",Research & Development costs,Research and Evidence,,400175173
DFID,DFID,01/09/2011,Research into Results Ltd,"461,854.22",Research & Development costs,Research and Evidence,,400175304
DFID,DFID,02/09/2011,NEW ECONOMICS FOUNDATION,"8,898.00",Research & Development costs,Research and Evidence,,400175385
DFID,DFID,05/09/2011,University Of Sussex,"102,645.57",Research & Development costs,Research and Evidence,,400175531
DFID,DFID,07/09/2011,Crown Agents Govts and Admin,"6,504.78",Research & Development costs,Research and Evidence,,400176106
DFID,DFID,08/09/2011,Population Council,"177,321.00",Research & Development costs,Research and Evidence,,400176126
DFID,DFID,09/09/2011,UNIVERSITY OF NOTTINGHAM,"19,800.00",Research & Development costs,Research and Evidence,,400176396
DFID,DFID,14/09/2011,LONDON SCHOOL OF HYGIENE AND TR,"616,484.68",Research & Development costs,Research and Evidence,,400176635
DFID,DFID,14/09/2011,JHU Bloomberg School of Public Health,"198,913.99",Research & Development costs,Research and Evidence,,400177155
DFID,DFID,19/09/2011,University of Cape Town,"14,885.00",Research & Development costs,Research and Evidence,,400177471
DFID,DFID,19/09/2011,University of Cape Town,"78,536.00",Research & Development costs,Research and Evidence,,400177472
DFID,DFID,22/09/2011,WHO Human Reproduction Programme,"1,250,000.00",Research & Development costs,Research and Evidence,,400178126
DFID,DFID,27/09/2011,INSTITUTE OF DEVELOPMENT STUDIES,"26,914.00",Research & Development costs,Research and Evidence,,400178467
DFID,DFID,27/09/2011, Natural Environment Research Council,"11,768.00",Research & Development costs,Research and Evidence,,400178648
DFID,DFID,29/09/2011,Crown Agents Govts and Admin,"9,791.65",Research & Development costs,Research and Evidence,,400179036
DFID,DFID,28/09/2011,ECONOMIC & SOCIAL REASEARCH COUNCIL,"28,915.00",Research & Development costs,Research and Evidence,,400179180
DFID,DFID,30/09/2011,ECONOMIC & SOCIAL REASEARCH COUNCIL,"25,900.00",Research & Development costs,Research and Evidence,,400179510
DFID,DFID,30/09/2011,ECONOMIC & SOCIAL REASEARCH COUNCIL,"621,600.00",Research & Development costs,Research and Evidence,,400179510
DFID,DFID,15/09/2011,Corporate Travel provider,"1,409.48",Air fares,Research and Evidence,,6000057
DFID,DFID,15/09/2011,Corporate Travel provider,522.07,Air fares,Chief Economist Office,,6000057
DFID,DFID,15/09/2011,Corporate Travel provider,"1,664.36",Air fares,Research and Evidence,,6000057
DFID,DFID,15/09/2011,Foreign & Commonwealth Office,"1,092.37",Air fares,Research and Evidence,,6000057
DFID,DFID,15/09/2011,Corporate Travel provider,"1,663.23",Air fares,Research and Evidence,,6000057
DFID,DFID,15/09/2011,Corporate Travel provider,"1,664.36",Air fares,Research and Evidence,,6000057
DFID,DFID,27/09/2011,Corporate Travel provider,711.63,Air fares,Research and Evidence,,6000058
DFID,DFID,27/09/2011,Corporate Travel provider,568.39,Air fares,Research and Evidence,,6000058
DFID,DFID,27/09/2011,Corporate Travel provider,591.23,Air fares,Chief Economist Office,,6000058
DFID,DFID,27/09/2011,Corporate Travel provider,"1,011.43",Air fares,Research and Evidence,,6000058
DFID,DFID,27/09/2011,Corporate Travel provider,"1,004.09",Air fares,Research and Evidence,,6000058
DFID,DFID,27/09/2011,Corporate Travel provider,517.94,Air fares,Evaluation Department,,6000058
DFID,DFID,02/09/2011,Government Procurement Card,515.35,Subscriptions,Evaluation Department,,100043
DFID,DFID,12/09/2011,SAGE PUBLICATIONS LTD,"1,416.60",Subscriptions,Research and Evidence,,400176625
DFID,DFID,12/09/2011,ECONOMIST INTELLIGENCE UNIT LTD,"15,405.00",Subscriptions,Research and Evidence,,400176629
DFID,DFID,28/09/2011,OXFORD UNIVERSITY PRESS,"2,248.80",Subscriptions,Research and Evidence,,400179021
DFID,DFID,21/09/2011,Foreign & Commonwealth Office,"2,008.45",Technical and Advisory Services,Research and Evidence,,151559104
DFID,DFID,21/09/2011,Foreign & Commonwealth Office,"9,633.93",Technical and Advisory Services,Research and Evidence,,151559104
DFID,DFID,07/09/2011,PRICEWATERHOUSECOOPERS,"364,457.72",Technical and Advisory Services,Research and Evidence,,400174833
DFID,DFID,02/09/2011,OVERSEAS DEVELOPMENT INSTITUTE,"279,129.45",Technical and Advisory Services,Research and Evidence,,400175399
DFID,DFID,08/09/2011,SAFERWORLD,"13,210.00",Technical and Advisory Services,Research and Evidence,,400175684
DFID,DFID,07/09/2011,INSTITUTE OF DEVELOPMENT STUDIES,"10,000.00",Technical and Advisory Services,Research and Evidence,,400175694
DFID,DFID,08/09/2011,THE PRAXIS GROUP LTD,"52,855.00",Technical and Advisory Services,Research and Evidence,,400175958
DFID,DFID,07/09/2011,Crown Agents Govts and Admin,"20,776.85",Technical and Advisory Services,Research and Evidence,,400176099
DFID,DFID,07/09/2011,Crown Agents Govts and Admin,"148,646.87",Technical and Advisory Services,Research and Evidence,,400176151
DFID,DFID,08/09/2011,UNIVERSITY OF VERMONT,"4,697.25",Technical and Advisory Services,Research and Evidence,,400176208
DFID,DFID,12/09/2011,COFFEY INTERNATIONAL DEVELOPMENT LTD,"2,978.62",Technical and Advisory Services,Research and Evidence,,400176274
DFID,DFID,08/09/2011,PRICEWATERHOUSECOOPERS,"78,000.00",Technical and Advisory Services,Research and Evidence,,400176310
DFID,DFID,08/09/2011,OXFORD POLICY MANAGEMENT,"107,462.80",Technical and Advisory Services,Evaluation Department,,400176323
DFID,DFID,08/09/2011,OXFORD POLICY MANAGEMENT,"140,000.00",Technical and Advisory Services,Evaluation Department,,400176323
DFID,DFID,12/09/2011,WRENmedia,"24,895.86",Technical and Advisory Services,Research and Evidence,,400176473
DFID,DFID,14/09/2011,CAB INTERNATIONAL,"37,701.70",Technical and Advisory Services,Research and Evidence,,400177098
DFID,DFID,16/09/2011,HAREWELLE INTERNATIONAL LIMITED,"12,739.12",Technical and Advisory Services,Research and Evidence,,400177313
DFID,DFID,15/09/2011,HAREWELLE INTERNATIONAL LIMITED,"2,750.00",Technical and Advisory Services,Research and Evidence,,400177320
DFID,DFID,19/09/2011,ATTENDA LIMITED,"3,168.00",Technical and Advisory Services,Research and Evidence,,400177403
DFID,DFID,16/09/2011,HTSPE LTD,923.50,Technical and Advisory Services,Research and Evidence,,400177541
DFID,DFID,30/09/2011,LIVERPOOL SCHOOL OF TROPICAL MEDICINE,"13,482.00",Technical and Advisory Services,Research and Evidence,,400178427
DFID,DFID,27/09/2011,Crown Agents Govts and Admin,"35,298.22",Technical and Advisory Services,Research and Evidence,,400178638
DFID,DFID,30/09/2011,PATH (USD ACCOUNT),"32,425.40",Technical and Advisory Services,Research and Evidence,,400179515
DFID,DFID,02/09/2011,Government Procurement Card,576.00,Training - Course Fees,Research and Evidence,,100043
DFID,DFID,02/09/2011,Government Procurement Card,"1,000.00",Training - Course Fees,Research and Evidence,,100043
DFID,DFID,07/09/2011,THRESHOLDS,"1,500.00",Training - Course Fees,Research and Evidence,,400175953
DFID,DFID,20/09/2011,LYNDON HUGHES,850.00,Training Providers/Facilitation Services,Research and Evidence,,400177821
DFID,DFID,08/09/2011,Centre for the Study of Violence and Reconciliation,"222,274.06",Aid Programme - Accountable Grant Payments,"Conflict, Humanitarian and Security Department",,400176107
DFID,DFID,08/09/2011,TEARFUND,"75,514.93",Aid Programme - Accountable Grant Payments,"Conflict, Humanitarian and Security Department",,400176219
DFID,DFID,14/09/2011,Anguilla National Trust,"24,375.59",Aid Programme - Accountable Grant Payments,Overseas Territories Department,,400176482
DFID,DFID,16/09/2011,CROWN RELOCATIONS  UK,"6,854.09",Aid Programme - Accountable Grant Payments,Overseas Territories Department,,400176985
DFID,DFID,19/09/2011,SHAPE,"43,800.00",Aid Programme - Accountable Grant Payments,Overseas Territories Department,,400177385
DFID,DFID,29/09/2011,HelpAge International (AG),"250,000.00",Aid Programme - Accountable Grant Payments,"Conflict, Humanitarian and Security Department",,400179347
DFID,DFID,16/09/2011,NORWEGIAN REFUGEE COUNCIL,"8,955.52",Aid Programme - Challenge Fund payments,"Conflict, Humanitarian and Security Department",,400176976
DFID,DFID,05/09/2011,CABLE DYNAMICS LTD,"5,318.20",Computer hardware maintenance,"Conflict, Humanitarian and Security Department",,400174826
DFID,DFID,08/09/2011,SOCIAL DEVELOPMENT DIRECT LTD,"6,000.00",Consultancy Services,"Conflict, Humanitarian and Security Department",,400176281
DFID,DFID,02/09/2011,Government Procurement Card,619.71,Contract & Agency Staff,"Conflict, Humanitarian and Security Department",,100043
DFID,DFID,02/09/2011,Government Procurement Card,782.04,Contract & Agency Staff,"Conflict, Humanitarian and Security Department",,100043
DFID,DFID,02/09/2011,Government Procurement Card,754.10,Contract & Agency Staff,"Conflict, Humanitarian and Security Department",,100043
DFID,DFID,02/09/2011,Government Procurement Card,659.40,Contract & Agency Staff,"Conflict, Humanitarian and Security Department",,100043
DFID,DFID,02/09/2011,Government Procurement Card,"1,275.18",Contract & Agency Staff,"Conflict, Humanitarian and Security Department",,100043
DFID,DFID,02/09/2011,Government Procurement Card,667.38,Contract & Agency Staff,"Conflict, Humanitarian and Security Department",,100043
DFID,DFID,02/09/2011,Government Procurement Card,"1,040.80",Contract & Agency Staff,"Conflict, Humanitarian and Security Department",,100043
DFID,DFID,02/09/2011,Government Procurement Card,683.27,Contract & Agency Staff,"Conflict, Humanitarian and Security Department",,100043
DFID,DFID,02/09/2011,Government Procurement Card,819.28,Contract & Agency Staff,"Conflict, Humanitarian and Security Department",,100043
DFID,DFID,02/09/2011,Government Procurement Card,"1,182.37",Contract & Agency Staff,"Conflict, Humanitarian and Security Department",,100043
DFID,DFID,02/09/2011,Government Procurement Card,"1,096.41",Contract & Agency Staff,"Conflict, Humanitarian and Security Department",,100043
DFID,DFID,02/09/2011,Government Procurement Card,530.16,Contract & Agency Staff,"Middle East, North Africa Advisory and Corporate (MENARC)",,100043
DFID,DFID,02/09/2011,Government Procurement Card,828.59,Contract & Agency Staff,"Conflict, Humanitarian and Security Department",,100043
DFID,DFID,02/09/2011,Government Procurement Card,"1,048.74",Contract & Agency Staff,"Conflict, Humanitarian and Security Department",,100043
DFID,DFID,02/09/2011,Government Procurement Card,532.98,Contract & Agency Staff,"Middle East, North Africa Advisory and Corporate (MENARC)",,100043
DFID,DFID,02/09/2011,Government Procurement Card,589.83,Contract & Agency Staff,"Conflict, Humanitarian and Security Department",,100043
DFID,DFID,02/09/2011,Government Procurement Card,707.10,Contract & Agency Staff,"Conflict, Humanitarian and Security Department",,100043
DFID,DFID,02/09/2011,Government Procurement Card,828.59,Contract & Agency Staff,"Conflict, Humanitarian and Security Department",,100043
DFID,DFID,02/09/2011,Government Procurement Card,683.27,Contract & Agency Staff,"Conflict, Humanitarian and Security Department",,100043
DFID,DFID,02/09/2011,Government Procurement Card,549.90,Contract & Agency Staff,"Middle East, North Africa Advisory and Corporate (MENARC)",,100043
DFID,DFID,02/09/2011,Government Procurement Card,833.25,Contract & Agency Staff,"Conflict, Humanitarian and Security Department",,100043
DFID,DFID,02/09/2011,Government Procurement Card,711.08,Contract & Agency Staff,"Conflict, Humanitarian and Security Department",,100043
DFID,DFID,02/09/2011,Government Procurement Card,566.82,Contract & Agency Staff,"Middle East, North Africa Advisory and Corporate (MENARC)",,100043
DFID,DFID,02/09/2011,Government Procurement Card,679.30,Contract & Agency Staff,"Conflict, Humanitarian and Security Department",,100043
DFID,DFID,05/09/2011,Government Procurement Card,667.38,Contract & Agency Staff,"Conflict, Humanitarian and Security Department",,100045
DFID,DFID,30/09/2011,Government Procurement Card,667.39,Contract & Agency Staff,"Conflict, Humanitarian and Security Department",,100047
DFID,DFID,30/09/2011,Government Procurement Card,635.60,Contract & Agency Staff,"Conflict, Humanitarian and Security Department",,100047
DFID,DFID,30/09/2011,Government Procurement Card,837.90,Contract & Agency Staff,"Conflict, Humanitarian and Security Department",,100047
DFID,DFID,30/09/2011,Government Procurement Card,614.46,Contract & Agency Staff,"Conflict, Humanitarian and Security Department",,100047
DFID,DFID,30/09/2011,Government Procurement Card,534.86,Contract & Agency Staff,"Middle East, North Africa Advisory and Corporate (MENARC)",,100047
DFID,DFID,23/09/2011,Crown Agents Govts and Admin,"2,897.37",Contract & Agency Staff,"Conflict, Humanitarian and Security Department",,400178199
DFID,DFID,30/09/2011,Crown Agents Govts and Admin,"16,155.60",Contract & Agency Staff,"Conflict, Humanitarian and Security Department",,400179279
DFID,DFID,30/09/2011,Crown Agents Govts and Admin,"4,148.40",Contract & Agency Staff,"Conflict, Humanitarian and Security Department",,400179279
DFID,DFID,30/09/2011,THE INTERNATIONAL COMMITTEE OF THE RED CROSS (ICRC),"20,000,000.00",Aid Programme - Core contributions,"Conflict, Humanitarian and Security Department",,400179371
DFID,DFID,19/09/2011,Foreign & Commonwealth Office,603.42,Electricity,DFID Caribbean and Nicaragua,,151559097
DFID,DFID,19/09/2011,Foreign & Commonwealth Office,541.22,Electricity,DFID Caribbean and Nicaragua,,151559099
DFID,DFID,19/09/2011,Foreign & Commonwealth Office,"1,216.73",Furniture & Fittings,DFID Caribbean and Nicaragua,,151559099
DFID,DFID,19/09/2011,Foreign & Commonwealth Office,"6,308.74",Furniture & Fittings,DFID Caribbean and Nicaragua,,151559099
DFID,DFID,28/09/2011,Foreign & Commonwealth Office,"2,659.26",Furniture & Fittings,DFID Jerusalem and Palestinian Programme,,151559121
DFID,DFID,15/09/2011,Corporate Travel provider,"1,059.34",Hotels - Accommodation only,DFID Yemen,,6000057
DFID,DFID,15/09/2011,Corporate Travel provider,"2,277.18",Hotels - Accommodation only,DFID Yemen,,6000057
DFID,DFID,15/09/2011,Corporate Travel provider,"1,151.44",Hotels - Accommodation only,DFID Yemen,,6000057
DFID,DFID,16/09/2011,Recipient name withheld,"2,572.36",Hotels - Accommodation only,DFID Yemen,,400177473
DFID,DFID,27/09/2011,Recipient name withheld,731.10,Hotels - Accommodation only,"Conflict, Humanitarian and Security Department",,400178936
DFID,DFID,19/09/2011,Supplier name withheld,"5,996.82",Secure staff accommodation,DFID Caribbean and Nicaragua,,151559097
DFID,DFID,19/09/2011,Supplier name withheld,"2,061.41",Secure staff accommodation,DFID Caribbean and Nicaragua,,151559097
DFID,DFID,21/09/2011,Supplier name withheld,"25,703.79",Office rent,DFID Jerusalem and Palestinian Programme,Office Rent,151559104
DFID,DFID,28/09/2011,Supplier name withheld,"1,261.42",Secure staff accommodation,DFID Jerusalem and Palestinian Programme,,151559121
DFID,DFID,30/09/2011,Crown Agents Govts and Admin,"83,700.00",Aid Programme - Humanitarian Material Relief Assistance and Services,"Conflict, Humanitarian and Security Department",,400170735
DFID,DFID,13/09/2011,Crown Agents Govts and Admin,"2,739.49",Aid Programme - Humanitarian Material Relief Assistance and Services,"Conflict, Humanitarian and Security Department",,400173755
DFID,DFID,05/09/2011,Crown Agents Govts and Admin,"52,929.00",Aid Programme - Humanitarian Material Relief Assistance and Services,DFID Libya,,400175621
DFID,DFID,20/09/2011,Crown Agents Govts and Admin,"11,099.34",Aid Programme - Humanitarian Material Relief Assistance and Services,"Conflict, Humanitarian and Security Department",,400177740
DFID,DFID,19/09/2011,Foreign & Commonwealth Office,"4,811.00",Aid Programme - Joint programme contribution,DFID Caribbean and Nicaragua,,151559097
DFID,DFID,19/09/2011,Foreign & Commonwealth Office,"1,963.96",Aid Programme - Joint programme contribution,DFID Caribbean and Nicaragua,,151559097
DFID,DFID,19/09/2011,Foreign & Commonwealth Office,"4,811.00",Aid Programme - Joint programme contribution,DFID Caribbean and Nicaragua,,151559097
DFID,DFID,19/09/2011,Foreign & Commonwealth Office,"6,109.83",Aid Programme - Joint programme contribution,DFID Caribbean and Nicaragua,,151559097
DFID,DFID,19/09/2011,Foreign & Commonwealth Office,"1,472.90",Aid Programme - Joint programme contribution,DFID Caribbean and Nicaragua,,151559097
DFID,DFID,19/09/2011,Foreign & Commonwealth Office,"1,624.34",Aid Programme - Joint programme contribution,DFID Caribbean and Nicaragua,,151559099
DFID,DFID,19/09/2011,Foreign & Commonwealth Office,"2,372.98",Aid Programme - Joint programme contribution,DFID Caribbean and Nicaragua,,151559099
DFID,DFID,19/09/2011,Foreign & Commonwealth Office,502.70,Aid Programme - Joint programme contribution,DFID Caribbean and Nicaragua,,151559099
DFID,DFID,19/09/2011,Foreign & Commonwealth Office,800.46,Aid Programme - Joint programme contribution,DFID Caribbean and Nicaragua,,151559099
DFID,DFID,14/09/2011,SOCIAL DEVELOPMENT FUND,"1,250,000.00",Aid Programme - Joint programme contribution,DFID Yemen,,400176978
DFID,DFID,15/09/2011,Crown Agents Govts and Admin,"12,720.00",Legal costs,Overseas Territories Department,,400171680
DFID,DFID,15/09/2011,Crown Agents Govts and Admin,"2,066.40",Legal costs,Overseas Territories Department,,400171680
DFID,DFID,19/09/2011,Foreign & Commonwealth Office,"1,535.29",Office Equipment - Maintenance,DFID Caribbean and Nicaragua,,151559097
DFID,DFID,19/09/2011,Foreign & Commonwealth Office,853.87,Office Supplies,DFID Caribbean and Nicaragua,,151559099
DFID,DFID,19/09/2011,Foreign & Commonwealth Office,"9,941.08",Operating Lease rental of buildings,DFID Caribbean and Nicaragua,,151559097
DFID,DFID,19/09/2011,Foreign & Commonwealth Office,748.25,Operating Lease rental of buildings,DFID Caribbean and Nicaragua,,151559097
DFID,DFID,28/09/2011,Foreign & Commonwealth Office,"1,440.25",Other Admin Costs,DFID Jerusalem and Palestinian Programme,,151559118
DFID,DFID,19/09/2011,Foreign & Commonwealth Office,"4,138.98",Other Building Products,DFID Caribbean and Nicaragua,,151559097
DFID,DFID,01/09/2011,Crown Agents Govts and Admin,"111,749.32",Aid Programme - Other Financial Aid to Government,Overseas Territories Department,,400175167
DFID,DFID,01/09/2011,Crown Agents Govts and Admin,"893,994.59",Aid Programme - Other Financial Aid to Government,Overseas Territories Department,,400175187
DFID,DFID,05/09/2011,Crown Agents Govts and Admin,"49,905.00",Aid Programme - Other Financial Aid to Government,Overseas Territories Department,,400175633
DFID,DFID,09/09/2011,Crown Agents Govts and Admin,"1,556,500.00",Aid Programme - Other Financial Aid to Government,Overseas Territories Department,,400176466
DFID,DFID,09/09/2011,Crown Agents Govts and Admin,"4,000,000.00",Aid Programme - Other Financial Aid to Government,Overseas Territories Department,,400176468
DFID,DFID,15/09/2011,Crown Agents Govts and Admin,"40,151.00",Aid Programme - Other Financial Aid to Government,Overseas Territories Department,,400177227
DFID,DFID,20/09/2011,Crown Agents Govts and Admin,"282,540.00",Aid Programme - Other Financial Aid to Government,Overseas Territories Department,,400177958
DFID,DFID,21/09/2011,Crown Agents Govts and Admin,"136,500.00",Aid Programme - Other Financial Aid to Government,Overseas Territories Department,,400178011
DFID,DFID,23/09/2011,Crown Agents Govts and Admin,"189,049.13",Aid Programme - Other Financial Aid to Government,Overseas Territories Department,,400178614
DFID,DFID,28/09/2011,Crown Agents Govts and Admin,"17,190.00",Aid Programme - Other Financial Aid to Government,Overseas Territories Department,,400179152
DFID,DFID,26/09/2011,FCO RECOVERIES UNIT,"53,592.69","Repairs, Maint, Alter - Property & Constrct. Services",DFID Caribbean and Nicaragua,BHC BRIDGETOWN-Office maintenance works,400178579
DFID,DFID,15/09/2011,Foreign & Commonwealth Office,"1,867.61",Air fares,Overseas Territories Department,,6000057
DFID,DFID,15/09/2011,Corporate Travel provider,515.75,Air fares,"Conflict, Humanitarian and Security Department",,6000057
DFID,DFID,15/09/2011,Corporate Travel provider,738.73,Air fares,DFID Jerusalem and Palestinian Programme,,6000057
DFID,DFID,15/09/2011,Corporate Travel provider,738.73,Air fares,DFID Jerusalem and Palestinian Programme,,6000057
DFID,DFID,15/09/2011,Corporate Travel provider,539.63,Air fares,DFID Jerusalem and Palestinian Programme,,6000057
DFID,DFID,15/09/2011,Corporate Travel provider,509.63,Air fares,DFID Jerusalem and Palestinian Programme,,6000057
DFID,DFID,15/09/2011,Corporate Travel provider,774.63,Air fares,DFID Jerusalem and Palestinian Programme,,6000057
DFID,DFID,27/09/2011,Corporate Travel provider,587.64,Air fares,Overseas Territories Department,,6000058
DFID,DFID,27/09/2011,Corporate Travel provider,587.64,Air fares,Overseas Territories Department,,6000058
DFID,DFID,27/09/2011,Corporate Travel provider,509.42,Air fares,"Conflict, Humanitarian and Security Department",,6000058
DFID,DFID,06/09/2011,World Food Programme ODLA,"22,008.66",Air fares,DFID Libya,,400175369
DFID,DFID,15/09/2011,Foreign & Commonwealth Office,"1,529.99",Technical and Advisory Services,Overseas Territories Department,,151559089
DFID,DFID,15/09/2011,Foreign & Commonwealth Office,"1,223.99",Technical and Advisory Services,Overseas Territories Department,,151559089
DFID,DFID,28/09/2011,Foreign & Commonwealth Office,"6,705.68",Technical and Advisory Services,DFID Jerusalem and Palestinian Programme,,151559118
DFID,DFID,01/09/2011,OXFORD POLICY MANAGEMENT,"25,536.13",Technical and Advisory Services,Overseas Territories Department,,400175044
DFID,DFID,01/09/2011,OXFORD POLICY MANAGEMENT,"20,161.01",Technical and Advisory Services,Overseas Territories Department,,400175045
DFID,DFID,01/09/2011,Expatplus c/o Vanbreda Int.,"1,474.83",Technical and Advisory Services,Overseas Territories Department,,400175171
DFID,DFID,02/09/2011,JOHN WARWICK,"3,127.20",Technical and Advisory Services,Overseas Territories Department,,400175383
DFID,DFID,07/09/2011,APLUS CONSULTING MANAGEMENT LTD,"12,315.14",Technical and Advisory Services,Overseas Territories Department,,400175387
DFID,DFID,07/09/2011,En Consulting Ltd,"14,548.79",Technical and Advisory Services,Overseas Territories Department,,400175389
DFID,DFID,05/09/2011,En Consulting Ltd,"17,014.46",Technical and Advisory Services,Overseas Territories Department,,400175390
DFID,DFID,02/09/2011,HLSP LIMITED,"8,790.69",Technical and Advisory Services,Overseas Territories Department,,400175395
DFID,DFID,02/09/2011,Crown Agents Govts and Admin,"6,768.00",Technical and Advisory Services,DFID Yemen,,400175407
DFID,DFID,05/09/2011,THE HALO TRUST,"205,199.00",Technical and Advisory Services,"Conflict, Humanitarian and Security Department",,400175469
DFID,DFID,09/09/2011, JOHN MURPHY,"13,461.43",Technical and Advisory Services,Overseas Territories Department,,400175509
DFID,DFID,06/09/2011,MINES ADVISORY GROUP,"58,812.00",Technical and Advisory Services,"Conflict, Humanitarian and Security Department",,400175536
DFID,DFID,06/09/2011,MINES ADVISORY GROUP,"145,535.00",Technical and Advisory Services,"Conflict, Humanitarian and Security Department",,400175626
DFID,DFID,12/09/2011,WIND BUSINESS SUPPORT,"3,774.30",Technical and Advisory Services,Overseas Territories Department,,400175631
DFID,DFID,06/09/2011,MINES ADVISORY GROUP,"41,309.00",Technical and Advisory Services,"Conflict, Humanitarian and Security Department",,400175681
DFID,DFID,07/09/2011,MINES ADVISORY GROUP,"23,821.00",Technical and Advisory Services,"Conflict, Humanitarian and Security Department",,400175683
DFID,DFID,13/09/2011,Crown Agents Govts and Admin,"26,875.20",Technical and Advisory Services,"Conflict, Humanitarian and Security Department",Humanitarian Emergency Response Review Implementation Manager Jun - Aug 2011,400175786
DFID,DFID,07/09/2011,JOHN WARWICK,"4,599.00",Technical and Advisory Services,Overseas Territories Department,,400175825
DFID,DFID,07/09/2011,JOHN WARWICK,"1,260.00",Technical and Advisory Services,Overseas Territories Department,,400175911
DFID,DFID,07/09/2011,OXFORD POLICY MANAGEMENT,"21,886.30",Technical and Advisory Services,Overseas Territories Department,,400175943
DFID,DFID,07/09/2011,OXFORD POLICY MANAGEMENT,"21,163.76",Technical and Advisory Services,Overseas Territories Department,,400175944
DFID,DFID,07/09/2011,MINES ADVISORY GROUP,"28,137.00",Technical and Advisory Services,"Conflict, Humanitarian and Security Department",,400176056
DFID,DFID,07/09/2011,N D Hearnden,"20,998.30",Technical and Advisory Services,Overseas Territories Department,,400176101
DFID,DFID,07/09/2011,STEPHEN A TURNBULL,"13,405.79",Technical and Advisory Services,Overseas Territories Department,,400176108
DFID,DFID,20/09/2011,COFFEY INTERNATIONAL DEVELOPMENT LTD,"25,012.50",Technical and Advisory Services,Overseas Territories Department,UK Economic Support for Overseas Territories,400176226
DFID,DFID,08/09/2011,SOCIAL DEVELOPMENT DIRECT LTD,"4,400.00",Technical and Advisory Services,"Conflict, Humanitarian and Security Department",,400176305
DFID,DFID,09/09/2011,COFFEY INTERNATIONAL DEVELOPMENT LTD,"24,631.71",Technical and Advisory Services,Overseas Territories Department,,400176320
DFID,DFID,13/09/2011,WSP INTERNATIONAL LIMITED,"31,594.46",Technical and Advisory Services,Overseas Territories Department,,400176478
DFID,DFID,09/09/2011,GRM INTERNATIONAL LTD,"15,056.10",Technical and Advisory Services,Overseas Territories Department,,400176486
DFID,DFID,12/09/2011,GRM INTERNATIONAL LTD,604.04,Technical and Advisory Services,DFID Yemen,,400176664
DFID,DFID,12/09/2011,GRM INTERNATIONAL LTD,"7,719.00",Technical and Advisory Services,DFID Yemen,,400176664
DFID,DFID,16/09/2011,Crown Agents Govts and Admin,"11,412.00",Technical and Advisory Services,DFID Yemen,,400177467
DFID,DFID,27/09/2011,Crown Agents Govts and Admin,"2,750.23",Technical and Advisory Services,DFID Libya,,400177741
DFID,DFID,19/09/2011,Crown Agents Govts and Admin,"1,178.33",Technical and Advisory Services,DFID Libya,,400177756
DFID,DFID,19/09/2011,Sultan Barakat,"14,387.50",Technical and Advisory Services,"Conflict, Humanitarian and Security Department",,400177758
DFID,DFID,20/09/2011,ADAM SMITH INTERNATIONAL,"37,549.61",Technical and Advisory Services,DFID Iraq,,400177947
DFID,DFID,20/09/2011,OPTIONS CONSULTANCY SERVICES LIMITED,"34,508.44",Technical and Advisory Services,Overseas Territories Department,,400178006
DFID,DFID,21/09/2011,HLSP LIMITED,"25,364.05",Technical and Advisory Services,Overseas Territories Department,,400178168
DFID,DFID,27/09/2011,Crown Agents Govts and Admin,"2,755.35",Technical and Advisory Services,DFID Libya,,400178259
DFID,DFID,23/09/2011,Expatplus c/o Vanbreda Int.,"4,646.82",Technical and Advisory Services,Overseas Territories Department,,400178468
DFID,DFID,27/09/2011,Crown Agents Govts and Admin,"10,152.00",Technical and Advisory Services,DFID Libya,,400178619
DFID,DFID,23/09/2011,Crown Agents Govts and Admin,"16,200.00",Technical and Advisory Services,DFID Libya,,400178620
DFID,DFID,23/09/2011,ASSOCIATES FOR INTERNATIONAL DEVELOPMENT (AID INC),"24,533.77",Technical and Advisory Services,DFID Caribbean and Nicaragua,,400178662
DFID,DFID,23/09/2011,ASSOCIATES FOR INTERNATIONAL DEVELOPMENT (AID INC),"39,745.07",Technical and Advisory Services,DFID Caribbean and Nicaragua,,400178663
DFID,DFID,28/09/2011,Crown Agents Govts and Admin,"3,132.00",Technical and Advisory Services,"Conflict, Humanitarian and Security Department",,400179058
DFID,DFID,28/09/2011,Crown Agents Govts and Admin,"16,693.28",Technical and Advisory Services,"Conflict, Humanitarian and Security Department",,400179119
DFID,DFID,28/09/2011,Crown Agents Govts and Admin,"4,384.80",Technical and Advisory Services,"Conflict, Humanitarian and Security Department",,400179167
DFID,DFID,30/09/2011,Crown Agents Govts and Admin,"10,935.60",Technical and Advisory Services,"Conflict, Humanitarian and Security Department",,400179279
DFID,DFID,29/09/2011,DAI EUROPE LIMITED,"148,778.82",Technical and Advisory Services,DFID Jerusalem and Palestinian Programme,,400179454
DFID,DFID,29/09/2011,DAI EUROPE LIMITED,"67,791.43",Technical and Advisory Services,DFID Jerusalem and Palestinian Programme,,400179455
DFID,DFID,21/09/2011,Foreign & Commonwealth Office,793.33,Telephone Usage & services,DFID Jerusalem and Palestinian Programme,,151559104
DFID,DFID,19/09/2011,THE COMMUNICAID GROUP LIMITED,735.00,Training - Course Fees,"Middle East, North Africa Advisory and Corporate (MENARC)",,400177525
DFID,DFID,19/09/2011,INSIGHTS LEARNING & DEVELOPMENT LTD,"1,388.05",Training - Course Fees,DFID Libya,,400177736
DFID,DFID,29/09/2011,RedR UK,"1,099.00",Training Providers/Facilitation Services,"Conflict, Humanitarian and Security Department",,400179334
DFID,DFID,21/09/2011,Recipient name withheld,732.17,Travel - Subsistence,DFID Jerusalem and Palestinian Programme,,151559104
DFID,DFID,02/09/2011,IBRD HSBC T,"133,333.00",Aid Programme - Trust Funds contributions,DFID Jerusalem and Palestinian Programme,,400175405
DFID,DFID,08/09/2011,UNDP CONTRIBUTIONS GBP,"3,500,000.00",Aid Programme - Trust Funds contributions,"Conflict, Humanitarian and Security Department",,400176267
DFID,DFID,16/09/2011,IBRD (HSBC)  C/O THE WORLD BANK,"450,000.00",Aid Programme - Trust Funds contributions,DFID Iraq,,400177514
DFID,DFID,21/09/2011,Foreign & Commonwealth Office,617.45,Vehicle Repairs & Maintenance,DFID Jerusalem and Palestinian Programme,,151559104
DFID,DFID,07/09/2011,National Integrity Action Forum -UWI,"14,990.00",Aid Programme - Voluntary contributions,DFID Caribbean and Nicaragua,,400176081
DFID,DFID,20/09/2011, UNICEF,"247,600.00",Aid Programme - Voluntary contributions,DFID Yemen,,400177930
DFID,DFID,21/09/2011,WFP CONTRIBUTIONS UNIT,"400,000.00",Aid Programme - Voluntary contributions,DFID Jerusalem and Palestinian Programme,,400178089
DFID,DFID,27/09/2011,UN RELIEF AND WORKS AGENCY,"1,500,000.00",Aid Programme - Voluntary contributions,DFID Jerusalem and Palestinian Programme,,400178818
DFID,DFID,27/09/2011,UN OCHA,"12,000,000.00",Aid Programme - Voluntary contributions,"Conflict, Humanitarian and Security Department",,400178933
DFID,DFID,29/09/2011,UNICEF,"2,000,000.00",Aid Programme - Voluntary contributions,"Conflict, Humanitarian and Security Department",,400179374
DFID,DFID,29/09/2011,INTER AMERICAN DEVELOPMENT BANK,"2,750,000.00",Aid Programme - Voluntary contributions,DFID Caribbean and Nicaragua,,400179463
DFID,DFID,30/09/2011,IBRD HSBC T,"2,000,000.00",Aid Programme - Voluntary contributions,"Middle East, North Africa Advisory and Corporate (MENARC)",,400179530
DFID,DFID,02/09/2011,Government Procurement Card,"1,237.32",Contract & Agency Staff,Top Management Group,,100043
DFID,DFID,02/09/2011,Government Procurement Card,"1,374.80",Contract & Agency Staff,Top Management Group,,100043
DFID,DFID,02/09/2011,Government Procurement Card,"1,374.80",Contract & Agency Staff,Top Management Group,,100043
DFID,DFID,02/09/2011,Government Procurement Card,"1,043.40",Contract & Agency Staff,Top Management Group,,100043
DFID,DFID,02/09/2011,Government Procurement Card,530.16,Contract & Agency Staff,Top Management Group,,100043
DFID,DFID,02/09/2011,Government Procurement Card,516.10,Contract & Agency Staff,Top Management Group,,100043
DFID,DFID,02/09/2011,Government Procurement Card,564.00,Contract & Agency Staff,Top Management Group,,100043
DFID,DFID,02/09/2011,Government Procurement Card,527.34,Contract & Agency Staff,Top Management Group,,100043
DFID,DFID,02/09/2011,Government Procurement Card,"1,374.80",Contract & Agency Staff,Top Management Group,,100043
DFID,DFID,02/09/2011,Government Procurement Card,"1,099.84",Contract & Agency Staff,Top Management Group,,100043
DFID,DFID,02/09/2011,Government Procurement Card,527.34,Contract & Agency Staff,Top Management Group,,100043
DFID,DFID,02/09/2011,Government Procurement Card,569.60,Contract & Agency Staff,Top Management Group,,100043
DFID,DFID,02/09/2011,Government Procurement Card,"1,113.90",Contract & Agency Staff,Top Management Group,,100043
DFID,DFID,02/09/2011,Government Procurement Card,538.60,Contract & Agency Staff,Top Management Group,,100043
DFID,DFID,02/09/2011,Government Procurement Card,530.16,Contract & Agency Staff,Top Management Group,,100043
DFID,DFID,30/09/2011,Government Procurement Card,795.22,Contract & Agency Staff,Top Management Group,,100047
DFID,DFID,30/09/2011,Government Procurement Card,579.60,Contract & Agency Staff,Top Management Group,,100047
DFID,DFID,30/09/2011,Government Procurement Card,527.34,Contract & Agency Staff,Top Management Group,,100047
DFID,DFID,30/09/2011,Government Procurement Card,579.60,Contract & Agency Staff,Top Management Group,,100047
DFID,DFID,30/09/2011,Government Procurement Card,589.38,Contract & Agency Staff,Top Management Group,,100047
DFID,DFID,29/09/2011,Ministry of Justice (2),"26,552.68",Contract & Agency Staff,Top Management Group,Secondment Costs Aug - Sep 2011,400179338
DFID,DFID,01/09/2011,GOVERNMENT CAR AND DESPATCH AGENCY,"1,155.00",Government Car Scheme UK,Top Management Group,,400175237
DFID,DFID,01/09/2011,GOVERNMENT CAR AND DESPATCH AGENCY,705.00,Government Car Scheme UK,Top Management Group,,400175240
DFID,DFID,21/09/2011,GOVERNMENT CAR AND DESPATCH AGENCY,983.92,Government Car Scheme UK,Top Management Group,,400177477
DFID,DFID,21/09/2011,GOVERNMENT CAR AND DESPATCH AGENCY,"2,010.00",Government Car Scheme UK,Top Management Group,,400177728
DFID,DFID,15/09/2011,Corporate Travel provider,"3,042.83",Air fares,Top Management Group,,6000057
DFID,DFID,15/09/2011,Corporate Travel provider,615.40,Air fares,Top Management Group,,6000057
DFID,DFID,15/09/2011,Corporate Travel provider,"1,247.00",Air fares,Top Management Group,,6000057
DFID,DFID,15/09/2011,Corporate Travel provider,"1,238.90",Air fares,Top Management Group,,6000057
DFID,DFID,15/09/2011,Corporate Travel provider,"1,545.83",Air fares,Top Management Group,,6000057
DFID,DFID,15/09/2011,Corporate Travel provider,"2,497.13",Air fares,Top Management Group,,6000057
DFID,DFID,15/09/2011,Corporate Travel provider,"3,042.83",Air fares,Top Management Group,,6000057
DFID,DFID,15/09/2011,Corporate Travel provider,"2,497.13",Air fares,Top Management Group,,6000057
DFID,DFID,15/09/2011,Corporate Travel provider,520.43,Air fares,Top Management Group,,6000057
DFID,DFID,15/09/2011,Corporate Travel provider,"1,238.90",Air fares,Top Management Group,,6000057
DFID,DFID,15/09/2011,Corporate Travel provider,"2,497.13",Air fares,Top Management Group,,6000057
DFID,DFID,27/09/2011,Corporate Travel provider,"1,603.66",Air fares,Top Management Group,,6000058
DFID,DFID,27/09/2011,Corporate Travel provider,"1,821.20",Air fares,Top Management Group,,6000058
DFID,DFID,27/09/2011,Corporate Travel provider,"1,399.20",Air fares,Top Management Group,,6000058
DFID,DFID,27/09/2011,Corporate Travel provider,"1,974.09",Air fares,Top Management Group,,6000058
DFID,DFID,27/09/2011,Corporate Travel provider,"1,603.66",Air fares,Top Management Group,,6000058
DFID,DFID,27/09/2011,Corporate Travel provider,"1,974.09",Air fares,Top Management Group,,6000058
DFID,DFID,27/09/2011,Corporate Travel provider,"1,603.66",Air fares,Top Management Group,,6000058
DFID,DFID,27/09/2011,Corporate Travel provider,"1,399.20",Air fares,Top Management Group,,6000058
DFID,DFID,28/09/2011,Foreign & Commonwealth Office,"8,229.70",Air fares,Top Management Group,,151559118
DFID,DFID,28/09/2011,Foreign & Commonwealth Office,"8,229.70",Air fares,Top Management Group,,151559118
DFID,DFID,28/09/2011,Foreign & Commonwealth Office,"1,075.81",Air fares,Top Management Group,,151559121
DFID,DFID,06/09/2011,Catholic Commission for Justice and,"198,979.17",Aid Programme - Accountable Grant Payments,DFID Malawi,,400174694
DFID,DFID,02/09/2011,Mzuzu Diocese,"49,124.96",Aid Programme - Accountable Grant Payments,DFID Malawi,,400174882
DFID,DFID,01/09/2011,EGPAF,"277,838.69",Aid Programme - Accountable Grant Payments,DFID Zimbabwe,,400175141
DFID,DFID,01/09/2011,Energy Research Centre of the Netherlands,"53,687.48",Aid Programme - Accountable Grant Payments,DFID Ghana,,400175225
DFID,DFID,02/09/2011,VSO,"21,354.00",Aid Programme - Accountable Grant Payments,DFID Malawi,,400175360
DFID,DFID,05/09/2011,Pannell Kerr Forster Chartered Acc,"15,121.86",Aid Programme - Accountable Grant Payments,DFID Nigeria,,400175435
DFID,DFID,12/09/2011,Panos (Southern Africa),"17,131.24",Aid Programme - Accountable Grant Payments,DFID Malawi,,400175935
DFID,DFID,12/09/2011,ZAMBIA CENTRE FOR INTER-PARTY DIALOGUE,"57,214.20",Aid Programme - Accountable Grant Payments,DFID Zambia,,400176086
DFID,DFID,09/09/2011,IIED ,"11,861.67",Aid Programme - Accountable Grant Payments,DFID Zimbabwe,,400176432
DFID,DFID,19/09/2011,Paralegal Advisory Service Institute,"85,223.51",Aid Programme - Accountable Grant Payments,DFID Malawi,,400177397
DFID,DFID,19/09/2011,POLICY AND LEGAL ADVOCACY CENTRE,"53,888.00",Aid Programme - Accountable Grant Payments,DFID Nigeria,,400177483
DFID,DFID,23/09/2011,University of Cape Town,"402,903.65",Aid Programme - Accountable Grant Payments,DFID Southern Africa,,400178384
DFID,DFID,23/09/2011,PLAN INTERNATIONAL UK,"10,448.00",Aid Programme - Accountable Grant Payments,DFID Sierra Leone and Liberia,,400178432
DFID,DFID,27/09/2011,UDEBA- LAB,"41,000.00",Aid Programme - Accountable Grant Payments,DFID Mozambique,,400178561
DFID,DFID,29/09/2011,The Body of Case Handling Institutions,"30,624.50",Aid Programme - Accountable Grant Payments,DFID Malawi,,400178947
DFID,DFID,30/09/2011,NELSON MANDELA FOUNDATION,"76,107.68",Aid Programme - Accountable Grant Payments,DFID Southern Africa,,400179150
DFID,DFID,28/09/2011,Deloitte,"5,019.28",Auditors Remuneration & Expenses - Cash,DFID Malawi,,400179127
DFID,DFID,15/09/2011,DKP Design Services,"5,699.11",Building Plant - Air Conditioners,DFID DRC,,400177206
DFID,DFID,23/09/2011,M & S Holdings Ltd,"1,029.95",Computer software maintenance,DFID Sierra Leone and Liberia,,400178632
DFID,DFID,30/09/2011,Government Procurement Card,606.77,"Conferences, Seminars & Meeting/Event Resource",DFID Southern Africa,,100047
DFID,DFID,01/09/2011,Lamar Travel Agency,869.94,"Conferences, Seminars & Meeting/Event Resource",DFID Sierra Leone and Liberia,,400175263
DFID,DFID,13/09/2011,Jeffery Travels,780.93,Air Fares,DFID DRC,,400176833
DFID,DFID,13/09/2011,Thompson Africa,544.86,"Conferences, Seminars & Meeting/Event Resource",DFID Southern Africa,,400176835
DFID,DFID,27/09/2011,Jeffery Travels,"1,278.71",Air Fares,DFID DRC,,400178792
DFID,DFID,27/09/2011,Premier Travel,523.93,"Conferences, Seminars & Meeting/Event Resource",DFID Zimbabwe,,400178793
DFID,DFID,30/09/2011,UHL-Golden Tulip Festac,"21,211.89","Conferences, Seminars & Meeting/Event Resource",DFID Nigeria,,400179522
DFID,DFID,07/09/2011,recipient withheld,"3,600.00",Consultancy Services,Africa Directorate,,400174367
DFID,DFID,01/09/2011,Supplier name withheld,610.43,Consultancy Services,DFID Mozambique,,400175222
DFID,DFID,01/09/2011,Zodiak Broadcasting Station,550.67,Consultancy Services,DFID Malawi,,400175309
DFID,DFID,09/09/2011,SOCIAL DEVELOPMENT DIRECT LTD,"8,950.00",Consultancy Services,DFID DRC,,400176278
DFID,DFID,30/09/2011,Crown Agents Govts and Admin,"2,100.00",Consultancy Services,DFID Zambia,,400179603
DFID,DFID,01/09/2011,Crown Agents Govts and Admin,"591,200.66",Contraceptives,DFID Nigeria,,400174904
DFID,DFID,07/09/2011,Crown Agents Govts and Admin,"219,111.11",Contraceptives,DFID Nigeria,,400176040
DFID,DFID,15/09/2011,Crown Agents Govts and Admin,"423,815.28",Contraceptives,DFID Nigeria,,400177146
DFID,DFID,20/09/2011,Crown Agents Govts and Admin,"101,247.33",Contraceptives,DFID Nigeria,,400177971
DFID,DFID,28/09/2011,Crown Agents Govts and Admin,"97,407.48",Contraceptives,DFID Nigeria,,400179040
DFID,DFID,29/09/2011,Crown Agents Govts and Admin,"149,724.77",Contraceptives,DFID Nigeria,,400179277
DFID,DFID,12/09/2011,IBRD (HSBC)  C/O THE WORLD BANK,"125,000.00",Aid Programme - Core contributions,DFID Mozambique,,400175996
DFID,DFID,16/09/2011,The World Bank (EFO),"125,000.00",Aid Programme - Core contributions,DFID Nigeria,,400177504
DFID,DFID,30/09/2011,The World Bank (EFO),"96,127.00",Aid Programme - Core contributions,DFID Nigeria,,400179538
DFID,DFID,07/09/2011,MICRO COM Sprl,703.61,Data Network - land lines,DFID DRC,,400176031
DFID,DFID,27/09/2011,MICRO COM Sprl,729.03,Data Network - land lines,DFID DRC,,400178930
DFID,DFID,07/09/2011,ELTEKON SATELLITE,"1,695.17",Data network- remote working,DFID Zimbabwe,,400175701
DFID,DFID,30/09/2011,African (Wings) Travels Ltd,"1,363.56",DFID Learning Events,DFID Nigeria,,400179574
DFID,DFID,30/09/2011,Government Procurement Card,"3,410.60",Educational Supplies/Aids,DFID Nigeria,,100047
DFID,DFID,21/09/2011,Foreign & Commonwealth Office,591.40,Electricity,DFID Southern Africa,,151559104
DFID,DFID,28/09/2011,Foreign & Commonwealth Office,634.00,Electricity,DFID Southern Africa,,151559118
DFID,DFID,28/09/2011,Foreign & Commonwealth Office,683.82,Electricity,DFID Southern Africa,,151559121
DFID,DFID,28/09/2011,Foreign & Commonwealth Office,522.64,Electricity,DFID Southern Africa,,151559121
DFID,DFID,08/09/2011,Electricity Company of Ghana,"3,268.95",Electricity,DFID Ghana,,400176334
DFID,DFID,08/09/2011,Electricity Company of Ghana,"1,400.98",Electricity,DFID Ghana,,400176334
DFID,DFID,23/09/2011,ZESA,"1,570.29",Electricity,DFID Zimbabwe,,400177945
DFID,DFID,21/09/2011,National Power Authority,"1,291.71",Electricity,DFID Sierra Leone and Liberia,,400177972
DFID,DFID,21/09/2011,Foreign & Commonwealth Office,557.23,FCO shared service charges,DFID Malawi,,151559105
DFID,DFID,28/09/2011,Foreign & Commonwealth Office,678.44,FCO shared service charges,DFID Malawi,,151559117
DFID,DFID,28/09/2011,Foreign & Commonwealth Office,842.47,FCO shared service charges,DFID Malawi,,151559117
DFID,DFID,28/09/2011,Foreign & Commonwealth Office,842.48,FCO shared service charges,DFID Malawi,,151559117
DFID,DFID,28/09/2011,Foreign & Commonwealth Office,691.87,FCO shared service charges,DFID Malawi,,151559117
DFID,DFID,30/09/2011,FCO RECOVERIES UNIT,"3,954.20",FCO shared service charges,DFID Malawi,,400178583
DFID,DFID,30/09/2011,FCO RECOVERIES UNIT,"1,593.27",FCO shared service charges,DFID Malawi,,400178583
DFID,DFID,28/09/2011,Foreign & Commonwealth Office,964.80,Furniture & Fittings,DFID Southern Africa,,151559118
DFID,DFID,28/09/2011,Foreign & Commonwealth Office,"1,983.00",Furniture & Fittings,DFID Southern Africa,,151559121
DFID,DFID,01/09/2011,Redcoat (SL) Ltd,722.96,Furniture & Fittings,DFID Sierra Leone and Liberia,,400175271
DFID,DFID,09/09/2011,ORANGEBOX LTD,803.10,Furniture & Fittings,DFID Zimbabwe,,400176266
DFID,DFID,09/09/2011,Zimbrellas T/A Lasdenbale,845.59,Furniture & Fittings,DFID Zimbabwe,,400176382
DFID,DFID,12/09/2011,Akbanies,649.88,Furniture & Fittings,DFID Malawi,,400176595
DFID,DFID,13/09/2011,"Tiger Center,Lda",726.31,Furniture & Fittings,DFID Mozambique,,400176829
DFID,DFID,13/09/2011,St Ozone Lda,"1,426.24",Furniture & Fittings,DFID Mozambique,,400176831
DFID,DFID,13/09/2011,St Ozone Lda,814.78,Furniture & Fittings,DFID Mozambique,,400176834
DFID,DFID,14/09/2011,Dzitandizeni Trades School,565.67,Furniture & Fittings,DFID Zambia,,400177139
DFID,DFID,14/09/2011,Dzitandizeni Trades School,"2,173.07",Furniture & Fittings,DFID Zambia,,400177140
DFID,DFID,20/09/2011,Just Furniture,550.60,Furniture & Fittings,DFID Zimbabwe,,400177931
DFID,DFID,21/09/2011,DIVITEC,886.40,Furniture & Fittings,DFID Mozambique,,400178116
DFID,DFID,23/09/2011,Zimbrellas T/A Lasdenbale,535.03,Furniture & Fittings,DFID Zimbabwe,,400178537
DFID,DFID,28/09/2011,Inspirations,686.33,Furniture & Fittings,DFID Zambia,,400179128
DFID,DFID,29/09/2011,St Ozone Lda,630.71,Furniture & Fittings,DFID Mozambique,,400179311
DFID,DFID,30/09/2011,Ocean Air Packers and Removals,"1,611.29",Furniture & Fittings,DFID Zimbabwe,,400179474
DFID,DFID,21/09/2011,Recipient name withheld,981.58,Further Education costs,DFID Zambia,,400178098
DFID,DFID,29/09/2011,LAUREATE ONLINE EDUCATION B.V.,"5,117.40",Further Education costs,DFID Nigeria,,400178903
DFID,DFID,07/09/2011,Ocean Air Packers and Removals,"1,092.47",Generators & spares,DFID Zimbabwe,,400175690
DFID,DFID,07/09/2011,Frog Cables,"2,481.36",Generators & spares,DFID Zimbabwe,,400175705
DFID,DFID,07/09/2011,Power Electrics (Bristol) Ltd,"110,000.00",Generators & spares,DFID Zimbabwe,,400175966
DFID,DFID,13/09/2011,GSS,"1,996.53",Generators & spares,DFID Zimbabwe,,400176947
DFID,DFID,20/09/2011,J MANN &  Co,767.63,Generators & spares,DFID Zimbabwe,,400177826
DFID,DFID,30/09/2011,Ocean Air Packers and Removals,"1,930.10",Generators & spares,DFID Zimbabwe,,400179475
DFID,DFID,30/09/2011,Government Procurement Card,506.58,Hotels - Accommodation only,DFID Southern Africa,,100047
DFID,DFID,30/09/2011,Government Procurement Card,960.25,Hotels - Accommodation only,DFID Southern Africa,,100047
DFID,DFID,15/09/2011,Corporate Travel provider,623.36,Hotels - Accommodation only,DFID Malawi,,6000057
DFID,DFID,01/09/2011,Hotel Cardoso S A R L,514.84,Hotels - Accommodation only,DFID Mozambique,,400175213
DFID,DFID,01/09/2011,Hotel Cardoso S A R L,540.58,Hotels - Accommodation only,DFID Mozambique,,400175214
DFID,DFID,07/09/2011,Hotel Cardoso S A R L,538.68,Hotels - Accommodation only,DFID Mozambique,,400175847
DFID,DFID,07/09/2011,Supplier name withheld,"1,359.02",Hotels - Accommodation only,DFID DRC,,400176038
DFID,DFID,14/09/2011,Recipient name withheld,"3,205.13",Hotels - Accommodation only,DFID DRC,,400177162
DFID,DFID,15/09/2011,Supplier name withheld,"1,347.22",Hotels - Accommodation only,DFID DRC,,400177261
DFID,DFID,19/09/2011,Supplier name withheld,628.82,Hotels - Accommodation only,DFID Zambia,,400177660
DFID,DFID,19/09/2011,Supplier name withheld,"1,355.46",Hotels - Accommodation only,DFID DRC,,400177767
DFID,DFID,20/09/2011,Supplier name withheld,735.20,Hotels - Accommodation only,DFID DRC,,400177882
DFID,DFID,20/09/2011,Supplier name withheld,"2,286.44",Hotels - Accommodation only,DFID DRC,,400178007
DFID,DFID,20/09/2011,Supplier name withheld,"1,817.83",Hotels - Accommodation only,DFID DRC,,400178009
DFID,DFID,20/09/2011,Supplier name withheld,"1,177.20",Hotels - Accommodation only,DFID DRC,,400178010
DFID,DFID,20/09/2011,Supplier name withheld,889.12,Hotels - Accommodation only,DFID DRC,,400178010
DFID,DFID,27/09/2011,Capital Hotel,"1,439.27",Hotels - Accommodation only,DFID Malawi,,400178909
DFID,DFID,28/09/2011,Hotel VIP Maputo,"2,320.30",Hotels - Accommodation only,DFID Mozambique,,400178977
DFID,DFID,28/09/2011,Recipient name withheld,"1,978.75",Hotels - Accommodation only,DFID DRC,,400178998
DFID,DFID,28/09/2011,Supplier name withheld,"28,351.25",Secure staff accommodation,DFID Southern Africa,Secure staff accommodation,151559118
DFID,DFID,28/09/2011,Supplier name withheld,"18,201.56",Secure staff accommodation,DFID Southern Africa,,151559118
DFID,DFID,28/09/2011,Supplier name withheld,"19,072.00",Secure staff accommodation,DFID Southern Africa,,151559118
DFID,DFID,05/09/2011,Supplier name withheld,"11,447.46",Secure staff accommodation,DFID DRC,,400174789
DFID,DFID,05/09/2011,Supplier name withheld,"11,450.04",Secure staff accommodation,DFID DRC,,400174793
DFID,DFID,05/09/2011,Supplier name withheld,"11,250.33",Secure staff accommodation,DFID DRC,,400174797
DFID,DFID,05/09/2011,Supplier name withheld,"11,448.75",Secure staff accommodation,DFID DRC,,400174799
DFID,DFID,05/09/2011,Supplier name withheld,"11,447.46",Secure staff accommodation,DFID DRC,,400174802
DFID,DFID,05/09/2011,Supplier name withheld,"22,971.64",Secure staff accommodation,DFID Sierra Leone and Liberia,,400175513
DFID,DFID,05/09/2011,Supplier name withheld,"22,971.64",Secure staff accommodation,DFID Sierra Leone and Liberia,,400175514
DFID,DFID,05/09/2011,Supplier name withheld,"22,971.64",Secure staff accommodation,DFID Sierra Leone and Liberia,,400175517
DFID,DFID,05/09/2011,Supplier name withheld,"22,971.64",Secure staff accommodation,DFID Sierra Leone and Liberia,,400175520
DFID,DFID,05/09/2011,Supplier name withheld,"22,971.64",Secure staff accommodation,DFID Sierra Leone and Liberia,,400175535
DFID,DFID,07/09/2011,Supplier name withheld,"8,728.21",Secure staff accommodation,DFID Nigeria,,400175895
DFID,DFID,07/09/2011,Supplier name withheld,"10,667.81",Secure staff accommodation,DFID Nigeria,,400175895
DFID,DFID,08/09/2011,Supplier name withheld,894.82,Secure staff accommodation,DFID Zambia,,400176289
DFID,DFID,13/09/2011,Supplier name withheld,"3,780.50",Secure staff accommodation,DFID Malawi,,400176882
DFID,DFID,13/09/2011,Supplier name withheld,"5,985.79",Secure staff accommodation,DFID Malawi,,400176884
DFID,DFID,14/09/2011,Supplier name withheld,"1,790.00",Secure staff accommodation,DFID Zambia,,400177136
DFID,DFID,15/09/2011,Supplier name withheld,"2,444.03",Secure staff accommodation,DFID Malawi,,400177364
DFID,DFID,21/09/2011,Supplier name withheld,"7,643.31",Secure staff accommodation,DFID Mozambique,,400178120
DFID,DFID,21/09/2011,Supplier name withheld,"7,070.06",Secure staff accommodation,DFID Mozambique,,400178123
DFID,DFID,21/09/2011,Supplier name withheld,"7,643.31",Secure staff accommodation,DFID Mozambique,,400178124
DFID,DFID,21/09/2011,Supplier name withheld,"6,687.90",Secure staff accommodation,DFID Mozambique,,400178125
DFID,DFID,22/09/2011,Supplier name withheld,"5,732.48",Secure staff accommodation,DFID Mozambique,,400178127
DFID,DFID,21/09/2011,Supplier name withheld,"5,732.48",Secure staff accommodation,DFID Mozambique,,400178130
DFID,DFID,22/09/2011,Supplier name withheld,"6,700.70",Secure staff accommodation,DFID Mozambique,,400178320
DFID,DFID,30/09/2011,Supplier name withheld,"51,528.36",Secure staff accommodation,DFID Ghana,Secure staff accommodation,400178416
DFID,DFID,23/09/2011,Supplier name withheld,"13,609.85",Secure staff accommodation,DFID DRC,,400178591
DFID,DFID,27/09/2011,Supplier name withheld,"20,414.78",Secure staff accommodation,DFID DRC,,400178596
DFID,DFID,27/09/2011,Supplier name withheld,"13,548.39",Secure staff accommodation,DFID DRC,,400178804
DFID,DFID,28/09/2011,Supplier name withheld,697.81,Secure staff accommodation,DFID Malawi,,400178845
DFID,DFID,28/09/2011,Supplier name withheld,"1,104.86",Secure staff accommodation,DFID Malawi,,400178851
DFID,DFID,13/09/2011,FRANCE COOPERATION INTERNATIONALE,"1,000,000.00",Aid Programme - Joint programme contribution,DFID DRC,,400176319
DFID,DFID,09/09/2011,MASM,"1,342.42",Medical/Health Services,DFID Malawi,,400176300
DFID,DFID,09/09/2011,MASM,766.99,Medical/Health Services,DFID Malawi,,400176300
DFID,DFID,28/09/2011,Crown Agents Govts and Admin,"102,074.20",Medical/Health Services,DFID Zambia,,400179033
DFID,DFID,28/09/2011,Crown Agents Govts and Admin,"2,960.15",Medical/Health Services,DFID Zambia,,400179033
DFID,DFID,29/09/2011,Crown Agents Govts and Admin,"7,737.19",Medical/Health Services,DFID Zambia,,400179272
DFID,DFID,07/09/2011,VodaShop,"1,010.99",Mobile telephones & accessories,DFID Southern Africa,,400175710
DFID,DFID,13/09/2011,Vodacom Service Provider (Pty) Ltd,936.11,Mobile telephones & accessories,DFID Southern Africa,,400176777
DFID,DFID,14/09/2011,Vodacom Service Provider (Pty) Ltd,711.57,Mobile telephones & accessories,DFID Southern Africa,,400176826
DFID,DFID,19/09/2011,MCell,"1,054.81",Mobile telephones & accessories,DFID Mozambique,,400177646
DFID,DFID,28/09/2011,MCell,865.47,Mobile telephones & accessories,DFID Mozambique,,400178980
DFID,DFID,01/09/2011,EXCEPTLINK ,878.13,Office Equipment - Maintenance,DFID Ghana,,400175250
DFID,DFID,08/09/2011,FCO SERVICES,"2,384.65",Office Equipment - Maintenance,DFID Nigeria,,400175393
DFID,DFID,08/09/2011,FCO SERVICES,"1,951.10",Office Equipment - Maintenance,DFID Nigeria,,400175393
DFID,DFID,05/09/2011,SI Systems,590.36,Office Equipment - Maintenance,DFID Ghana,,400175501
DFID,DFID,30/09/2011,Government Procurement Card,"6,780.60",Office Equipment - Purchases,DFID Zambia,,100047
DFID,DFID,19/09/2011,Recipient name withheld,"1,795.90",Office Supplies,DFID Nigeria,,400177683
DFID,DFID,19/09/2011,Recipient name withheld,"2,194.99",Office Supplies,DFID Nigeria,,400177683
DFID,DFID,07/09/2011,Broll Property Management,"13,713.75",Operating Lease rental of buildings,DFID Southern Africa,,400175720
DFID,DFID,07/09/2011,Broll Property Management,"3,428.44",Operating Lease rental of buildings,DFID Southern Africa,,400175720
DFID,DFID,13/09/2011,CSIR,"2,570.84",Operating Lease rental of buildings,DFID Southern Africa,,400176828
DFID,DFID,20/09/2011,Supplier name withheld,"3,819.22",Operating Lease rental of buildings,DFID Zimbabwe,,400177935
DFID,DFID,20/09/2011,Supplier name withheld,750.00,Operating Lease rental of buildings,DFID Zimbabwe,,400177939
DFID,DFID,20/09/2011,Supplier name withheld,"3,643.54",Operating Lease rental of buildings,DFID Zimbabwe,,400177941
DFID,DFID,30/09/2011,Broll Property Management,"15,620.92",Operating Lease rental of buildings,DFID Southern Africa,,400179274
DFID,DFID,07/09/2011,Crown Agents Govts and Admin,"32,834.00",Aid Programme - Other Financial Aid to Government,DFID Malawi,,400176100
DFID,DFID,23/09/2011,Crown Agents Govts and Admin,"2,500,000.00",Aid Programme - Other Financial Aid to Government,DFID Mozambique,,400178294
DFID,DFID,23/09/2011,MECER IT DISTRIBUTION,815.42,other information and communication technologies,DFID Zimbabwe,,400178538
DFID,DFID,23/09/2011,Osman Thorlley,"1,127.25",other information and communication technologies,DFID Sierra Leone and Liberia,,400178637
DFID,DFID,26/09/2011,Limeline Sierra Leone Ltd,"4,779.86",other information and communication technologies,DFID Sierra Leone and Liberia,,400178688
DFID,DFID,26/09/2011,Limeline Sierra Leone Ltd,516.91,other information and communication technologies,DFID Sierra Leone and Liberia,,400178689
DFID,DFID,23/09/2011,JAT Constroi Lda,"8,771.77",Other rentals,DFID Mozambique,,400178374
DFID,DFID,23/09/2011,JAT Constroi Lda,"20,467.46",Other rentals,DFID Mozambique,,400178374
DFID,DFID,23/09/2011,Condominios JAT,"1,750.03",Other rentals,DFID Mozambique,,400178375
DFID,DFID,23/09/2011,JAT Constroi Lda,"1,137.52",Other rentals,DFID Mozambique,,400178377
DFID,DFID,23/09/2011,JAT Constroi Lda,"4,550.08",Other rentals,DFID Mozambique,,400178377
DFID,DFID,16/09/2011,UNICEF,"1,300,000.00",Aid Programme - Pooled/Basket funding,DFID Malawi,,400177509
DFID,DFID,16/09/2011,Crown Agents Govts and Admin,"12,000,000.00",Aid Programme - Poverty Reduction Budget Support,DFID Mozambique,,400177470
DFID,DFID,13/09/2011,Recipient name withheld,706.12,Recruitment costs,DFID Nigeria,,400176806
DFID,DFID,01/09/2011,CROWN RELOCATIONS  UK,"13,002.98",Relocation costs,DFID Malawi,,400175077
DFID,DFID,07/09/2011,CROWN RELOCATIONS  UK,"4,272.85",Relocation costs,DFID Zimbabwe,,400175583
DFID,DFID,08/09/2011,CROWN RELOCATIONS  UK,"4,917.00",Relocation costs,DFID Zimbabwe,,400175615
DFID,DFID,06/09/2011,CROWN RELOCATIONS  UK,"1,953.47",Relocation costs,DFID Malawi,,400175640
DFID,DFID,21/09/2011,CROWN RELOCATIONS  UK,"13,831.10",Relocation costs,DFID Malawi,,400178064
DFID,DFID,27/09/2011,CROWN RELOCATIONS  UK,"2,509.71",Relocation costs,DFID Malawi,,400178117
DFID,DFID,21/09/2011,CROWN RELOCATIONS  UK,"3,255.46",Relocation costs,DFID Zimbabwe,,400178133
DFID,DFID,21/09/2011,CROWN RELOCATIONS  UK,"3,606.07",Relocation costs,DFID Malawi,,400178176
DFID,DFID,21/09/2011,Foreign & Commonwealth Office,850.61,Cleaning Costs,DFID Southern Africa,,151559104
DFID,DFID,21/09/2011,Foreign & Commonwealth Office,"1,120.40",Cleaning Costs,DFID Southern Africa,,151559104
DFID,DFID,21/09/2011,Foreign & Commonwealth Office,"1,615.97",Cleaning Costs,DFID Southern Africa,,151559104
DFID,DFID,07/09/2011,Sparklean Services Nig Ltd,"1,330.61",Facilities Management payments,DFID Nigeria,,400175997
DFID,DFID,07/09/2011,Sparklean Services Nig Ltd,"1,088.68",Facilities Management payments,DFID Nigeria,,400175997
DFID,DFID,07/09/2011,Sparklean Services Nig Ltd,580.55,Facilities Management payments,DFID Nigeria,,400175998
DFID,DFID,09/09/2011,Formats Projects Services Limited,"1,865.59",Facilities Management payments,DFID Nigeria,,400176435
DFID,DFID,12/09/2011,Jeety Trading Company,671.25,Facilities Management payments,DFID Sierra Leone and Liberia,,400176707
DFID,DFID,28/09/2011,Eurotex Import & Export,"1,159.47",Facilities Management payments,DFID Sierra Leone and Liberia,,400179044
DFID,DFID,30/09/2011,Fracham Company,793.30,Facilities Management payments,DFID Nigeria,,400179607
DFID,DFID,05/09/2011, FCO SERVICES,750.00,Other Building Costs,DFID Zambia,,400175400
DFID,DFID,06/09/2011,Dulux Limited,769.99,Other Building Costs,DFID Malawi,,400175654
DFID,DFID,07/09/2011,Global Construction Limited,"1,406.60",Other Building Costs,DFID Zambia,,400175975
DFID,DFID,09/09/2011,HITL COMPANY LIMITED,"5,835.69",Other Building Costs,DFID Ghana,,400175991
DFID,DFID,14/09/2011,Personal Trading Services,"1,144.66",Other Building Costs,DFID Malawi,,400177097
DFID,DFID,21/09/2011,Tiling Solutions Limited,660.14,Other Building Costs,DFID Malawi,,400178226
DFID,DFID,23/09/2011,British High Commission,"1,639.44",Other Building Costs,DFID Malawi,,400178568
DFID,DFID,23/09/2011,British High Commission,669.63,Other Building Costs,DFID Malawi,,400178568
DFID,DFID,05/09/2011,Recipient name withheld,603.91,"Repairs, Maint, Alter - Property & Constrct. Services",DFID Mozambique,,400175481
DFID,DFID,06/09/2011,Tamathy Adriel Investments,"1,088.60","Repairs, Maint, Alter - Property & Constrct. Services",DFID Zimbabwe,,400175686
DFID,DFID,07/09/2011,Tamathy Adriel Investments,"1,918.22","Repairs, Maint, Alter - Property & Constrct. Services",DFID Zimbabwe,,400175691
DFID,DFID,07/09/2011,Tamathy Adriel Investments,"1,294.30","Repairs, Maint, Alter - Property & Constrct. Services",DFID Zimbabwe,,400175709
DFID,DFID,07/09/2011,Tamathy Adriel Investments,"1,703.84","Repairs, Maint, Alter - Property & Constrct. Services",DFID Zimbabwe,,400175826
DFID,DFID,07/09/2011,Tamathy Adriel Investments,"2,540.89","Repairs, Maint, Alter - Property & Constrct. Services",DFID Zimbabwe,,400175842
DFID,DFID,20/09/2011,GreyStone Park Electrical,"2,004.46","Repairs, Maint, Alter - Property & Constrct. Services",DFID Zimbabwe,,400177951
DFID,DFID,22/09/2011,MJB Electrical Pvt Ltd,"6,065.41","Repairs, Maint, Alter - Property & Constrct. Services",DFID Zimbabwe,,400178249
DFID,DFID,23/09/2011,Nova Products SPRL Canadian Pure Sys,868.44,"Repairs, Maint, Alter - Property & Constrct. Services",DFID DRC,,400178611
DFID,DFID,23/09/2011,Nova Products SPRL Canadian Pure Sys,"1,905.38","Repairs, Maint, Alter - Property & Constrct. Services",DFID DRC,,400178612
DFID,DFID,27/09/2011,Sharim Entreprise,776.13,"Repairs, Maint, Alter - Property & Constrct. Services",DFID DRC,,400178795
DFID,DFID,27/09/2011,Sharim Entreprise,"1,061.94","Repairs, Maint, Alter - Property & Constrct. Services",DFID DRC,,400178814
DFID,DFID,27/09/2011,KB Locksmith Services,629.03,"Repairs, Maint, Alter - Property & Constrct. Services",DFID Zimbabwe,,400178885
DFID,DFID,22/09/2011,HEALTH PARTNERS INTERNATIONAL,"61,064.44",Research & Development costs,DFID Zambia,,400178450
DFID,DFID,15/09/2011,Corporate Travel provider,600.78,Air fares,DFID Southern Africa,,6000057
DFID,DFID,15/09/2011,Corporate Travel provider,"1,114.63",Air fares,DFID Nigeria,,6000057
DFID,DFID,15/09/2011,Corporate Travel provider,592.30,Air fares,DFID Nigeria,,6000057
DFID,DFID,15/09/2011,Corporate Travel provider,"1,336.86",Air fares,DFID Southern Africa,,6000057
DFID,DFID,15/09/2011,Corporate Travel provider,702.50,Air fares,DFID Malawi,,6000057
DFID,DFID,15/09/2011,Corporate Travel provider,631.87,Air fares,DFID Malawi,,6000057
DFID,DFID,15/09/2011,Corporate Travel provider,"1,153.00",Air fares,DFID Nigeria,,6000057
DFID,DFID,15/09/2011,Corporate Travel provider,746.03,Air fares,DFID Zimbabwe,,6000057
DFID,DFID,15/09/2011,Corporate Travel provider,592.30,Air fares,DFID Nigeria,,6000057
DFID,DFID,15/09/2011,Corporate Travel provider,517.90,Air fares,DFID Nigeria,,6000057
DFID,DFID,15/09/2011,Corporate Travel provider,816.72,Air fares,DFID Mozambique,,6000057
DFID,DFID,27/09/2011,Corporate Travel provider,661.10,Air fares,DFID Mozambique,,6000058
DFID,DFID,27/09/2011,Corporate Travel provider,516.66,Air fares,DFID Mozambique,,6000058
DFID,DFID,27/09/2011,Corporate Travel provider,661.10,Air fares,DFID Mozambique,,6000058
DFID,DFID,27/09/2011,Corporate Travel provider,"1,115.79",Air fares,DFID Zimbabwe,,6000058
DFID,DFID,27/09/2011,Corporate Travel provider,944.10,Air fares,DFID DRC,,6000058
DFID,DFID,27/09/2011,Corporate Travel provider,"1,011.03",Air fares,DFID Southern Africa,,6000058
DFID,DFID,27/09/2011,Corporate Travel provider,943.02,Air fares,DFID Southern Africa,,6000058
DFID,DFID,27/09/2011,Corporate Travel provider,"1,455.66",Air fares,Africa Directorate,,6000058
DFID,DFID,27/09/2011,Foreign & Commonwealth Office,645.79,Air fares,DFID Ghana,,6000058
DFID,DFID,27/09/2011,Corporate Travel provider,"1,103.56",Air fares,DFID Nigeria,,6000058
DFID,DFID,27/09/2011,Corporate Travel provider,946.09,Air fares,DFID Nigeria,,6000058
DFID,DFID,27/09/2011,Corporate Travel provider,"1,115.79",Air fares,DFID Zimbabwe,,6000058
DFID,DFID,27/09/2011,Corporate Travel provider,976.83,Air fares,DFID Nigeria,,6000058
DFID,DFID,27/09/2011,Corporate Travel provider,"1,160.18",Air fares,DFID Southern Africa,,6000058
DFID,DFID,27/09/2011,Corporate Travel provider,993.05,Air fares,DFID DRC,,6000058
DFID,DFID,27/09/2011,Corporate Travel provider,926.96,Air fares,Africa Directorate,,6000058
DFID,DFID,27/09/2011,Corporate Travel provider,943.02,Air fares,DFID Southern Africa,,6000058
DFID,DFID,27/09/2011,Corporate Travel provider,"1,320.79",Air fares,Africa Directorate,,6000058
DFID,DFID,27/09/2011,Corporate Travel provider,694.46,Air fares,DFID DRC,,6000058
DFID,DFID,07/09/2011,Dunes Limited,"1,835.85",Air fares,DFID Nigeria,,400175892
DFID,DFID,07/09/2011,Dunes Limited,"1,502.06",Air fares,DFID Nigeria,,400175892
DFID,DFID,15/09/2011,Chelsea Hotel Abuja,533.72,Air fares,DFID Nigeria,,400176104
DFID,DFID,17/09/2011,Prince Hotel,"1,172.99",Air fares,DFID Nigeria,,400176443
DFID,DFID,17/09/2011,Prince Hotel,"1,214.29",Air fares,DFID Nigeria,,400176443
DFID,DFID,09/09/2011,Nigerlink Hotels Limited,556.06,Air fares,DFID Nigeria,,400176444
DFID,DFID,09/09/2011,Nigerlink Hotels Limited,679.62,Air fares,DFID Nigeria,,400176444
DFID,DFID,13/09/2011,Recipient name withheld,"1,508.20",Air fares,DFID Zambia,,400176769
DFID,DFID,13/09/2011,Arik Air Limited,"1,613.13",Air fares,DFID Nigeria,,400176839
DFID,DFID,13/09/2011,Arik Air Limited,826.18,Air fares,DFID Nigeria,,400176839
DFID,DFID,13/09/2011,Arik Air Limited,"1,971.60",Air fares,DFID Nigeria,,400176839
DFID,DFID,13/09/2011,Arik Air Limited,"2,017.41",Air fares,DFID Nigeria,,400176845
DFID,DFID,13/09/2011,Arik Air Limited,731.29,Air fares,DFID Nigeria,,400176845
DFID,DFID,13/09/2011,Arik Air Limited,945.13,Air fares,DFID Nigeria,,400176860
DFID,DFID,13/09/2011,Arik Air Limited,773.29,Air fares,DFID Nigeria,,400176860
DFID,DFID,13/09/2011,Arik Air Limited,"3,135.10",Air fares,DFID Nigeria,,400176860
DFID,DFID,13/09/2011,Arik Air Limited,"2,565.08",Air fares,DFID Nigeria,,400176860
DFID,DFID,13/09/2011,Chelsea Hotel Abuja,"1,280.92",Air fares,DFID Nigeria,,400176885
DFID,DFID,15/09/2011,Chelsea Hotel Abuja,629.44,Air fares,DFID Nigeria,,400176904
DFID,DFID,27/09/2011,DANA Agency,"2,549.91",Air fares,DFID Mozambique,,400178762
DFID,DFID,27/09/2011,CROWN RELOCATIONS  UK,"5,070.12",Storage & Distribution costs,DFID DRC,,400178093
DFID,DFID,21/09/2011,CROWN RELOCATIONS  UK,810.00,Storage & Distribution costs,DFID DRC,,400178134
DFID,DFID,21/09/2011,Foreign & Commonwealth Office,"7,207.24",Technical and Advisory Services,DFID Nigeria,,151559104
DFID,DFID,21/09/2011,Foreign & Commonwealth Office,"2,059.46",Technical and Advisory Services,DFID Nigeria,,151559104
DFID,DFID,28/09/2011,Foreign & Commonwealth Office,"1,485.52",Technical and Advisory Services,DFID Nigeria,,151559118
DFID,DFID,05/09/2011,KPMG Auditores e Consultores SA,"48,646.56",Technical and Advisory Services,DFID Mozambique,,400173295
DFID,DFID,07/09/2011,BRITISH COUNCIL,"24,825.96",Technical and Advisory Services,DFID DRC,,400173398
DFID,DFID,07/09/2011,recipient withheld,882.17,Technical and Advisory Services,Africa Directorate,,400174367
DFID,DFID,07/09/2011,ABT ASSOCIATES INC,"1,413,127.76",Technical and Advisory Services,DFID Nigeria,,400174567
DFID,DFID,01/09/2011,Crown Agents Govts and Admin,"16,196.94",Technical and Advisory Services,DFID Nigeria,,400174904
DFID,DFID,07/09/2011,CARE INTERNATIONAL,"59,232.13",Technical and Advisory Services,DFID Ghana,,400174943
DFID,DFID,01/09/2011,ADAM SMITH INTERNATIONAL,"43,324.71",Technical and Advisory Services,DFID Sierra Leone and Liberia,,400174950
DFID,DFID,01/09/2011,COFFEY INTERNATIONAL DEVELOPMENT LTD,"33,850.60",Technical and Advisory Services,DFID Zambia,,400174952
DFID,DFID,01/09/2011,OXFORD POLICY MANAGEMENT,"17,561.37",Technical and Advisory Services,DFID Sierra Leone and Liberia,,400175037
DFID,DFID,01/09/2011,Supplier name withheld,725.46,Technical and Advisory Services,DFID Mozambique,,400175217
DFID,DFID,02/09/2011,RE-ACTION,"116,885.00",Technical and Advisory Services,DFID Southern Africa,,400175256
DFID,DFID,02/09/2011,RE-ACTION,"4,249.48",Technical and Advisory Services,DFID Southern Africa,,400175256
DFID,DFID,01/09/2011,MOTT MACDONALD LTD,"27,343.90",Technical and Advisory Services,DFID Malawi,,400175300
DFID,DFID,02/09/2011,HEALTH PARTNERS INTERNATIONAL,"366,812.99",Technical and Advisory Services,DFID Nigeria,,400175388
DFID,DFID,02/09/2011,Sue Newport Consulting,"1,000.00",Technical and Advisory Services,DFID Southern Africa,,400175404
DFID,DFID,12/09/2011,MOTT MACDONALD LTD,"52,238.25",Technical and Advisory Services,DFID Malawi,,400175446
DFID,DFID,13/09/2011,MOTT MACDONALD LTD,"10,696.22",Technical and Advisory Services,DFID Malawi,,400175448
DFID,DFID,07/09/2011,HLSP LIMITED,"11,915.93",Technical and Advisory Services,DFID Malawi,,400175476
DFID,DFID,05/09/2011,HLSP LIMITED,"197,377.16",Technical and Advisory Services,DFID Southern Africa,,400175622
DFID,DFID,05/09/2011,Cambridge  Education Limited,"18,038.93",Technical and Advisory Services,DFID Zambia,,400175624
DFID,DFID,06/09/2011,Consultores HODI Lda,929.37,Technical and Advisory Services,DFID Mozambique,,400175674
DFID,DFID,16/09/2011,PKF (UK) LLP,"70,812.50",Technical and Advisory Services,DFID Sierra Leone and Liberia,,400175678
DFID,DFID,07/09/2011,University of Witwatersrand,"7,236.27",Technical and Advisory Services,DFID Southern Africa,,400175706
DFID,DFID,09/09/2011,Crown Agents Govts and Admin,"12,313.20",Technical and Advisory Services,DFID DRC,,400175801
DFID,DFID,07/09/2011,BRITISH COUNCIL,"322,587.13",Technical and Advisory Services,DFID Sierra Leone and Liberia,,400175939
DFID,DFID,07/09/2011,CHARLES KENDALL & PARTNERS LIMITED,637.19,Technical and Advisory Services,DFID DRC,,400175946
DFID,DFID,07/09/2011,CHARLES KENDALL & PARTNERS LIMITED,"6,690.47",Technical and Advisory Services,DFID DRC,,400175950
DFID,DFID,07/09/2011,Pan African Vision for the Environment,"2,510.77",Technical and Advisory Services,DFID Nigeria,,400175951
DFID,DFID,07/09/2011,CHARLES KENDALL & PARTNERS LIMITED,"2,919.99",Technical and Advisory Services,DFID DRC,,400175962
DFID,DFID,07/09/2011,CHARLES KENDALL & PARTNERS LIMITED,"1,179.09",Technical and Advisory Services,DFID DRC,,400175967
DFID,DFID,07/09/2011,Crown Agents Govts and Admin,"43,268.72",Technical and Advisory Services,DFID Nigeria,,400175985
DFID,DFID,07/09/2011,Crown Agents Govts and Admin,"6,354.22",Technical and Advisory Services,DFID Nigeria,,400176040
DFID,DFID,07/09/2011,STEPHEN YEO,"2,140.52",Technical and Advisory Services,DFID Southern Africa,,400176067
DFID,DFID,08/09/2011,GRM INTERNATIONAL LTD,"67,483.81",Technical and Advisory Services,DFID Nigeria,,400176200
DFID,DFID,08/09/2011,COFFEY INTERNATIONAL DEVELOPMENT LTD,"178,613.15",Technical and Advisory Services,DFID Ghana,,400176202
DFID,DFID,08/09/2011,Crown Agents Govts and Admin,"110,599.20",Technical and Advisory Services,DFID Mozambique,,400176213
DFID,DFID,08/09/2011,HLSP LTD,"18,584.21",Technical and Advisory Services,DFID Mozambique,,400176268
DFID,DFID,13/09/2011,CHEMONICS,"196,861.70",Technical and Advisory Services,DFID Nigeria,,400176296
DFID,DFID,08/09/2011,ADAM SMITH INTERNATIONAL  LTD,"189,427.23",Technical and Advisory Services,DFID Nigeria,,400176337
DFID,DFID,09/09/2011,OPTIONS CONSULTANCY SERVICES LIMITED,"170,904.43",Technical and Advisory Services,DFID Sierra Leone and Liberia,,400176419
DFID,DFID,12/09/2011,"DR GIL YARON, GY Associates Ltd","13,976.00",Technical and Advisory Services,DFID Mozambique,,400176643
DFID,DFID,12/09/2011,HTSPE LTD,"55,456.66",Technical and Advisory Services,DFID Nigeria,,400176662
DFID,DFID,12/09/2011,Crown Agents Govts and Admin,"39,101.00",Technical and Advisory Services,DFID Zimbabwe,,400176663
DFID,DFID,12/09/2011,LIVERPOOL ASSOCIATES IN TROP. HEALTH,"11,007.56",Technical and Advisory Services,DFID Zimbabwe,,400176702
DFID,DFID,12/09/2011,LIVERPOOL ASSOCIATES IN TROP. HEALTH,"49,798.80",Technical and Advisory Services,DFID Zimbabwe,,400176702
DFID,DFID,12/09/2011,Supplier name withheld,"15,311.60",Technical and Advisory Services,DFID Mozambique,,400176714
DFID,DFID,19/09/2011,FEG,"6,795.00",Technical and Advisory Services,DFID Mozambique,,400176762
DFID,DFID,14/09/2011,OPTIONS CONSULTANCY SERVICES LIMITED,"130,932.83",Technical and Advisory Services,DFID Sierra Leone and Liberia,,400176913
DFID,DFID,13/09/2011,GRM INTERNATIONAL LTD,"502,442.48",Technical and Advisory Services,DFID Zimbabwe,,400176938
DFID,DFID,20/09/2011,ADAM SMITH INTERNATIONAL,"150,399.76",Technical and Advisory Services,DFID Sierra Leone and Liberia,,400176989
DFID,DFID,16/09/2011,MALARIA CONSORTIUM,"527,877.00",Technical and Advisory Services,DFID Nigeria,,400177072
DFID,DFID,14/09/2011,OXFORD POLICY MANAGEMENT,"6,180.00",Technical and Advisory Services,DFID Zambia,,400177102
DFID,DFID,14/09/2011,HTSPE LTD,"376,838.22",Technical and Advisory Services,DFID Nigeria,,400177108
DFID,DFID,15/09/2011,Crown Agents Govts and Admin,"40,854.78",Technical and Advisory Services,DFID Nigeria,,400177109
DFID,DFID,14/09/2011,Robert Frank Ward,"3,630.75",Technical and Advisory Services,DFID Zimbabwe,,400177115
DFID,DFID,15/09/2011,Crown Agents Govts and Admin,"11,608.19",Technical and Advisory Services,DFID Nigeria,,400177146
DFID,DFID,14/09/2011,ATOS CONSULTING LIMITED,"158,439.00",Technical and Advisory Services,DFID Nigeria,,400177163
DFID,DFID,16/09/2011,Crown Agents Govts and Admin,"21,276.24",Technical and Advisory Services,DFID Mozambique,,400177164
DFID,DFID,14/09/2011,Oyeleye Abiodun,"5,921.76",Technical and Advisory Services,DFID Nigeria,,400177174
DFID,DFID,14/09/2011,Komna Oladipo Sessi,"6,225.47",Technical and Advisory Services,DFID Nigeria,,400177176
DFID,DFID,15/09/2011,Crown Agents Govts and Admin,"43,144.15",Technical and Advisory Services,DFID Zambia,,400177350
DFID,DFID,16/09/2011,Cambridge  Education Limited,"1,337,469.19",Technical and Advisory Services,DFID Nigeria,,400177371
DFID,DFID,19/09/2011,Valsa Shah Consulting,"4,000.00",Technical and Advisory Services,DFID Southern Africa,,400177377
DFID,DFID,20/09/2011,TRIPLE LINE CONSULTING LTD,"7,446.15",Technical and Advisory Services,DFID Sierra Leone and Liberia,,400177381
DFID,DFID,20/09/2011,TRIPLE LINE CONSULTING LTD,"6,319.27",Technical and Advisory Services,DFID Sierra Leone and Liberia,,400177386
DFID,DFID,15/09/2011,Reginald A. Ihebuzor,"5,208.02",Technical and Advisory Services,DFID Nigeria,,400177410
DFID,DFID,15/09/2011,Dr Anthony Marinho,"4,214.41",Technical and Advisory Services,DFID Nigeria,,400177411
DFID,DFID,15/09/2011,Professor Obafemi Ajibola,"4,148.73",Technical and Advisory Services,DFID Nigeria,,400177413
DFID,DFID,16/09/2011,CHARLES KENDALL & PARTNERS LIMITED,"34,843.68",Technical and Advisory Services,DFID DRC,,400177481
DFID,DFID,16/09/2011,Masdar (UK) Limited,"113,901.37",Technical and Advisory Services,DFID Southern Africa,,400177494
DFID,DFID,16/09/2011,HLSP LIMITED,"7,545.00",Technical and Advisory Services,DFID Southern Africa,,400177542
DFID,DFID,20/09/2011,WSP INTERNATIONAL LIMITED,"44,934.00",Technical and Advisory Services,DFID Malawi,,400177559
DFID,DFID,21/09/2011,Crown Agents Govts and Admin,"157,745.79",Technical and Advisory Services,DFID Sierra Leone and Liberia,,400177563
DFID,DFID,19/09/2011,Taaka Awori,"5,859.38",Technical and Advisory Services,DFID Ghana,,400177662
DFID,DFID,20/09/2011,EPOS Health Consultants GmbH,"25,248.41",Technical and Advisory Services,DFID Malawi,,400177842
DFID,DFID,20/09/2011,HTSPE LTD,"163,010.88",Technical and Advisory Services,DFID Nigeria,,400177856
DFID,DFID,20/09/2011,DAI EUROPE LIMITED,"227,937.38",Technical and Advisory Services,DFID DRC,,400177908
DFID,DFID,20/09/2011,HLSP LIMITED,"31,864.03",Technical and Advisory Services,DFID Zambia,,400177952
DFID,DFID,20/09/2011,GRM INTERNATIONAL LTD,"250,212.65",Technical and Advisory Services,DFID Nigeria,,400177964
DFID,DFID,20/09/2011,Crown Agents Govts and Admin,"2,936.16",Technical and Advisory Services,DFID Nigeria,,400177971
DFID,DFID,21/09/2011,Martina Bergschneider,"3,089.44",Technical and Advisory Services,DFID Zambia,,400178109
DFID,DFID,21/09/2011,COFFEY INTERNATIONAL DEVELOPMENT LTD,"130,341.86",Technical and Advisory Services,DFID Nigeria,,400178111
DFID,DFID,21/09/2011,REGINALD TERRENCE ALLSOP,979.66,Technical and Advisory Services,DFID Zimbabwe,,400178252
DFID,DFID,21/09/2011,PRICEWATERHOUSECOOPERS,"777,344.00",Technical and Advisory Services,DFID DRC,,400178260
DFID,DFID,21/09/2011,PRICEWATERHOUSECOOPERS,"121,275.00",Technical and Advisory Services,DFID DRC,,400178260
DFID,DFID,21/09/2011,ADAM SMITH INTERNATIONAL  LTD,"9,731.32",Technical and Advisory Services,DFID Sierra Leone and Liberia,,400178269
DFID,DFID,22/09/2011,Common Futures Consulting Limited,"8,060.00",Technical and Advisory Services,DFID Southern Africa,,400178380
DFID,DFID,22/09/2011,Pan African Vision for the Environment,"2,575.07",Technical and Advisory Services,DFID Nigeria,,400178390
DFID,DFID,30/09/2011,Crown Agents Govts and Admin,"57,002.63",Technical and Advisory Services,DFID Zambia,,400178453
DFID,DFID,29/09/2011,ONE WORLD,"36,863.00",Technical and Advisory Services,DFID Southern Africa,,400178498
DFID,DFID,29/09/2011,ONE WORLD,"40,293.00",Technical and Advisory Services,DFID Southern Africa,,400178499
DFID,DFID,23/09/2011,PSD Consulting,"1,194.99",Technical and Advisory Services,DFID Ghana,,400178607
DFID,DFID,27/09/2011,ADAM SMITH INTERNATIONAL,"65,490.46",Technical and Advisory Services,DFID Sierra Leone and Liberia,,400178650
DFID,DFID,27/09/2011,CHEMONICS,"232,620.82",Technical and Advisory Services,DFID Nigeria,,400178652
DFID,DFID,27/09/2011,ADAM SMITH INTERNATIONAL  LTD,"175,705.22",Technical and Advisory Services,DFID Nigeria,,400178868
DFID,DFID,28/09/2011,HLSP LTD,"12,966.60",Technical and Advisory Services,DFID Mozambique,,400179030
DFID,DFID,28/09/2011,Crown Agents Govts and Admin,"2,824.82",Technical and Advisory Services,DFID Nigeria,,400179040
DFID,DFID,28/09/2011,PSD Consulting,"1,187.73",Technical and Advisory Services,DFID Ghana,,400179123
DFID,DFID,28/09/2011,Godfrey Ewool,"4,283.11",Technical and Advisory Services,DFID Ghana,,400179135
DFID,DFID,28/09/2011,OXFORD POLICY MANAGEMENT,"13,244.87",Technical and Advisory Services,DFID Nigeria,,400179143
DFID,DFID,28/09/2011,OXFORD POLICY MANAGEMENT,"123,430.43",Technical and Advisory Services,DFID Nigeria,,400179168
DFID,DFID,28/09/2011,TRL LTD,"93,586.00",Technical and Advisory Services,DFID Nigeria,,400179170
DFID,DFID,29/09/2011,Mendizabal Ltd,"15,406.63",Technical and Advisory Services,DFID Zambia,,400179184
DFID,DFID,29/09/2011,Crown Agents Govts and Admin,"4,342.02",Technical and Advisory Services,DFID Nigeria,,400179277
DFID,DFID,29/09/2011,RENAISSANCE,"2,500.00",Technical and Advisory Services,DFID Sierra Leone and Liberia,,400179363
DFID,DFID,29/09/2011,RENAISSANCE,"3,000.00",Technical and Advisory Services,DFID Sierra Leone and Liberia,,400179366
DFID,DFID,29/09/2011,MALARIA CONSORTIUM,"911,475.00",Technical and Advisory Services,DFID Nigeria,,400179451
DFID,DFID,29/09/2011,MALARIA CONSORTIUM,"1,425,673.00",Technical and Advisory Services,DFID Nigeria,,400179451
DFID,DFID,30/09/2011,EFFECTIVE DEVELOPMENT GROUP (EDG),"63,612.74",Technical and Advisory Services,DFID DRC,,400179503
DFID,DFID,30/09/2011,Crown Agents Govts and Admin,"208,331.77",Technical and Advisory Services,DFID Mozambique,,400179543
DFID,DFID,30/09/2011,GRM INTERNATIONAL LTD,"97,075.79",Technical and Advisory Services,DFID Nigeria,,400179569
DFID,DFID,15/09/2011,Vodacom,907.58,Telephone Usage & services,DFID DRC,,400176895
DFID,DFID,14/09/2011,ECONET,827.75,Telephone Usage & services,DFID Zimbabwe,,400177008
DFID,DFID,14/09/2011,ECONET,643.80,Telephone Usage & services,DFID Zimbabwe,,400177008
DFID,DFID,15/09/2011,MTN Nigeria Communications Ltd,618.84,Telephone Usage & services,DFID Nigeria,,400177286
DFID,DFID,15/09/2011,MTN Nigeria Communications Ltd,756.35,Telephone Usage & services,DFID Nigeria,,400177286
DFID,DFID,19/09/2011,Telkom SA Ltd,"1,639.27",Telephone Usage & services,DFID Southern Africa,,400177673
DFID,DFID,27/09/2011,Telecomunicacoes de Mocambique,555.35,Telephone Usage & services,DFID Mozambique,,400178764
DFID,DFID,27/09/2011,Telecomunicacoes de Mocambique,"1,295.81",Telephone Usage & services,DFID Mozambique,,400178764
DFID,DFID,01/09/2011,Lamar Travel Agency,"1,809.82",Training - Course Fees,DFID Sierra Leone and Liberia,,400175261
DFID,DFID,05/09/2011,Karina Alves,600.00,Training - Course Fees,DFID Southern Africa,,400175377
DFID,DFID,05/09/2011,Tokeair Limited,"1,165.23",Training - Course Fees,DFID Sierra Leone and Liberia,,400175539
DFID,DFID,07/09/2011,CPUtech Concepts,"1,957.93",Training - Course Fees,DFID Nigeria,,400175813
DFID,DFID,07/09/2011,SCHOOL OF ORIENTAL AND AFRICAN STUDI,840.00,Training - Course Fees,DFID Malawi,,400176156
DFID,DFID,13/09/2011,Crown Agents Kenya Limited,"1,752.28",Training - Course Fees,DFID Nigeria,,400176756
DFID,DFID,21/09/2011,NATIONAL SCHOOL OF GOVERNMENT,"1,420.00",Training - Course Fees,DFID Nigeria,,400177919
DFID,DFID,20/09/2011,Lamar Travel Agency,"1,043.92",Training - Course Fees,DFID Sierra Leone and Liberia,,400177999
DFID,DFID,23/09/2011,NATIONAL SCHOOL OF GOVERNMENT,740.00,Training - Course Fees,DFID Nigeria,,400178474
DFID,DFID,28/09/2011,THRESHOLDS,"1,350.00",Training - Course Fees,DFID Ghana,,400179035
DFID,DFID,08/09/2011,Mukwa Travel and Tours,871.54,Training - Travel & Subsistence,DFID Zambia,,400176290
DFID,DFID,13/09/2011,Stellar Travels  Agency Ltd,848.88,Training - Travel & Subsistence,DFID Ghana,,400176781
DFID,DFID,13/09/2011,EuroTours Ghana Ltd,891.97,Training - Travel & Subsistence,DFID Ghana,,400176783
DFID,DFID,13/09/2011,Ulendo Safaris,"1,453.56",Training - Travel & Subsistence,DFID Malawi,,400176928
DFID,DFID,19/09/2011,THE COMMUNICAID GROUP LIMITED,"1,877.36",Training - Travel & Subsistence,DFID DRC,,400177528
DFID,DFID,19/09/2011,Mukwa Travel and Tours,"1,186.17",Training - Travel & Subsistence,DFID Zambia,,400177722
DFID,DFID,30/09/2011,IBTC,"1,864.29",Training Providers/Facilitation Services,DFID Southern Africa,,400179496
DFID,DFID,07/09/2011,Recipient name withheld,"1,062.27",Travel - Subsistence,DFID Zimbabwe,,400175719
DFID,DFID,14/09/2011,Recipient name withheld,"2,026.00",Travel - Subsistence,DFID DRC,,400177160
DFID,DFID,14/09/2011,Recipient name withheld,"2,056.94",Travel - Subsistence,DFID DRC,,400177161
DFID,DFID,14/09/2011,Recipient name withheld,995.86,Travel - Subsistence,DFID DRC,,400177162
DFID,DFID,14/09/2011,Recipient name withheld,714.87,Travel - Subsistence,DFID DRC,,400177162
DFID,DFID,20/09/2011,Recipient name withheld,779.09,Travel - Subsistence,DFID DRC,,400178010
DFID,DFID,09/09/2011,The World Bank (Tanzania),"1,450,000.00",Aid Programme - Trust Funds contributions,DFID Sierra Leone and Liberia,,400174162
DFID,DFID,19/09/2011,International Monetary Fund (GBP),"17,726.56",Aid Programme - Trust Funds contributions,DFID Nigeria,,400177491
DFID,DFID,19/09/2011,International Monetary Fund (GBP),"307,600.00",Aid Programme - Trust Funds contributions,DFID Nigeria,,400177491
DFID,DFID,06/09/2011,British High Commission,977.24,Vehicle Petrol & Oil,DFID Malawi,,400175665
DFID,DFID,09/09/2011,FCO,"2,152.91",Vehicle Petrol & Oil,DFID DRC,,400176314
DFID,DFID,22/09/2011,FCO,"1,377.45",Vehicle Petrol & Oil,DFID DRC,,400178207
DFID,DFID,27/09/2011,British High Commission,852.52,Vehicle Petrol & Oil,DFID Malawi,,400178720
DFID,DFID,21/09/2011,Crown Agents Govts and Admin,"16,217.87",Vehicle Purchase Costs,DFID Nigeria,,400178256
DFID,DFID,01/09/2011,FOREIGN AND COMMONWEALTH OFFICE,575.35,Vehicle Repairs & Maintenance,DFID Nigeria,,400174868
DFID,DFID,09/09/2011,CHARLES KENDALL & PARTNERS LIMITED,"5,948.51",Vehicle Repairs & Maintenance,DFID Sierra Leone and Liberia,,400176383
DFID,DFID,28/09/2011,Sonny Milton SL Ltd,"1,693.71",Vehicle Repairs & Maintenance,DFID Sierra Leone and Liberia,,400179074
DFID,DFID,29/09/2011,Recipient name withheld,"1,115.04",Vehicle Repairs & Maintenance,DFID Mozambique,,400179314
DFID,DFID,13/09/2011, UNICEF,"1,250,000.00",Aid Programme - Voluntary contributions,DFID DRC,,400176891
DFID,DFID,15/09/2011,Nashua Mobile (Pty) Ltd,"7,111.51",Aid Programme - Voluntary contributions,DFID Southern Africa,,400177330
DFID,DFID,07/09/2011,ETS Abeer,"1,245.33",Water charges,DFID DRC,,400176079
DFID,DFID,09/09/2011,Water Deliveries,998.12,Water charges,DFID Zimbabwe,,400176242
DFID,DFID,21/09/2011,ETS Abeer,"1,273.89",Water charges,DFID DRC,,400178295
DFID,DFID,30/09/2011,Institute of Social & policy Sciences,"17,318.99",Aid Programme - Accountable Grant Payments,DFID Pakistan,,400179388
DFID,DFID,19/09/2011,The Aga Khan University,"6,622.60","Conferences, Seminars & Meeting/Event Resource",DFID Pakistan,,400177679
DFID,DFID,21/09/2011,TOURISM PROMOTION SERVICES/ ISLAMABA,520.28,"Conferences, Seminars & Meeting/Event Resource",DFID Pakistan,,400178057
DFID,DFID,20/09/2011,Crown Agents Govts and Admin,533.00,Consultancy Services,Stabilisation Unit,,400173326
DFID,DFID,02/09/2011,Crown Agents Govts and Admin,"9,408.00",Consultancy Services,Stabilisation Unit,,400175356
DFID,DFID,02/09/2011,Crown Agents Govts and Admin,"3,113.50",Consultancy Services,Stabilisation Unit,,400175364
DFID,DFID,08/09/2011,Supplier name withheld,"8,137.50",Consultancy Services,Stabilisation Unit,,400176307
DFID,DFID,12/09/2011,Imran Ghaznavi,"5,439.29",Consultancy Services,DFID Pakistan,,400176505
DFID,DFID,13/09/2011,GINI,"8,416.36",Consultancy Services,DFID Pakistan,,400176909
DFID,DFID,23/09/2011,Imran Ghaznavi,"5,636.82",Consultancy Services,DFID Pakistan,,400178515
DFID,DFID,29/09/2011,GINI,"6,446.13",Consultancy Services,DFID Pakistan,,400179213
DFID,DFID,29/09/2011,Dr Mohammad Zubair Khan,"4,331.50",Consultancy Services,DFID Pakistan,,400179214
DFID,DFID,02/09/2011,Government Procurement Card,851.24,Contract & Agency Staff,Stabilisation Unit,,100043
DFID,DFID,02/09/2011,Government Procurement Card,847.15,Contract & Agency Staff,Stabilisation Unit,,100043
DFID,DFID,02/09/2011,Government Procurement Card,852.50,Contract & Agency Staff,Stabilisation Unit,,100043
DFID,DFID,02/09/2011,Government Procurement Card,619.28,Contract & Agency Staff,Stabilisation Unit,,100043
DFID,DFID,02/09/2011,Government Procurement Card,679.36,Contract & Agency Staff,Stabilisation Unit,,100043
DFID,DFID,30/09/2011,Government Procurement Card,851.24,Contract & Agency Staff,Stabilisation Unit,,100047
DFID,DFID,30/09/2011,Government Procurement Card,843.06,Contract & Agency Staff,Stabilisation Unit,,100047
DFID,DFID,19/09/2011,Recipient name withheld,"2,105.76",Furniture & Fittings,DFID Afghanistan,,400177598
DFID,DFID,30/09/2011,Government Procurement Card,898.70,General Equipment,Stabilisation Unit,,100047
DFID,DFID,19/09/2011,Recipient name withheld,"1,207.73",Generators & spares,DFID Afghanistan,,400177595
DFID,DFID,02/09/2011,Government Procurement Card,677.82,Hotels - Accommodation only,Stabilisation Unit,,100043
DFID,DFID,02/09/2011,Government Procurement Card,648.83,Hotels - Accommodation only,Stabilisation Unit,,100043
DFID,DFID,02/09/2011,Government Procurement Card,570.77,Hotels - Accommodation only,Stabilisation Unit,,100043
DFID,DFID,02/09/2011,Government Procurement Card,650.08,Hotels - Accommodation only,Stabilisation Unit,,100043
DFID,DFID,12/09/2011,Ramada Multan,931.65,Hotels - Accommodation only,DFID Pakistan,,400176537
DFID,DFID,13/09/2011,Recipient name withheld,566.70,Hotels - Accommodation only,Stabilisation Unit,,400176776
DFID,DFID,13/09/2011,PEARL CONTINENTAL HOTEL LAHORE,552.12,Hotels - Accommodation only,DFID Pakistan,,400176931
